Workbook

Sheet Main
B10: 2020-02-10
B12: Sheet No. | C12: Template Name | D12: Summary
B13: 1 | C13: Future Intra | D13: For Intraday trading in F&O segment
B14: 2 | C14: Cash Intra | D14: For Intraday trading in cash market segment
B15: 3 | C15: Mid-cap Intra | D15: For Intraday trading in Mid-cap stocks
B16: 4 | C16: Bulk Deals | D16: Reveals Bulk Deals carried on NSE & BSE
B17: 5 | C17: Call Tracker
K27: `

Sheet Future Intra
M5: Back to Main Page
A6: FOR INTRA DAY TRADING | L6: =Main!B10 -> 2020-02-10
A9: Sr.no | B9: Sector | C9: Scrip | D9: CLOSE RATE | E9: Pivot Point | F9: Supports | I9: Resistances
B10: Sector | D10: Point | E10: Point | F10: S1 | G10: S2 | H10: S3 | I10: R1 | J10: R2 | K10: R3 | L10: HIGH | M10: LOW | N10: OI | O10: % Change in OI
A11: 1 | B11: Index | C11: BANKNIFTY | D11: 31240.40 | E11: 31238.10 | F11: 31112.35 | G11: 30984.30 | H11: 30858.55 | I11: 31366.15 | J11: 31491.90 | K11: 31619.95 | L11: 31363.85 | M11: 31110.05 | N11: 1219540 | O11: 3.37%
A12: 2 | B12: Index | C12: NIFTY | D12: 12095.90 | E12: 12098.77 | F12: 12065.13 | G12: 12034.37 | H12: 12000.73 | I12: 12129.53 | J12: 12163.17 | K12: 12193.93 | L12: 12132.4 | M12: 12068 | N12: 14820375 | O12: 0.50%
A13: 3 | B13: Index | C13: NIFTYIT | D13: 16411.00 | E13: 16368.67 | F13: 16307.33 | G13: 16203.67 | H13: 16142.33 | I13: 16472.33 | J13: 16533.67 | K13: 16637.33 | L13: 16430 | M13: 16265 | N13: 6250 | O13: 5.93%
A14: 4 | B14: Cement | C14: ACC | D14: 1509.55 | E14: 1506.45 | F14: 1494.00 | G14: 1478.45 | H14: 1466.00 | I14: 1522.00 | J14: 1534.45 | K14: 1550.00 | L14: 1518.9 | M14: 1490.9 | N14: 5026000 | O14: 2.56%
A15: 5 | B15: Others | C15: ADANIENT | D15: 239.30 | E15: 238.80 | F15: 235.70 | G15: 232.10 | H15: 229.00 | I15: 242.40 | J15: 245.50 | K15: 249.10 | L15: 241.9 | M15: 235.2 | N15: 30940000 | O15: -1.69%
A16: 6 | B16: Others | C16: ADANIPORTS | D16: 370.85 | E16: 371.38 | F16: 368.22 | G16: 365.58 | H16: 362.42 | I16: 374.02 | J16: 377.18 | K16: 379.82 | L16: 374.55 | M16: 368.75 | N16: 27700000 | O16: 3.06%
A17: 7 | B17: Power | C17: ADANIPOWER | D17: 61.10 | E17: 61.15 | F17: 60.35 | G17: 59.60 | H17: 58.80 | I17: 61.90 | J17: 62.70 | K17: 63.45 | L17: 61.95 | M17: 60.4 | N17: 74020000 | O17: 0.43%
A18: 8 | B18: Automobile | C18: AMARAJABAT | D18: 788.30 | E18: 786.87 | F18: 781.93 | G18: 775.57 | H18: 770.63 | I18: 793.23 | J18: 798.17 | K18: 804.53 | L18: 791.8 | M18: 780.5 | N18: 1593600 | O18: -0.05%
A19: 9 | B19: Cement | C19: AMBUJACEM | D19: 210.50 | E19: 210.12 | F19: 207.88 | G19: 205.27 | H19: 203.03 | I19: 212.73 | J19: 214.97 | K19: 217.58 | L19: 212.35 | M19: 207.5 | N19: 31827500 | O19: 1.74%
A20: 10 | B20: Others | C20: APOLLOHOSP | D20: 1669.45 | E20: 1660.57 | F20: 1641.38 | G20: 1613.32 | H20: 1594.13 | I20: 1688.63 | J20: 1707.82 | K20: 1735.88 | L20: 1679.75 | M20: 1632.5 | N20: 1811500 | O20: 8.47%
A21: 11 | B21: Automobile | C21: APOLLOTYRE | D21: 164.70 | E21: 165.28 | F21: 163.57 | G21: 162.43 | H21: 160.72 | I21: 166.42 | J21: 168.13 | K21: 169.27 | L21: 167 | M21: 164.15 | N21: 14313000 | O21: 2.45%
A22: 12 | B22: Automobile | C22: ASHOKLEY | D22: 83.85 | E22: 82.72 | F22: 81.23 | G22: 78.62 | H22: 77.13 | I22: 85.33 | J22: 86.82 | K22: 89.43 | L22: 84.2 | M22: 80.1 | N22: 64568000 | O22: 3.99%
A23: 13 | B23: FMCG | C23: ASIANPAINT | D23: 1862.50 | E23: 1865.68 | F23: 1852.37 | G23: 1842.23 | H23: 1828.92 | I23: 1875.82 | J23: 1889.13 | K23: 1899.27 | L23: 1879 | M23: 1855.55 | N23: 7671600 | O23: -0.88%
A24: 14 | B24: Pharma | C24: AUROPHARMA | D24: 546.75 | E24: 537.65 | F24: 521.85 | G24: 496.95 | H24: 481.15 | I24: 562.55 | J24: 578.35 | K24: 603.25 | L24: 553.45 | M24: 512.75 | N24: 14781000 | O24: 4.19%
A25: 15 | B25: Banking | C25: AXISBANK | D25: 748.60 | E25: 744.50 | F25: 739.50 | G25: 730.40 | H25: 725.40 | I25: 753.60 | J25: 758.60 | K25: 767.70 | L25: 749.5 | M25: 735.4 | N25: 52945200 | O25: 0.90%
A26: 16 | B26: Automobile | C26: BAJAJ-AUTO | D26: 3138.35 | E26: 3139.43 | F26: 3099.92 | G26: 3061.48 | H26: 3021.97 | I26: 3177.87 | J26: 3217.38 | K26: 3255.82 | L26: 3178.95 | M26: 3101 | N26: 1852250 | O26: 0.32%
A27: 17 | B27: Finance | C27: BAJAJFINSV | D27: 9632.55 | E27: 9632.87 | F27: 9575.73 | G27: 9518.92 | H27: 9461.78 | I27: 9689.68 | J27: 9746.82 | K27: 9803.63 | L27: 9690 | M27: 9576.05 | N27: 1098375 | O27: 0.91%
A28: 18 | B28: Finance | C28: BAJFINANCE | D28: 4660.10 | E28: 4655.97 | F28: 4628.13 | G28: 4596.17 | H28: 4568.33 | I28: 4687.93 | J28: 4715.77 | K28: 4747.73 | L28: 4683.8 | M28: 4624 | N28: 6131250 | O28: -0.36%
A29: 19 | B29: Automobile | C29: BALKRISIND | D29: 1103.70 | E29: 1104.20 | F29: 1091.00 | G29: 1078.30 | H29: 1065.10 | I29: 1116.90 | J29: 1130.10 | K29: 1142.80 | L29: 1117.4 | M29: 1091.5 | N29: 1416800 | O29: 5.98%
A30: 20 | B30: Banking | C30: BANKBARODA | D30: 92.35 | E30: 91.98 | F30: 90.82 | G30: 89.28 | H30: 88.12 | I30: 93.52 | J30: 94.68 | K30: 96.22 | L30: 93.15 | M30: 90.45 | N30: 73040400 | O30: 0.69%
A31: 21 | B31: FMCG | C31: BATAINDIA | D31: 1844.30 | E31: 1853.15 | F31: 1807.55 | G31: 1770.80 | H31: 1725.20 | I31: 1889.90 | J31: 1935.50 | K31: 1972.25 | L31: 1898.75 | M31: 1816.4 | N31: 2122450 | O31: -4.69%
A32: 22 | B32: Capital_Goods | C32: BEL | D32: 86.10 | E32: 85.82 | F32: 84.98 | G32: 83.87 | H32: 83.03 | I32: 86.93 | J32: 87.77 | K32: 88.88 | L32: 86.65 | M32: 84.7 | N32: 57618000 | O32: -1.46%
A33: 23 | B33: FMCG | C33: BERGEPAINT | D33: 572.50 | E33: 573.43 | F33: 567.07 | G33: 561.63 | H33: 555.27 | I33: 578.87 | J33: 585.23 | K33: 590.67 | L33: 579.8 | M33: 568 | N33: 8027800 | O33: -0.76%
A34: 24 | B34: Automobile | C34: BHARATFORG | D34: 515.60 | E34: 514.10 | F34: 509.85 | G34: 504.10 | H34: 499.85 | I34: 519.85 | J34: 524.10 | K34: 529.85 | L34: 518.35 | M34: 508.35 | N34: 7755800 | O34: 1.79%
A35: 25 | B35: Telecom | C35: BHARTIARTL | D35: 541.15 | E35: 543.12 | F35: 537.38 | G35: 533.62 | H35: 527.88 | I35: 546.88 | J35: 552.62 | K35: 556.38 | L35: 548.85 | M35: 539.35 | N35: 53258823 | O35: -0.70%
A36: 26 | B36: Capital_Goods | C36: BHEL | D36: 39.75 | E36: 39.70 | F36: 39.25 | G36: 38.75 | H36: 38.30 | I36: 40.20 | J36: 40.65 | K36: 41.15 | L36: 40.15 | M36: 39.2 | N36: 90677600 | O36: 0.65%
A37: 27 | B37: Pharma | C37: BIOCON | D37: 308.85 | E37: 304.62 | F37: 297.43 | G37: 286.02 | H37: 278.83 | I37: 316.03 | J37: 323.22 | K37: 334.63 | L37: 311.8 | M37: 293.2 | N37: 14386500 | O37: 3.89%
A38: 28 | B38: Automobile | C38: BOSCHLTD | D38: 14251.65 | E38: 14176.70 | F38: 14054.95 | G38: 13858.25 | H38: 13736.50 | I38: 14373.40 | J38: 14495.15 | K38: 14691.85 | L38: 14298.45 | M38: 13980 | N38: 147960 | O38: 0.27%
A39: 29 | B39: Oil_Gas | C39: BPCL | D39: 491.75 | E39: 491.27 | F39: 486.78 | G39: 481.82 | H39: 477.33 | I39: 496.23 | J39: 500.72 | K39: 505.68 | L39: 495.75 | M39: 486.3 | N39: 26420400 | O39: 2.17%
A40: 30 | B40: FMCG | C40: BRITANNIA | D40: 3264.20 | E40: 3275.10 | F40: 3240.60 | G40: 3217.00 | H40: 3182.50 | I40: 3298.70 | J40: 3333.20 | K40: 3356.80 | L40: 3309.6 | M40: 3251.5 | N40: 2586400 | O40: 4.59%
A41: 31 | B41: Pharma | C41: CADILAHC | D41: 275.80 | E41: 275.47 | F41: 270.98 | G41: 266.17 | H41: 261.68 | I41: 280.28 | J41: 284.77 | K41: 289.58 | L41: 279.95 | M41: 270.65 | N41: 8153200 | O41: -5.36%
A42: 32 | B42: Banking | C42: CANBK | D42: 190.45 | E42: 190.45 | F42: 187.40 | G42: 184.35 | H42: 181.30 | I42: 193.50 | J42: 196.55 | K42: 199.60 | L42: 193.5 | M42: 187.4 | N42: 21801000 | O42: 4.37%
A43: 33 | B43: Textile | C43: CENTURYTEX | D43: 609.15 | E43: 613.57 | F43: 601.13 | G43: 593.12 | H43: 580.68 | I43: 621.58 | J43: 634.02 | K43: 642.03 | L43: 626 | M43: 605.55 | N43: 4337400 | O43: 0.40%
A44: 34 | B44: Power | C44: CESC | D44: 720.25 | E44: 717.90 | F44: 713.80 | G44: 707.35 | H44: 703.25 | I44: 724.35 | J44: 728.45 | K44: 734.90 | L44: 722 | M44: 711.45 | N44: 1532000 | O44: 3.74%
A45: 35 | B45: Finance | C45: CHOLAFIN | D45: 340.70 | E45: 339.15 | F45: 335.70 | G45: 330.70 | H45: 327.25 | I45: 344.15 | J45: 347.60 | K45: 352.60 | L45: 342.6 | M45: 334.15 | N45: 6497500 | O45: -0.42%
A46: 36 | B46: Pharma | C46: CIPLA | D46: 445.05 | E46: 443.67 | F46: 439.33 | G46: 433.62 | H46: 429.28 | I46: 449.38 | J46: 453.72 | K46: 459.43 | L46: 448 | M46: 437.95 | N46: 14990250 | O46: 6.21%
A47: 37 | B47: Others | C47: COALINDIA | D47: 178.95 | E47: 177.60 | F47: 176.00 | G47: 173.05 | H47: 171.45 | I47: 180.55 | J47: 182.15 | K47: 185.10 | L47: 179.2 | M47: 174.65 | N47: 69957000 | O47: 0.63%
A48: 38 | B48: FMCG | C48: COLPAL | D48: 1376.55 | E48: 1380.53 | F48: 1370.17 | G48: 1363.78 | H48: 1353.42 | I48: 1386.92 | J48: 1397.28 | K48: 1403.67 | L48: 1390.9 | M48: 1374.15 | N48: 2888900 | O48: 0.98%
A49: 39 | B49: Others | C49: CONCOR | D49: 572.95 | E49: 575.82 | F49: 568.33 | G49: 563.72 | H49: 556.23 | I49: 580.43 | J49: 587.92 | K49: 592.53 | L49: 583.3 | M49: 571.2 | N49: 5203227 | O49: 4.49%
A50: 40 | B50: Capital_Goods | C50: CUMMINSIND | D50: 560.00 | E50: 558.93 | F50: 554.62 | G50: 549.23 | H50: 544.92 | I50: 564.32 | J50: 568.63 | K50: 574.02 | L50: 563.25 | M50: 553.55 | N50: 1673100 | O50: 1.47%
A51: 41 | B51: FMCG | C51: DABUR | D51: 514.45 | E51: 513.22 | F51: 508.58 | G51: 502.72 | H51: 498.08 | I51: 519.08 | J51: 523.72 | K51: 529.58 | L51: 517.85 | M51: 507.35 | N51: 13615000 | O51: 1.34%
A52: 42 | B52: Pharma | C52: DIVISLAB | D52: 2074.70 | E52: 2056.05 | F52: 2032.45 | G52: 1990.20 | H52: 1966.60 | I52: 2098.30 | J52: 2121.90 | K52: 2164.15 | L52: 2079.65 | M52: 2013.8 | N52: 1770000 | O52: 8.80%
A53: 43 | B53: Realty | C53: DLF | D53: 235.65 | E53: 238.55 | F53: 231.75 | G53: 227.85 | H53: 221.05 | I53: 242.45 | J53: 249.25 | K53: 253.15 | L53: 245.35 | M53: 234.65 | N53: 34409100 | O53: 6.37%
A54: 44 | B54: Pharma | C54: DRREDDY | D54: 3180.65 | E54: 3175.88 | F54: 3155.72 | G54: 3130.78 | H54: 3110.62 | I54: 3200.82 | J54: 3220.98 | K54: 3245.92 | L54: 3196.05 | M54: 3150.95 | N54: 2893750 | O54: 3.88%
A55: 45 | B55: Automobile | C55: EICHERMOT | D55: 19754.55 | E55: 20001.88 | F55: 19403.77 | G55: 19052.98 | H55: 18454.87 | I55: 20352.67 | J55: 20950.78 | K55: 21301.57 | L55: 20600 | M55: 19651.1 | N55: 253200 | O55: 0.74%
A56: 46 | B56: Finance | C56: EQUITAS | D56: 115.90 | E56: 115.12 | F56: 113.98 | G56: 112.07 | H56: 110.93 | I56: 117.03 | J56: 118.17 | K56: 120.08 | L56: 116.25 | M56: 113.2 | N56: 18953200 | O56: -2.98%
A57: 47 | B57: Automobile | C57: ESCORTS | D57: 867.15 | E57: 861.90 | F57: 849.90 | G57: 832.65 | H57: 820.65 | I57: 879.15 | J57: 891.15 | K57: 908.40 | L57: 873.9 | M57: 844.65 | N57: 4816900 | O57: 4.71%
A58: 48 | B58: Automobile | C58: EXIDEIND | D58: 182.40 | E58: 183.08 | F58: 180.82 | G58: 179.23 | H58: 176.97 | I58: 184.67 | J58: 186.93 | K58: 188.52 | L58: 185.35 | M58: 181.5 | N58: 11327400 | O58: 2.36%
A59: 49 | B59: Banking | C59: FEDERALBNK | D59: 91.65 | E59: 92.23 | F59: 90.77 | G59: 89.88 | H59: 88.42 | I59: 93.12 | J59: 94.58 | K59: 95.47 | L59: 93.7 | M59: 91.35 | N59: 61558000 | O59: 4.14%
A60: 50 | B60: Oil_Gas | C60: GAIL | D60: 120.20 | E60: 120.33 | F60: 119.17 | G60: 118.13 | H60: 116.97 | I60: 121.37 | J60: 122.53 | K60: 123.57 | L60: 121.5 | M60: 119.3 | N60: 46549818 | O60: 1.93%
A61: 51 | B61: Pharma | C61: GLENMARK | D61: 327.70 | E61: 325.33 | F61: 321.37 | G61: 315.03 | H61: 311.07 | I61: 331.67 | J61: 335.63 | K61: 341.97 | L61: 329.3 | M61: 319 | N61: 8337000 | O61: 1.74%
A62: 52 | B62: Infrastructure | C62: GMRINFRA | D62: 23.55 | E62: 23.47 | F62: 23.28 | G62: 23.02 | H62: 22.83 | I62: 23.73 | J62: 23.92 | K62: 24.18 | L62: 23.65 | M62: 23.2 | N62: 168030000 | O62: -0.88%
A63: 53 | B63: FMCG | C63: GODREJCP | D63: 649.65 | E63: 651.95 | F63: 644.55 | G63: 639.45 | H63: 632.05 | I63: 657.05 | J63: 664.45 | K63: 669.55 | L63: 659.35 | M63: 646.85 | N63: 6480000 | O63: 8.36%
A64: 54 | B64: Cement | C64: GRASIM | D64: 790.85 | E64: 794.78 | F64: 785.12 | G64: 779.38 | H64: 769.72 | I64: 800.52 | J64: 810.18 | K64: 815.92 | L64: 804.45 | M64: 789.05 | N64: 23917500 | O64: 0.98%
A65: 55 | B65: Others | C65: HAVELLS | D65: 630.00 | E65: 630.13 | F65: 626.37 | G65: 622.73 | H65: 618.97 | I65: 633.77 | J65: 637.53 | K65: 641.17 | L65: 633.9 | M65: 626.5 | N65: 7056000 | O65: -0.79%
A66: 56 | B66: Technology | C66: HCLTECH | D66: 607.75 | E66: 605.63 | F66: 602.12 | G66: 596.48 | H66: 592.97 | I66: 611.27 | J66: 614.78 | K66: 620.42 | L66: 609.15 | M66: 600 | N66: 22891400 | O66: -0.27%
A67: 57 | B67: Finance | C67: HDFC | D67: 2415.00 | E67: 2426.15 | F67: 2397.30 | G67: 2379.60 | H67: 2350.75 | I67: 2443.85 | J67: 2472.70 | K67: 2490.40 | L67: 2455 | M67: 2408.45 | N67: 32822500 | O67: 0.15%
A68: 58 | B68: Banking | C68: HDFCBANK | D68: 1242.50 | E68: 1240.70 | F68: 1233.90 | G68: 1225.30 | H68: 1218.50 | I68: 1249.30 | J68: 1256.10 | K68: 1264.70 | L68: 1247.5 | M68: 1232.1 | N68: 32384000 | O68: 0.82%
A69: 59 | B69: Automobile | C69: HEROMOTOCO | D69: 2383.05 | E69: 2391.40 | F69: 2352.65 | G69: 2322.25 | H69: 2283.50 | I69: 2421.80 | J69: 2460.55 | K69: 2490.95 | L69: 2430.15 | M69: 2361 | N69: 3442600 | O69: -3.66%
A70: 60 | B70: Metals | C70: HINDALCO | D70: 197.45 | E70: 196.57 | F70: 194.33 | G70: 191.22 | H70: 188.98 | I70: 199.68 | J70: 201.92 | K70: 205.03 | L70: 198.8 | M70: 193.45 | N70: 48475000 | O70: -0.68%
A71: 61 | B71: Oil_Gas | C71: HINDPETRO | D71: 240.55 | E71: 239.88 | F71: 236.87 | G71: 233.18 | H71: 230.17 | I71: 243.57 | J71: 246.58 | K71: 250.27 | L71: 242.9 | M71: 236.2 | N71: 17371200 | O71: -2.26%
A72: 62 | B72: FMCG | C72: HINDUNILVR | D72: 2165.95 | E72: 2162.38 | F72: 2150.82 | G72: 2135.68 | H72: 2124.12 | I72: 2177.52 | J72: 2189.08 | K72: 2204.22 | L72: 2173.95 | M72: 2147.25 | N72: 10494300 | O72: 0.62%
A73: 63 | B73: Finance | C73: IBULHSGFIN | D73: 315.20 | E73: 314.67 | F73: 306.13 | G73: 297.07 | H73: 288.53 | I73: 323.73 | J73: 332.27 | K73: 341.33 | L73: 323.2 | M73: 305.6 | N73: 24657600 | O73: -5.43%
A74: 64 | B74: Banking | C74: ICICIBANK | D74: 537.45 | E74: 538.80 | F74: 535.25 | G74: 533.05 | H74: 529.50 | I74: 541.00 | J74: 544.55 | K74: 546.75 | L74: 542.35 | M74: 536.6 | N74: 103244625 | O74: 1.42%
A75: 65 | B75: Finance | C75: ICICIPRULI | D75: 494.20 | E75: 494.52 | F75: 485.28 | G75: 476.37 | H75: 467.13 | I75: 503.43 | J75: 512.67 | K75: 521.58 | L75: 503.75 | M75: 485.6 | N75: 9177000 | O75: 0.64%
A76: 66 | B76: Telecom | C76: IDEA | D76: 5.30 | E76: 5.27 | F76: 5.13 | G76: 4.97 | H76: 4.83 | I76: 5.43 | J76: 5.57 | K76: 5.73 | L76: 5.4 | M76: 5.1 | N76: 473536000 | O76: 9.37%
A77: 67 | B77: Banking | C77: IDFCFIRSTB | D77: 42.10 | E77: 42.08 | F77: 41.77 | G77: 41.43 | H77: 41.12 | I77: 42.42 | J77: 42.73 | K77: 43.07 | L77: 42.4 | M77: 41.75 | N77: 226968000 | O77: 0.46%
A78: 68 | B78: Oil_Gas | C78: IGL | D78: 512.45 | E78: 516.83 | F78: 499.87 | G78: 487.28 | H78: 470.32 | I78: 529.42 | J78: 546.38 | K78: 558.97 | L78: 533.8 | M78: 504.25 | N78: 8442500 | O78: -0.55%
A79: 69 | B79: Others | C79: INDIGO | D79: 1398.60 | E79: 1398.22 | F79: 1384.98 | G79: 1371.37 | H79: 1358.13 | I79: 1411.83 | J79: 1425.07 | K79: 1438.68 | L79: 1411.45 | M79: 1384.6 | N79: 3487200 | O79: 0.64%
A80: 70 | B80: Banking | C80: INDUSINDBK | D80: 1303.80 | E80: 1316.38 | F80: 1284.77 | G80: 1265.73 | H80: 1234.12 | I80: 1335.42 | J80: 1367.03 | K80: 1386.07 | L80: 1348 | M80: 1297.35 | N80: 14365600 | O80: 2.65%
A81: 71 | B81: Telecom | C81: INFRATEL | D81: 247.85 | E81: 246.42 | F81: 243.48 | G81: 239.12 | H81: 236.18 | I81: 250.78 | J81: 253.72 | K81: 258.08 | L81: 249.35 | M81: 242.05 | N81: 11770000 | O81: -0.10%
A82: 72 | B82: Technology | C82: INFY | D82: 780.30 | E82: 778.58 | F82: 775.72 | G82: 771.13 | H82: 768.27 | I82: 783.17 | J82: 786.03 | K82: 790.62 | L82: 781.45 | M82: 774 | N82: 32656800 | O82: 1.04%
A83: 73 | B83: Oil_Gas | C83: IOC | D83: 117.25 | E83: 116.72 | F83: 115.63 | G83: 114.02 | H83: 112.93 | I83: 118.33 | J83: 119.42 | K83: 121.03 | L83: 117.8 | M83: 115.1 | N83: 54520000 | O83: 0.41%
A84: 74 | B84: FMCG | C84: ITC | D84: 214.20 | E84: 214.58 | F84: 213.27 | G84: 212.33 | H84: 211.02 | I84: 215.52 | J84: 216.83 | K84: 217.77 | L84: 215.9 | M84: 213.65 | N84: 141525600 | O84: 0.86%
A85: 75 | B85: Metals | C85: JINDALSTEL | D85: 198.65 | E85: 198.97 | F85: 195.03 | G85: 191.42 | H85: 187.48 | I85: 202.58 | J85: 206.52 | K85: 210.13 | L85: 202.9 | M85: 195.35 | N85: 33265000 | O85: 0.68%
A86: 76 | B86: Metals | C86: JSWSTEEL | D86: 279.85 | E86: 277.92 | F86: 275.03 | G86: 270.22 | H86: 267.33 | I86: 282.73 | J86: 285.62 | K86: 290.43 | L86: 280.8 | M86: 273.1 | N86: 62157500 | O86: -0.39%
A87: 77 | B87: Others | C87: JUBLFOOD | D87: 1905.35 | E87: 1892.48 | F87: 1869.17 | G87: 1832.98 | H87: 1809.67 | I87: 1928.67 | J87: 1951.98 | K87: 1988.17 | L87: 1915.8 | M87: 1856.3 | N87: 2483500 | O87: 4.37%
A88: 78 | B88: Others | C88: JUSTDIAL | D88: 535.95 | E88: 535.47 | F88: 528.98 | G88: 522.02 | H88: 515.53 | I88: 542.43 | J88: 548.92 | K88: 555.88 | L88: 541.95 | M88: 528.5 | N88: 2629200 | O88: -2.85%
A89: 79 | B89: Banking | C89: KOTAKBANK | D89: 1660.20 | E89: 1663.17 | F89: 1647.78 | G89: 1635.37 | H89: 1619.98 | I89: 1675.58 | J89: 1690.97 | K89: 1703.38 | L89: 1678.55 | M89: 1650.75 | N89: 8858800 | O89: 6.95%
A90: 80 | B90: Finance | C90: L&TFH | D90: 132.00 | E90: 130.95 | F90: 129.05 | G90: 126.10 | H90: 124.20 | I90: 133.90 | J90: 135.80 | K90: 138.75 | L90: 132.85 | M90: 128 | N90: 28806400 | O90: -5.16%
A91: 81 | B91: Finance | C91: LICHSGFIN | D91: 443.35 | E91: 441.35 | F91: 436.40 | G91: 429.45 | H91: 424.50 | I91: 448.30 | J91: 453.25 | K91: 460.20 | L91: 446.3 | M91: 434.4 | N91: 12442300 | O91: -3.79%
A92: 82 | B92: Capital_Goods | C92: LT | D92: 1304.20 | E92: 1307.23 | F92: 1298.47 | G92: 1292.73 | H92: 1283.97 | I92: 1312.97 | J92: 1321.73 | K92: 1327.47 | L92: 1316 | M92: 1301.5 | N92: 20474625 | O92: 2.34%
A93: 83 | B93: Pharma | C93: LUPIN | D93: 707.00 | E93: 706.50 | F93: 696.90 | G93: 686.80 | H93: 677.20 | I93: 716.60 | J93: 726.20 | K93: 736.30 | L93: 716.1 | M93: 696.4 | N93: 8746500 | O93: 1.77%
A94: 84 | B94: Automobile | C94: M&M | D94: 571.40 | E94: 572.30 | F94: 562.35 | G94: 553.30 | H94: 543.35 | I94: 581.35 | J94: 591.30 | K94: 600.35 | L94: 582.25 | M94: 563.25 | N94: 22926000 | O94: 3.55%
A95: 85 | B95: Finance | C95: M&MFIN | D95: 399.70 | E95: 396.75 | F95: 391.00 | G95: 382.30 | H95: 376.55 | I95: 405.45 | J95: 411.20 | K95: 419.90 | L95: 402.5 | M95: 388.05 | N95: 14860800 | O95: 2.20%
A96: 86 | B96: Finance | C96: MANAPPURAM | D96: 167.60 | E96: 168.38 | F96: 165.77 | G96: 163.93 | H96: 161.32 | I96: 170.22 | J96: 172.83 | K96: 174.67 | L96: 171 | M96: 166.55 | N96: 35076000 | O96: 0.58%
A97: 87 | B97: FMCG | C97: MARICO | D97: 312.80 | E97: 311.82 | F97: 306.78 | G97: 300.77 | H97: 295.73 | I97: 317.83 | J97: 322.87 | K97: 328.88 | L97: 316.85 | M97: 305.8 | N97: 15154100 | O97: -0.86%
A98: 88 | B98: Automobile | C98: MARUTI | D98: 6998.10 | E98: 7003.68 | F98: 6945.52 | G98: 6892.93 | H98: 6834.77 | I98: 7056.27 | J98: 7114.43 | K98: 7167.02 | L98: 7061.85 | M98: 6951.1 | N98: 3190200 | O98: 1.41%
A99: 89 | B99: FMCG | C99: MCDOWELL-N | D99: 676.40 | E99: 673.08 | F99: 654.32 | G99: 632.23 | H99: 613.47 | I99: 695.17 | J99: 713.93 | K99: 736.02 | L99: 691.85 | M99: 651 | N99: 13235000 | O99: -0.11%
A100: 90 | B100: Finance | C100: MFSL | D100: 481.35 | E100: 483.87 | F100: 477.58 | G100: 473.82 | H100: 467.53 | I100: 487.63 | J100: 493.92 | K100: 497.68 | L100: 490.15 | M100: 480.1 | N100: 5153200 | O100: -1.47%
A101: 91 | B101: Oil_Gas | C101: MGL | D101: 1188.90 | E101: 1190.98 | F101: 1172.97 | G101: 1157.03 | H101: 1139.02 | I101: 1206.92 | J101: 1224.93 | K101: 1240.87 | L101: 1209 | M101: 1175.05 | N101: 2194800 | O101: -6.56%
A102: 92 | B102: Technology | C102: MINDTREE | D102: 925.65 | E102: 916.35 | F102: 903.80 | G102: 881.95 | H102: 869.40 | I102: 938.20 | J102: 950.75 | K102: 972.60 | L102: 928.9 | M102: 894.5 | N102: 946400 | O102: -1.83%
A103: 93 | B103: Automobile | C103: MOTHERSUMI | D103: 132.60 | E103: 133.93 | F103: 130.37 | G103: 128.13 | H103: 124.57 | I103: 136.17 | J103: 139.73 | K103: 141.97 | L103: 137.5 | M103: 131.7 | N103: 20760000 | O103: 6.30%
A104: 94 | B104: Automobile | C104: MRF | D104: 70962.80 | E104: 71238.98 | F104: 70423.82 | G104: 69884.83 | H104: 69069.67 | I104: 71777.97 | J104: 72593.13 | K104: 73132.12 | L104: 72054.15 | M104: 70700 | N104: 21570 | O104: 9.55%
A105: 95 | B105: Finance | C105: MUTHOOTFIN | D105: 761.25 | E105: 761.53 | F105: 755.62 | G105: 749.98 | H105: 744.07 | I105: 767.17 | J105: 773.08 | K105: 778.72 | L105: 767.45 | M105: 755.9 | N105: 5089500 | O105: 1.04%
A106: 96 | B106: Metals | C106: NATIONALUM | D106: 45.10 | E106: 44.70 | F106: 44.20 | G106: 43.30 | H106: 42.80 | I106: 45.60 | J106: 46.10 | K106: 47.00 | L106: 45.2 | M106: 43.8 | N106: 37755900 | O106: -0.92%
A107: 97 | B107: Infrastructure | C107: NCC | D107: 51.40 | E107: 52.07 | F107: 50.18 | G107: 48.97 | H107: 47.08 | I107: 53.28 | J107: 55.17 | K107: 56.38 | L107: 53.95 | M107: 50.85 | N107: 50184000 | O107: 5.05%
A108: 98 | B108: FMCG | C108: NESTLEIND | D108: 16377.80 | E108: 16345.35 | F108: 16251.75 | G108: 16125.70 | H108: 16032.10 | I108: 16471.40 | J108: 16565.00 | K108: 16691.05 | L108: 16438.95 | M108: 16219.3 | N108: 507750 | O108: 1.69%
A109: 99 | B109: Technology | C109: NIITTECH | D109: 1891.75 | E109: 1905.43 | F109: 1868.42 | G109: 1845.08 | H109: 1808.07 | I109: 1928.77 | J109: 1965.78 | K109: 1989.12 | L109: 1942.45 | M109: 1882.1 | N109: 793500 | O109: 2.12%
A110: 100 | B110: Metals | C110: NMDC | D110: 108.90 | E110: 108.17 | F110: 105.88 | G110: 102.87 | H110: 100.58 | I110: 111.18 | J110: 113.47 | K110: 116.48 | L110: 110.45 | M110: 105.15 | N110: 44406000 | O110: 2.81%
A111: 101 | B111: Power | C111: NTPC | D111: 111.55 | E111: 110.77 | F111: 109.63 | G111: 107.72 | H111: 106.58 | I111: 112.68 | J111: 113.82 | K111: 115.73 | L111: 111.9 | M111: 108.85 | N111: 153067200 | O111: -4.47%
A112: 102 | B112: Oil_Gas | C112: OIL | D112: 130.10 | E112: 128.45 | F112: 126.40 | G112: 122.70 | H112: 120.65 | I112: 132.15 | J112: 134.20 | K112: 137.90 | L112: 130.5 | M112: 124.75 | N112: 14700675 | O112: 1.41%
A113: 103 | B113: Oil_Gas | C113: ONGC | D113: 105.15 | E113: 104.37 | F113: 102.98 | G113: 100.82 | H113: 99.43 | I113: 106.53 | J113: 107.92 | K113: 110.08 | L113: 105.75 | M113: 102.2 | N113: 113184600 | O113: 0.64%
A114: 104 | B114: Textile | C114: PAGEIND | D114: 23723.90 | E114: 23765.32 | F114: 23468.63 | G114: 23213.37 | H114: 22916.68 | I114: 24020.58 | J114: 24317.27 | K114: 24572.53 | L114: 24062 | M114: 23510.05 | N114: 140050 | O114: 2.11%
A115: 105 | B115: Pharma | C115: PEL | D115: 1601.15 | E115: 1605.05 | F115: 1565.10 | G115: 1529.05 | H115: 1489.10 | I115: 1641.10 | J115: 1681.05 | K115: 1717.10 | L115: 1645 | M115: 1569 | N115: 4140291 | O115: -1.44%
A116: 106 | B116: Oil_Gas | C116: PETRONET | D116: 273.75 | E116: 273.88 | F116: 271.07 | G116: 268.38 | H116: 265.57 | I116: 276.57 | J116: 279.38 | K116: 282.07 | L116: 276.7 | M116: 271.2 | N116: 20037000 | O116: 6.35%
A117: 107 | B117: Finance | C117: PFC | D117: 125.20 | E117: 124.67 | F117: 123.43 | G117: 121.67 | H117: 120.43 | I117: 126.43 | J117: 127.67 | K117: 129.43 | L117: 125.9 | M117: 122.9 | N117: 33368400 | O117: -1.64%
A118: 108 | B118: FMCG | C118: PIDILITIND | D118: 1564.60 | E118: 1564.82 | F118: 1547.83 | G118: 1531.07 | H118: 1514.08 | I118: 1581.58 | J118: 1598.57 | K118: 1615.33 | L118: 1581.8 | M118: 1548.05 | N118: 2248000 | O118: 0.42%
A119: 109 | B119: Banking | C119: PNB | D119: 59.10 | E119: 59.02 | F119: 58.38 | G119: 57.67 | H119: 57.03 | I119: 59.73 | J119: 60.37 | K119: 61.08 | L119: 59.65 | M119: 58.3 | N119: 121370900 | O119: 0.34%
A120: 110 | B120: Power | C120: POWERGRID | D120: 186.20 | E120: 185.25 | F120: 183.75 | G120: 181.30 | H120: 179.80 | I120: 187.70 | J120: 189.20 | K120: 191.65 | L120: 186.75 | M120: 182.8 | N120: 82564000 | O120: 1.01%
A121: 111 | B121: Media | C121: PVR | D121: 2064.80 | E121: 2061.52 | F121: 2044.63 | G121: 2024.47 | H121: 2007.58 | I121: 2081.68 | J121: 2098.57 | K121: 2118.73 | L121: 2078.4 | M121: 2041.35 | N121: 1196000 | O121: 2.93%
A122: 112 | B122: Cement | C122: RAMCOCEM | D122: 796.25 | E122: 798.70 | F122: 790.40 | G122: 784.55 | H122: 776.25 | I122: 804.55 | J122: 812.85 | K122: 818.70 | L122: 807 | M122: 792.85 | N122: 1746400 | O122: -1.67%
A123: 113 | B123: Banking | C123: RBLBANK | D123: 339.35 | E123: 336.35 | F123: 331.80 | G123: 324.25 | H123: 319.70 | I123: 343.90 | J123: 348.45 | K123: 356.00 | L123: 340.9 | M123: 328.8 | N123: 14268000 | O123: -6.67%
A124: 114 | B124: Power | C124: RECLTD | D124: 155.50 | E124: 154.52 | F124: 152.93 | G124: 150.37 | H124: 148.78 | I124: 157.08 | J124: 158.67 | K124: 161.23 | L124: 156.1 | M124: 151.95 | N124: 26406000 | O124: 0.02%
A125: 115 | B125: Oil_Gas | C125: RELIANCE | D125: 1438.10 | E125: 1440.88 | F125: 1428.77 | G125: 1419.43 | H125: 1407.32 | I125: 1450.22 | J125: 1462.33 | K125: 1471.67 | L125: 1453 | M125: 1431.55 | N125: 42417000 | O125: 1.87%
A126: 116 | B126: Metals | C126: SAIL | D126: 48.70 | E126: 48.75 | F126: 48.15 | G126: 47.60 | H126: 47.00 | I126: 49.30 | J126: 49.90 | K126: 50.45 | L126: 49.35 | M126: 48.2 | N126: 80446800 | O126: -0.08%
A127: 117 | B127: Banking | C127: SBIN | D127: 321.50 | E127: 321.88 | F127: 318.37 | G127: 315.23 | H127: 311.72 | I127: 325.02 | J127: 328.53 | K127: 331.67 | L127: 325.4 | M127: 318.75 | N127: 120588000 | O127: 1.44%
A128: 118 | B128: Cement | C128: SHREECEM | D128: 24942.40 | E128: 25029.80 | F128: 24707.60 | G128: 24472.80 | H128: 24150.60 | I128: 25264.60 | J128: 25586.80 | K128: 25821.60 | L128: 25352 | M128: 24795 | N128: 163200 | O128: 0.90%
A129: 119 | B129: Capital_Goods | C129: SIEMENS | D129: 1509.00 | E129: 1505.88 | F129: 1493.72 | G129: 1478.43 | H129: 1466.27 | I129: 1521.17 | J129: 1533.33 | K129: 1548.62 | L129: 1518.05 | M129: 1490.6 | N129: 1943150 | O129: 1.52%
A130: 120 | B130: Textile | C130: SRF | D130: 4098.30 | E130: 4065.83 | F130: 4024.97 | G130: 3951.63 | H130: 3910.77 | I130: 4139.17 | J130: 4180.03 | K130: 4253.37 | L130: 4106.7 | M130: 3992.5 | N130: 896250 | O130: 6.32%
A131: 121 | B131: Finance | C131: SRTRANSFIN | D131: 1210.45 | E131: 1203.67 | F131: 1188.33 | G131: 1166.22 | H131: 1150.88 | I131: 1225.78 | J131: 1241.12 | K131: 1263.23 | L131: 1219 | M131: 1181.55 | N131: 5176200 | O131: 2.76%
A132: 122 | B132: Pharma | C132: SUNPHARMA | D132: 429.15 | E132: 429.80 | F132: 420.75 | G132: 412.35 | H132: 403.30 | I132: 438.20 | J132: 447.25 | K132: 455.65 | L132: 438.85 | M132: 421.4 | N132: 67557500 | O132: -0.58%
A133: 123 | B133: Media | C133: SUNTV | D133: 484.05 | E133: 485.83 | F133: 476.67 | G133: 469.28 | H133: 460.12 | I133: 493.22 | J133: 502.38 | K133: 509.77 | L133: 495 | M133: 478.45 | N133: 6876000 | O133: -2.25%
A134: 124 | B134: Fertilisers | C134: TATACHEM | D134: 764.75 | E134: 764.17 | F134: 756.13 | G134: 747.52 | H134: 739.48 | I134: 772.78 | J134: 780.82 | K134: 789.43 | L134: 772.2 | M134: 755.55 | N134: 3740400 | O134: -2.81%
A135: 125 | B135: FMCG | C135: TATAGLOBAL | D135: 397.15 | E135: 398.05 | F135: 391.10 | G135: 385.05 | H135: 378.10 | I135: 404.10 | J135: 411.05 | K135: 417.10 | L135: 405 | M135: 392 | N135: 14812200 | O135: 3.51%
A136: 126 | B136: Automobile | C136: TATAMOTORS | D136: 173.95 | E136: 175.20 | F136: 172.00 | G136: 170.05 | H136: 166.85 | I136: 177.15 | J136: 180.35 | K136: 182.30 | L136: 178.4 | M136: 173.25 | N136: 74867300 | O136: 3.80%
A137: 127 | B137: Power | C137: TATAPOWER | D137: 58.00 | E137: 57.87 | F137: 57.48 | G137: 56.97 | H137: 56.58 | I137: 58.38 | J137: 58.77 | K137: 59.28 | L137: 58.25 | M137: 57.35 | N137: 70452000 | O137: -1.40%
A138: 128 | B138: Metals | C138: TATASTEEL | D138: 472.50 | E138: 474.32 | F138: 468.18 | G138: 463.87 | H138: 457.73 | I138: 478.63 | J138: 484.77 | K138: 489.08 | L138: 480.45 | M138: 470 | N138: 22210500 | O138: 0.58%
A139: 129 | B139: Technology | C139: TCS | D139: 2138.30 | E139: 2135.72 | F139: 2121.43 | G139: 2104.57 | H139: 2090.28 | I139: 2152.58 | J139: 2166.87 | K139: 2183.73 | L139: 2150 | M139: 2118.85 | N139: 14052750 | O139: 0.91%
A140: 130 | B140: Technology | C140: TECHM | D140: 824.55 | E140: 821.53 | F140: 817.57 | G140: 810.58 | H140: 806.62 | I140: 828.52 | J140: 832.48 | K140: 839.47 | L140: 825.5 | M140: 814.55 | N140: 14929200 | O140: -0.76%
A141: 131 | B141: FMCG | C141: TITAN | D141: 1275.35 | E141: 1271.83 | F141: 1263.67 | G141: 1251.98 | H141: 1243.82 | I141: 1283.52 | J141: 1291.68 | K141: 1303.37 | L141: 1280 | M141: 1260.15 | N141: 8877750 | O141: -2.26%
A142: 132 | B142: Pharma | C142: TORNTPHARM | D142: 2025.65 | E142: 2016.98 | F142: 1998.67 | G142: 1971.68 | H142: 1953.37 | I142: 2043.97 | J142: 2062.28 | K142: 2089.27 | L142: 2035.3 | M142: 1990 | N142: 341500 | O142: 4.75%
A143: 133 | B143: Power | C143: TORNTPOWER | D143: 302.50 | E143: 303.23 | F143: 299.57 | G143: 296.63 | H143: 292.97 | I143: 306.17 | J143: 309.83 | K143: 312.77 | L143: 306.9 | M143: 300.3 | N143: 4503000 | O143: 4.67%
A144: 134 | B144: Automobile | C144: TVSMOTOR | D144: 464.60 | E144: 467.77 | F144: 459.83 | G144: 455.07 | H144: 447.13 | I144: 472.53 | J144: 480.47 | K144: 485.23 | L144: 475.7 | M144: 463 | N144: 4283550 | O144: -1.21%
A145: 135 | B145: FMCG | C145: UBL | D145: 1324.60 | E145: 1325.30 | F145: 1300.60 | G145: 1276.60 | H145: 1251.90 | I145: 1349.30 | J145: 1374.00 | K145: 1398.00 | L145: 1350 | M145: 1301.3 | N145: 2224600 | O145: 3.96%
A146: 136 | B146: Finance | C146: UJJIVAN | D146: 405.50 | E146: 406.15 | F146: 401.35 | G146: 397.20 | H146: 392.40 | I146: 410.30 | J146: 415.10 | K146: 419.25 | L146: 410.95 | M146: 402 | N146: 6978500 | O146: -2.24%
A147: 137 | B147: Cement | C147: ULTRACEMCO | D147: 4482.05 | E147: 4502.82 | F147: 4442.63 | G147: 4403.22 | H147: 4343.03 | I147: 4542.23 | J147: 4602.42 | K147: 4641.83 | L147: 4563 | M147: 4463.4 | N147: 2720000 | O147: 0.83%
A148: 138 | B148: Fertilisers | C148: UPL | D148: 544.60 | E148: 546.80 | F148: 537.20 | G148: 529.80 | H148: 520.20 | I148: 554.20 | J148: 563.80 | K148: 571.20 | L148: 556.4 | M148: 539.4 | N148: 16665300 | O148: 5.70%
A149: 139 | B149: Metals | C149: VEDL | D149: 144.75 | E149: 144.17 | F149: 142.53 | G149: 140.32 | H149: 138.68 | I149: 146.38 | J149: 148.02 | K149: 150.23 | L149: 145.8 | M149: 141.95 | N149: 91210000 | O149: -0.50%
A150: 140 | B150: Capital_Goods | C150: VOLTAS | D150: 701.50 | E150: 693.67 | F150: 679.33 | G150: 657.17 | H150: 642.83 | I150: 715.83 | J150: 730.17 | K150: 752.33 | L150: 708 | M150: 671.5 | N150: 4537000 | O150: -3.30%
A151: 141 | B151: Technology | C151: WIPRO | D151: 243.85 | E151: 243.82 | F151: 242.68 | G151: 241.52 | H151: 240.38 | I151: 244.98 | J151: 246.12 | K151: 247.28 | L151: 244.95 | M151: 242.65 | N151: 22700800 | O151: -1.03%
A152: 142 | B152: Banking | C152: YESBANK | D152: 35.35 | E152: 34.97 | F152: 33.58 | G152: 31.82 | H152: 30.43 | I152: 36.73 | J152: 38.12 | K152: 39.88 | L152: 36.35 | M152: 33.2 | N152: 295178400 | O152: -0.89%
A153: 143 | B153: Media | C153: ZEEL | D153: 250.50 | E153: 246.48 | F153: 241.02 | G153: 231.53 | H153: 226.07 | I153: 255.97 | J153: 261.43 | K153: 270.92 | L153: 251.95 | M153: 237 | N153: 29557900 | O153: -0.70%
A154: 144
A155: 145
A156: 146
A157: 147
A175: Pivot Point: This is trigger point for intra day buy/sell based on the price range of the previous day
A176: As per the tool,the trader should take BUY position just above Pivot and keep the stop loss of pivot point and the first target would be Resistance 1(R1)
A177: If R1 is crossed then R2 becomes the next target with stop loss of at R1
A178: Similarly if price goes below pivot point then the trader should sell and keep a stop loss of pivot point and the first target would be S1
A179: If S1 is crossed then S2 becomes the next target with stop loss of at S1
A181: Disclaimer:
A182: This document has been prepared by the Retail Research Desk of Asit C Mehta
A183: Investment Intermediates Ltd. and is meant for use of the recipient only
A184: and is not for circulation. This document is not to be reported or
A185: copied or made available to others. It should not be considered to be
A186: taken as an offer to sell or a solicitation to buy any security. The
A187: information contained herein is from sources believed reliable. We do
A188: not represent that it is accurate or complete and it should not be
A189: relied upon as such. We may from time to time have positions in and buy
A190: and sell securities referred to herein

Sheet Cash Intra
M5: Back to Main Page
A6: FOR INTRA DAY TRADING | K6: =Main!B10 -> 2020-02-10
A8: Sr.no | B8: Scrip | C8: CLOSE RATE | D8: Pivot Point | E8: Supports | H8: Resistances
C9: Point | E9: S1 | F9: S2 | G9: S3 | H9: R1 | I9: R2 | J9: R3 | K9: HIGH | L9: LOW | M9: Total Trade Quanity in Lakhs
A10: 1 | B10: Nifty 50 | C10: 12098.35 | D10: 12109.00 | E10: 12063.30 | F10: 12028.25 | G10: 11982.55 | H10: 12144.05 | I10: 12189.75 | J10: 12224.80 | K10: 12154.7 | L10: 12073.95
A11: 2 | B11: Nifty Bank | C11: 31201.95 | D11: 31227.07 | E11: 31085.93 | F11: 30969.92 | G11: 30828.78 | H11: 31343.08 | I11: 31484.22 | J11: 31600.23 | K11: 31368.2 | L11: 31111.05
A12: 3 | B12: Nifty CPSE | C12: 1724.2 | D12: 1715.53 | E12: 1702.92 | F12: 1681.63 | G12: 1669.02 | H12: 1736.82 | I12: 1749.43 | J12: 1770.72 | K12: 1728.15 | L12: 1694.25
A13: 4 | B13: Nifty Infra | C13: 3292.8 | D13: 3298.95 | E13: 3280.70 | F13: 3268.60 | G13: 3250.35 | H13: 3311.05 | I13: 3329.30 | J13: 3341.40 | K13: 3317.2 | L13: 3286.85
A14: 5 | B14: Nifty IT | C14: 16470.15 | D14: 16448.60 | E14: 16403.95 | F14: 16337.75 | G14: 16293.10 | H14: 16514.80 | I14: 16559.45 | J14: 16625.65 | K14: 16493.25 | L14: 16382.4
A15: 6 | B15: Nifty PSE | C15: 3097 | D15: 3085.87 | E15: 3069.13 | F15: 3041.27 | G15: 3024.53 | H15: 3113.73 | I15: 3130.47 | J15: 3158.33 | K15: 3102.6 | L15: 3058
A16: 7 | B16: Nifty Midcap 50 | C16: 5015.45 | D16: 5009.07 | E16: 4993.53 | F16: 4971.62 | G16: 4956.08 | H16: 5030.98 | I16: 5046.52 | J16: 5068.43 | K16: 5024.6 | L16: 4987.15
A17: 8 | B17: ACC | C17: 1502.7 | D17: 1501.43 | E17: 1489.37 | F17: 1476.03 | G17: 1463.97 | H17: 1514.77 | I17: 1526.83 | J17: 1540.17 | K17: 1513.5 | L17: 1488.1 | M17: 5.14199
A18: 9 | B18: AUBANK | C18: 1128.1 | D18: 1118.75 | E18: 1089.90 | F18: 1051.70 | G18: 1022.85 | H18: 1156.95 | I18: 1185.80 | J18: 1224.00 | K18: 1147.6 | L18: 1080.55 | M18: 4.21839
A19: 10 | B19: ADANIPORTS | C19: 369.55 | D19: 370.15 | E19: 366.60 | F19: 363.65 | G19: 360.10 | H19: 373.10 | I19: 376.65 | J19: 379.60 | K19: 373.7 | L19: 367.2 | M19: 29.12256
A20: 11 | B20: ADANIPOWER | C20: 60.85 | D20: 60.95 | E20: 60.10 | F20: 59.35 | G20: 58.50 | H20: 61.70 | I20: 62.55 | J20: 63.30 | K20: 61.8 | L20: 60.2 | M20: 57.54033
A21: 12 | B21: ABCAPITAL | C21: 94.8 | D21: 95.40 | E21: 93.80 | F21: 92.80 | G21: 91.20 | H21: 96.40 | I21: 98.00 | J21: 99.00 | K21: 97 | L21: 94.4 | M21: 21.59998
A22: 13 | B22: ABFRL | C22: 260.95 | D22: 258.63 | E22: 253.32 | F22: 245.68 | G22: 240.37 | H22: 266.27 | I22: 271.58 | J22: 279.22 | K22: 263.95 | L22: 251 | M22: 2.71489
A23: 14 | B23: AJANTPHARM | C23: 1369.45 | D23: 1359.10 | E23: 1319.40 | F23: 1269.35 | G23: 1229.65 | H23: 1409.15 | I23: 1448.85 | J23: 1498.90 | K23: 1398.8 | L23: 1309.05 | M23: 0.73403
A24: 15 | B24: ALKEM | C24: 2502.5 | D24: 2470.17 | E24: 2382.33 | F24: 2262.17 | G24: 2174.33 | H24: 2590.33 | I24: 2678.17 | J24: 2798.33 | K24: 2558 | L24: 2350 | M24: 1.31984
A25: 16 | B25: AMARAJABAT | C25: 786.1 | D25: 784.43 | E25: 779.67 | F25: 773.23 | G25: 768.47 | H25: 790.87 | I25: 795.63 | J25: 802.07 | K25: 789.2 | L25: 778 | M25: 5.92956
A26: 17 | B26: AMBUJACEM | C26: 209.8 | D26: 209.65 | E26: 207.30 | F26: 204.80 | G26: 202.45 | H26: 212.15 | I26: 214.50 | J26: 217.00 | K26: 212 | L26: 207.15 | M26: 29.06515
A27: 18 | B27: APOLLOHOSP | C27: 1663.15 | D27: 1656.55 | E27: 1634.60 | F27: 1606.05 | G27: 1584.10 | H27: 1685.10 | I27: 1707.05 | J27: 1735.60 | K27: 1678.5 | L27: 1628 | M27: 3.77299
A28: 19 | B28: APOLLOTYRE | C28: 164 | D28: 164.73 | E28: 162.77 | F28: 161.53 | G28: 159.57 | H28: 165.97 | I28: 167.93 | J28: 169.17 | K28: 166.7 | L28: 163.5 | M28: 20.59074
A29: 20 | B29: ASHOKLEY | C29: 83.75 | D29: 82.53 | E29: 81.02 | F29: 78.28 | G29: 76.77 | H29: 85.27 | I29: 86.78 | J29: 89.52 | K29: 84.05 | L29: 79.8 | M29: 119.77376
A30: 21 | B30: ASIANPAINT | C30: 1858.7 | D30: 1861.93 | E30: 1847.37 | F30: 1836.03 | G30: 1821.47 | H30: 1873.27 | I30: 1887.83 | J30: 1899.17 | K30: 1876.5 | L30: 1850.6 | M30: 11.69614
A31: 22 | B31: AUROPHARMA | C31: 546.55 | D31: 537.95 | E31: 522.35 | F31: 498.15 | G31: 482.55 | H31: 562.15 | I31: 577.75 | J31: 601.95 | K31: 553.55 | L31: 513.75 | M31: 31.79653
A32: 23 | B32: DMART | C32: 2287.2 | D32: 2295.73 | E32: 2261.47 | F32: 2235.73 | G32: 2201.47 | H32: 2321.47 | I32: 2355.73 | J32: 2381.47 | K32: 2330 | L32: 2270 | M32: 15.72997
A33: 24 | B33: AXISBANK | C33: 748.15 | D33: 743.78 | E33: 738.37 | F33: 728.58 | G33: 723.17 | H33: 753.57 | I33: 758.98 | J33: 768.77 | K33: 749.2 | L33: 734 | M33: 83.45819
A34: 25 | B34: BAJAJ-AUTO | C34: 3134.85 | D34: 3143.48 | E34: 3097.97 | F34: 3061.08 | G34: 3015.57 | H34: 3180.37 | I34: 3225.88 | J34: 3262.77 | K34: 3189 | L34: 3106.6 | M34: 11.41144
A35: 26 | B35: BAJFINANCE | C35: 4654.3 | D35: 4655.77 | E35: 4624.63 | F35: 4594.97 | G35: 4563.83 | H35: 4685.43 | I35: 4716.57 | J35: 4746.23 | K35: 4686.9 | L35: 4626.1 | M35: 17.36927
A36: 27 | B36: BAJAJFINSV | C36: 9623.3 | D36: 9619.33 | E36: 9565.02 | F36: 9506.73 | G36: 9452.42 | H36: 9677.62 | I36: 9731.93 | J36: 9790.22 | K36: 9673.65 | L36: 9561.05 | M36: 3.29541
A37: 28 | B37: BAJAJHLDNG | C37: 3783 | D37: 3799.67 | E37: 3754.33 | F37: 3725.67 | G37: 3680.33 | H37: 3828.33 | I37: 3873.67 | J37: 3902.33 | K37: 3845 | L37: 3771 | M37: 0.80743
A38: 29 | B38: BALKRISIND | C38: 1101.05 | D38: 1103.48 | E38: 1088.57 | F38: 1076.08 | G38: 1061.17 | H38: 1115.97 | I38: 1130.88 | J38: 1143.37 | K38: 1118.4 | L38: 1091 | M38: 2.71802
A39: 30 | B39: BANDHANBNK | C39: 442.7 | D39: 438.67 | E39: 429.48 | F39: 416.27 | G39: 407.08 | H39: 451.88 | I39: 461.07 | J39: 474.28 | K39: 447.85 | L39: 425.45 | M39: 27.62309
A40: 31 | B40: BANKBARODA | C40: 92.05 | D40: 91.68 | E40: 90.62 | F40: 89.18 | G40: 88.12 | H40: 93.12 | I40: 94.18 | J40: 95.62 | K40: 92.75 | L40: 90.25 | M40: 224.98038
A41: 32 | B41: BANKINDIA | C41: 64.75 | D41: 64.90 | E41: 64.10 | F41: 63.45 | G41: 62.65 | H41: 65.55 | I41: 66.35 | J41: 67.00 | K41: 65.7 | L41: 64.25 | M41: 67.267
A42: 33 | B42: BATAINDIA | C42: 1842.45 | D42: 1850.18 | E42: 1804.92 | F42: 1767.38 | G42: 1722.12 | H42: 1887.72 | I42: 1932.98 | J42: 1970.52 | K42: 1895.45 | L42: 1812.65 | M42: 2.78726
A43: 34 | B43: BERGEPAINT | C43: 570.85 | D43: 573.28 | E43: 564.72 | F43: 558.58 | G43: 550.02 | H43: 579.42 | I43: 587.98 | J43: 594.12 | K43: 581.85 | L43: 567.15 | M43: 12.10461
A44: 35 | B44: BEL | C44: 87.55 | D44: 87.25 | E44: 86.50 | F44: 85.45 | G44: 84.70 | H44: 88.30 | I44: 89.05 | J44: 90.10 | K44: 88 | L44: 86.2 | M44: 565.82665
A45: 36 | B45: BHARATFORG | C45: 518 | D45: 515.50 | E45: 511.15 | F45: 504.30 | G45: 499.95 | H45: 522.35 | I45: 526.70 | J45: 533.55 | K45: 519.85 | L45: 508.65 | M45: 7.00915
A46: 37 | B46: BHEL | C46: 39.8 | D46: 39.77 | E46: 39.23 | F46: 38.67 | G46: 38.13 | H46: 40.33 | I46: 40.87 | J46: 41.43 | K46: 40.3 | L46: 39.2 | M46: 140.87306
A47: 38 | B47: BPCL | C47: 491.4 | D47: 491.00 | E47: 486.40 | F47: 481.40 | G47: 476.80 | H47: 496.00 | I47: 500.60 | J47: 505.60 | K47: 495.6 | L47: 486 | M47: 69.46475
A48: 39 | B48: BHARTIARTL | C48: 539.45 | D48: 542.23 | E48: 535.47 | F48: 531.48 | G48: 524.72 | H48: 546.22 | I48: 552.98 | J48: 556.97 | K48: 549 | L48: 538.25 | M48: 180.17965
A49: 40 | B49: INFRATEL | C49: 247.8 | D49: 246.40 | E49: 243.80 | F49: 239.80 | G49: 237.20 | H49: 250.40 | I49: 253.00 | J49: 257.00 | K49: 249 | L49: 242.4 | M49: 58.11965
A50: 41 | B50: BIOCON | C50: 308.9 | D50: 304.80 | E50: 298.10 | F50: 287.30 | G50: 280.60 | H50: 315.60 | I50: 322.30 | J50: 333.10 | K50: 311.5 | L50: 294 | M50: 19.49668
A51: 42 | B51: BBTC | C51: 1132.2 | D51: 1137.87 | E51: 1121.33 | F51: 1110.47 | G51: 1093.93 | H51: 1148.73 | I51: 1165.27 | J51: 1176.13 | K51: 1154.4 | L51: 1127 | M51: 0.58867
A52: 43 | B52: BOSCHLTD | C52: 14194.05 | D52: 14118.90 | E52: 13987.80 | F52: 13781.55 | G52: 13650.45 | H52: 14325.15 | I52: 14456.25 | J52: 14662.50 | K52: 14250 | L52: 13912.65 | M52: 0.24677
A53: 44 | B53: BRITANNIA | C53: 3251.4 | D53: 3261.50 | E53: 3227.00 | F53: 3202.60 | G53: 3168.10 | H53: 3285.90 | I53: 3320.40 | J53: 3344.80 | K53: 3296 | L53: 3237.1 | M53: 4.6885
A54: 45 | B54: CESC | C54: 730.9 | D54: 728.63 | E54: 724.07 | F54: 717.23 | G54: 712.67 | H54: 735.47 | I54: 740.03 | J54: 746.87 | K54: 733.2 | L54: 721.8 | M54: 3.39974
A55: 46 | B55: CADILAHC | C55: 275.2 | D55: 274.92 | E55: 270.83 | F55: 266.47 | G55: 262.38 | H55: 279.28 | I55: 283.37 | J55: 287.73 | K55: 279 | L55: 270.55 | M55: 11.03855
A56: 47 | B56: CANBK | C56: 190 | D56: 190.02 | E56: 186.88 | F56: 183.77 | G56: 180.63 | H56: 193.13 | I56: 196.27 | J56: 199.38 | K56: 193.15 | L56: 186.9 | M56: 70.14346
A57: 48 | B57: CASTROLIND | C57: 145.3 | D57: 147.08 | E57: 142.47 | F57: 139.63 | G57: 135.02 | H57: 149.92 | I57: 154.53 | J57: 157.37 | K57: 151.7 | L57: 144.25 | M57: 34.61075
A58: 49 | B58: CHOLAFIN | C58: 339.95 | D58: 338.38 | E58: 334.32 | F58: 328.68 | G58: 324.62 | H58: 344.02 | I58: 348.08 | J58: 353.72 | K58: 342.45 | L58: 332.75 | M58: 16.87153
A59: 50 | B59: CIPLA | C59: 443.2 | D59: 442.13 | E59: 438.37 | F59: 433.53 | G59: 429.77 | H59: 446.97 | I59: 450.73 | J59: 455.57 | K59: 445.9 | L59: 437.3 | M59: 21.84609
A60: 51 | B60: CUB | C60: 235.45 | D60: 235.58 | E60: 232.02 | F60: 228.58 | G60: 225.02 | H60: 239.02 | I60: 242.58 | J60: 246.02 | K60: 239.15 | L60: 232.15 | M60: 10.62871
A61: 52 | B61: COALINDIA | C61: 185.05 | D61: 183.07 | E61: 180.08 | F61: 175.12 | G61: 172.13 | H61: 188.03 | I61: 191.02 | J61: 195.98 | K61: 186.05 | L61: 178.1 | M61: 352.81395
A62: 53 | B62: COLPAL | C62: 1370.65 | D62: 1376.92 | E62: 1360.58 | F62: 1350.52 | G62: 1334.18 | H62: 1386.98 | I62: 1403.32 | J62: 1413.38 | K62: 1393.25 | L62: 1366.85 | M62: 24.53672
A63: 54 | B63: CONCOR | C63: 575.2 | D63: 578.85 | E63: 569.35 | F63: 563.50 | G63: 554.00 | H63: 584.70 | I63: 594.20 | J63: 600.05 | K63: 588.35 | L63: 573 | M63: 6.92547
A64: 55 | B64: COROMANDEL | C64: 619.6 | D64: 620.03 | E64: 612.22 | F64: 604.83 | G64: 597.02 | H64: 627.42 | I64: 635.23 | J64: 642.62 | K64: 627.85 | L64: 612.65 | M64: 7.17405
A65: 56 | B65: CROMPTON | C65: 284.65 | D65: 283.55 | E65: 278.10 | F65: 271.55 | G65: 266.10 | H65: 290.10 | I65: 295.55 | J65: 302.10 | K65: 289 | L65: 277 | M65: 30.8845
A66: 57 | B66: CUMMINSIND | C66: 558.05 | D66: 558.03 | E66: 552.17 | F66: 546.28 | G66: 540.42 | H66: 563.92 | I66: 569.78 | J66: 575.67 | K66: 563.9 | L66: 552.15 | M66: 9.9194
A67: 58 | B67: DLF | C67: 235.8 | D67: 239.15 | E67: 231.40 | F67: 227.00 | G67: 219.25 | H67: 243.55 | I67: 251.30 | J67: 255.70 | K67: 246.9 | L67: 234.75 | M67: 108.10838
A68: 59 | B68: DABUR | C68: 513.65 | D68: 512.58 | E68: 507.47 | F68: 501.28 | G68: 496.17 | H68: 518.77 | I68: 523.88 | J68: 530.07 | K68: 517.7 | L68: 506.4 | M68: 74.62427
A69: 60 | B69: DALBHARAT | C69: 888.3 | D69: 891.38 | E69: 878.77 | F69: 869.23 | G69: 856.62 | H69: 900.92 | I69: 913.53 | J69: 923.07 | K69: 904 | L69: 881.85 | M69: 1.62129
A70: 61 | B70: DIVISLAB | C70: 2085.95 | D70: 2063.98 | E70: 2032.97 | F70: 1979.98 | G70: 1948.97 | H70: 2116.97 | I70: 2147.98 | J70: 2200.97 | K70: 2095 | L70: 2011 | M70: 3.22232
A71: 62 | B71: DRREDDY | C71: 3166.7 | D71: 3162.90 | E71: 3140.80 | F71: 3114.90 | G71: 3092.80 | H71: 3188.80 | I71: 3210.90 | J71: 3236.80 | K71: 3185 | L71: 3137 | M71: 6.68235
A72: 63 | B72: EDELWEISS | C72: 90.95 | D72: 91.82 | E72: 89.13 | F72: 87.32 | G72: 84.63 | H72: 93.63 | I72: 96.32 | J72: 98.13 | K72: 94.5 | L72: 90 | M72: 7.90032
A73: 64 | B73: EICHERMOT | C73: 19736.3 | D73: 19973.32 | E73: 19429.68 | F73: 19123.07 | G73: 18579.43 | H73: 20279.93 | I73: 20823.57 | J73: 21130.18 | K73: 20516.95 | L73: 19666.7 | M73: 1.02123
A74: 65 | B74: EMAMILTD | C74: 300.3 | D74: 303.08 | E74: 294.32 | F74: 288.33 | G74: 279.57 | H74: 309.07 | I74: 317.83 | J74: 323.82 | K74: 311.85 | L74: 297.1 | M74: 25.57313
A75: 66 | B75: ENDURANCE | C75: 1077.1 | D75: 1090.73 | E75: 1056.47 | F75: 1035.83 | G75: 1001.57 | H75: 1111.37 | I75: 1145.63 | J75: 1166.27 | K75: 1125 | L75: 1070.1 | M75: 0.47896
A76: 67 | B76: ENGINERSIN | C76: 91.95 | D76: 92.62 | E76: 91.13 | F76: 90.32 | G76: 88.83 | H76: 93.43 | I76: 94.92 | J76: 95.73 | K76: 94.1 | L76: 91.8 | M76: 17.04006
A77: 68 | B77: ESCORTS | C77: 867.9 | D77: 861.75 | E77: 849.25 | F77: 830.60 | G77: 818.10 | H77: 880.40 | I77: 892.90 | J77: 911.55 | K77: 874.25 | L77: 843.1 | M77: 70.11082
A78: 69 | B78: EXIDEIND | C78: 182.05 | D78: 182.73 | E78: 180.57 | F78: 179.08 | G78: 176.92 | H78: 184.22 | I78: 186.38 | J78: 187.87 | K78: 184.9 | L78: 181.25 | M78: 14.66191
A79: 70 | B79: FEDERALBNK | C79: 91.25 | D79: 91.88 | E79: 90.32 | F79: 89.38 | G79: 87.82 | H79: 92.82 | I79: 94.38 | J79: 95.32 | K79: 93.45 | L79: 90.95 | M79: 102.70614
A80: 71 | B80: FORTIS | C80: 163.65 | D80: 162.30 | E80: 155.60 | F80: 147.55 | G80: 140.85 | H80: 170.35 | I80: 177.05 | J80: 185.10 | K80: 169 | L80: 154.25 | M80: 19.33119
A81: 72 | B81: FCONSUMER | C81: 22.35 | D81: 22.42 | E81: 22.13 | F81: 21.92 | G81: 21.63 | H81: 22.63 | I81: 22.92 | J81: 23.13 | K81: 22.7 | L81: 22.2 | M81: 15.70645
A82: 73 | B82: FRETAIL | C82: 339.5 | D82: 341.23 | E82: 333.57 | F82: 327.63 | G82: 319.97 | H82: 347.17 | I82: 354.83 | J82: 360.77 | K82: 348.9 | L82: 335.3 | M82: 10.27307
A83: 74 | B83: GAIL | C83: 123 | D83: 123.25 | E83: 121.90 | F83: 120.80 | G83: 119.45 | H83: 124.35 | I83: 125.70 | J83: 126.80 | K83: 124.6 | L83: 122.15 | M83: 153.91445
A84: 75 | B84: GMRINFRA | C84: 23.5 | D84: 23.45 | E84: 23.25 | F84: 23.00 | G84: 22.80 | H84: 23.70 | I84: 23.90 | J84: 24.15 | K84: 23.65 | L84: 23.2 | M84: 105.71558
A85: 76 | B85: GICRE | C85: 272 | D85: 266.48 | E85: 258.17 | F85: 244.33 | G85: 236.02 | H85: 280.32 | I85: 288.63 | J85: 302.47 | K85: 274.8 | L85: 252.65 | M85: 2.09376
A86: 77 | B86: GLENMARK | C86: 326.45 | D86: 324.62 | E86: 319.98 | F86: 313.52 | G86: 308.88 | H86: 331.08 | I86: 335.72 | J86: 342.18 | K86: 329.25 | L86: 318.15 | M86: 26.37001
A87: 78 | B87: GODREJAGRO | C87: 561.5 | D87: 562.33 | E87: 555.12 | F87: 548.73 | G87: 541.52 | H87: 568.72 | I87: 575.93 | J87: 582.32 | K87: 569.55 | L87: 555.95 | M87: 0.4871
A88: 79 | B88: GODREJCP | C88: 646.8 | D88: 649.75 | E88: 642.55 | F88: 638.30 | G88: 631.10 | H88: 654.00 | I88: 661.20 | J88: 665.45 | K88: 656.95 | L88: 645.5 | M88: 18.59249
A89: 80 | B89: GODREJIND | C89: 431.9 | D89: 431.05 | E89: 426.90 | F89: 421.90 | G89: 417.75 | H89: 436.05 | I89: 440.20 | J89: 445.20 | K89: 435.2 | L89: 426.05 | M89: 0.88259
A90: 81 | B90: GODREJPROP | C90: 1168.8 | D90: 1168.30 | E90: 1153.90 | F90: 1139.00 | G90: 1124.60 | H90: 1183.20 | I90: 1197.60 | J90: 1212.50 | K90: 1182.7 | L90: 1153.4 | M90: 1.78002
A91: 82 | B91: GRAPHITE | C91: 318.8 | D91: 316.98 | E91: 312.22 | F91: 305.63 | G91: 300.87 | H91: 323.57 | I91: 328.33 | J91: 334.92 | K91: 321.75 | L91: 310.4 | M91: 8.51755
A92: 83 | B92: GRASIM | C92: 787.65 | D92: 792.27 | E92: 780.93 | F92: 774.22 | G92: 762.88 | H92: 798.98 | I92: 810.32 | J92: 817.03 | K92: 803.6 | L92: 785.55 | M92: 12.99292
A93: 84 | B93: GSPL | C93: 245.5 | D93: 245.68 | E93: 243.87 | F93: 242.23 | G93: 240.42 | H93: 247.32 | I93: 249.13 | J93: 250.77 | K93: 247.5 | L93: 244.05 | M93: 4.26398
A94: 85 | B94: HEG | C94: 1225.6 | D94: 1208.90 | E94: 1169.80 | F94: 1114.00 | G94: 1074.90 | H94: 1264.70 | I94: 1303.80 | J94: 1359.60 | K94: 1248 | L94: 1153.1 | M94: 1.68582
A95: 86 | B95: HCLTECH | C95: 607.7 | D95: 605.35 | E95: 601.50 | F95: 595.30 | G95: 591.45 | H95: 611.55 | I95: 615.40 | J95: 621.60 | K95: 609.2 | L95: 599.15 | M95: 35.90768
A96: 87 | B96: HDFCAMC | C96: 3313.9 | D96: 3328.42 | E96: 3278.63 | F96: 3243.37 | G96: 3193.58 | H96: 3363.68 | I96: 3413.47 | J96: 3448.73 | K96: 3378.2 | L96: 3293.15 | M96: 1.96125
A97: 88 | B97: HDFCBANK | C97: 1242.2 | D97: 1240.27 | E97: 1233.53 | F97: 1224.87 | G97: 1218.13 | H97: 1248.93 | I97: 1255.67 | J97: 1264.33 | K97: 1247 | L97: 1231.6 | M97: 55.89134
A98: 89 | B98: HDFCLIFE | C98: 595.7 | D98: 594.90 | E98: 589.80 | F98: 583.90 | G98: 578.80 | H98: 600.80 | I98: 605.90 | J98: 611.80 | K98: 600 | L98: 589 | M98: 12.60667
A99: 90 | B99: HAVELLS | C99: 630 | D99: 630.30 | E99: 626.20 | F99: 622.40 | G99: 618.30 | H99: 634.10 | I99: 638.20 | J99: 642.00 | K99: 634.4 | L99: 626.5 | M99: 11.71667
A100: 91 | B100: HEROMOTOCO | C100: 2443.45 | D100: 2453.60 | E100: 2411.20 | F100: 2378.95 | G100: 2336.55 | H100: 2485.85 | I100: 2528.25 | J100: 2560.50 | K100: 2496 | L100: 2421.35 | M100: 5.74957
A101: 92 | B101: HEXAWARE | C101: 377.4 | D101: 374.88 | E101: 370.87 | F101: 364.33 | G101: 360.32 | H101: 381.42 | I101: 385.43 | J101: 391.97 | K101: 378.9 | L101: 368.35 | M101: 3.23817
A102: 93 | B102: HINDALCO | C102: 197.4 | D102: 196.22 | E102: 194.03 | F102: 190.67 | G102: 188.48 | H102: 199.58 | I102: 201.77 | J102: 205.13 | K102: 198.4 | L102: 192.85 | M102: 60.08376
A103: 94 | B103: HINDPETRO | C103: 241.05 | D103: 240.35 | E103: 237.30 | F103: 233.55 | G103: 230.50 | H103: 244.10 | I103: 247.15 | J103: 250.90 | K103: 243.4 | L103: 236.6 | M103: 45.95587
A104: 95 | B104: HINDUNILVR | C104: 2159.95 | D104: 2157.85 | E104: 2143.70 | F104: 2127.45 | G104: 2113.30 | H104: 2174.10 | I104: 2188.25 | J104: 2204.50 | K104: 2172 | L104: 2141.6 | M104: 19.30834
A105: 96 | B105: HINDZINC | C105: 195.05 | D105: 194.45 | E105: 193.30 | F105: 191.55 | G105: 190.40 | H105: 196.20 | I105: 197.35 | J105: 199.10 | K105: 195.6 | L105: 192.7 | M105: 7.24986
A106: 97 | B106: HUDCO | C106: 38.3 | D106: 38.50 | E106: 37.90 | F106: 37.50 | G106: 36.90 | H106: 38.90 | I106: 39.50 | J106: 39.90 | K106: 39.1 | L106: 38.1 | M106: 10.06963
A107: 98 | B107: HDFC | C107: 2405.65 | D107: 2418.77 | E107: 2385.23 | F107: 2364.82 | G107: 2331.28 | H107: 2439.18 | I107: 2472.72 | J107: 2493.13 | K107: 2452.3 | L107: 2398.35 | M107: 28.28509
A108: 99 | B108: ICICIBANK | C108: 536.45 | D108: 537.78 | E108: 533.82 | F108: 531.18 | G108: 527.22 | H108: 540.42 | I108: 544.38 | J108: 547.02 | K108: 541.75 | L108: 535.15 | M108: 162.92578
A109: 100 | B109: ICICIGI | C109: 1381.7 | D109: 1381.57 | E109: 1365.13 | F109: 1348.57 | G109: 1332.13 | H109: 1398.13 | I109: 1414.57 | J109: 1431.13 | K109: 1398 | L109: 1365 | M109: 2.01621
A110: 101 | B110: ICICIPRULI | C110: 495.5 | D110: 495.03 | E110: 484.92 | F110: 474.33 | G110: 464.22 | H110: 505.62 | I110: 515.73 | J110: 526.32 | K110: 505.15 | L110: 484.45 | M110: 10.53162
A111: 102 | B111: IDBI | C111: 36.25 | D111: 36.07 | E111: 34.58 | F111: 32.92 | G111: 31.43 | H111: 37.73 | I111: 39.22 | J111: 40.88 | K111: 37.55 | L111: 34.4 | M111: 6.52812
A112: 103 | B112: IDFCFIRSTB | C112: 42 | D112: 42.00 | E112: 41.65 | F112: 41.30 | G112: 40.95 | H112: 42.35 | I112: 42.70 | J112: 43.05 | K112: 42.35 | L112: 41.65 | M112: 209.67183
A113: 104 | B113: ITC | C113: 213.4 | D113: 213.95 | E113: 212.20 | F113: 211.00 | G113: 209.25 | H113: 215.15 | I113: 216.90 | J113: 218.10 | K113: 215.7 | L113: 212.75 | M113: 184.5588
A114: 105 | B114: IBULHSGFIN | C114: 321.4 | D114: 320.67 | E114: 312.33 | F114: 303.27 | G114: 294.93 | H114: 329.73 | I114: 338.07 | J114: 347.13 | K114: 329 | L114: 311.6 | M114: 169.75776
A115: 106 | B115: IBVENTURES | C115: 172.45 | D115: 172.95 | E115: 168.60 | F115: 164.75 | G115: 160.40 | H115: 176.80 | I115: 181.15 | J115: 185.00 | K115: 177.3 | L115: 169.1 | M115: 38.76523
A116: 107 | B116: INDIANB | C116: 96.55 | D116: 97.00 | E116: 95.60 | F116: 94.65 | G116: 93.25 | H116: 97.95 | I116: 99.35 | J116: 100.30 | K116: 98.4 | L116: 96.05 | M116: 14.06266
A117: 108 | B117: INDHOTEL | C117: 140.15 | D117: 140.78 | E117: 138.77 | F117: 137.38 | G117: 135.37 | H117: 142.17 | I117: 144.18 | J117: 145.57 | K117: 142.8 | L117: 139.4 | M117: 7.1894
A118: 109 | B118: IOC | C118: 117.5 | D118: 116.75 | E118: 115.75 | F118: 114.00 | G118: 113.00 | H118: 118.50 | I118: 119.50 | J118: 121.25 | K118: 117.75 | L118: 115 | M118: 367.42641
A119: 110 | B119: IGL | C119: 511.1 | D119: 516.12 | E119: 498.03 | F119: 484.97 | G119: 466.88 | H119: 529.18 | I119: 547.27 | J119: 560.33 | K119: 534.2 | L119: 503.05 | M119: 21.83118
A120: 111 | B120: INDUSINDBK | C120: 1298.8 | D120: 1313.20 | E120: 1280.35 | F120: 1261.90 | G120: 1229.05 | H120: 1331.65 | I120: 1364.50 | J120: 1382.95 | K120: 1346.05 | L120: 1294.75 | M120: 83.91172
A121: 112 | B121: NAUKRI | C121: 3078.3 | D121: 3082.77 | E121: 3035.53 | F121: 2992.77 | G121: 2945.53 | H121: 3125.53 | I121: 3172.77 | J121: 3215.53 | K121: 3130 | L121: 3040 | M121: 2.45742
A122: 113 | B122: INFY | C122: 777.3 | D122: 775.72 | E122: 772.58 | F122: 767.87 | G122: 764.73 | H122: 780.43 | I122: 783.57 | J122: 788.28 | K122: 778.85 | L122: 771 | M122: 60.92028
A123: 114 | B123: INDIGO | C123: 1400.15 | D123: 1401.53 | E123: 1390.07 | F123: 1379.98 | G123: 1368.52 | H123: 1411.62 | I123: 1423.08 | J123: 1433.17 | K123: 1413 | L123: 1391.45 | M123: 18.09304
A124: 115 | B124: IPCALAB | C124: 1260.95 | D124: 1252.45 | E124: 1235.90 | F124: 1210.85 | G124: 1194.30 | H124: 1277.50 | I124: 1294.05 | J124: 1319.10 | K124: 1269 | L124: 1227.4 | M124: 0.82039
A125: 116 | B125: JSWENERGY | C125: 65.35 | D125: 64.57 | E125: 62.88 | F125: 60.42 | G125: 58.73 | H125: 67.03 | I125: 68.72 | J125: 71.18 | K125: 66.25 | L125: 62.1 | M125: 3.42262
A126: 117 | B126: JSWSTEEL | C126: 279.3 | D126: 277.35 | E126: 274.70 | F126: 270.10 | G126: 267.45 | H126: 281.95 | I126: 284.60 | J126: 289.20 | K126: 280 | L126: 272.75 | M126: 63.29214
A127: 118 | B127: JINDALSTEL | C127: 197.8 | D127: 198.28 | E127: 194.32 | F127: 190.83 | G127: 186.87 | H127: 201.77 | I127: 205.73 | J127: 209.22 | K127: 202.25 | L127: 194.8 | M127: 152.07085
A128: 119 | B128: JUBLFOOD | C128: 1902.15 | D128: 1887.52 | E128: 1863.03 | F128: 1823.92 | G128: 1799.43 | H128: 1926.63 | I128: 1951.12 | J128: 1990.23 | K128: 1912 | L128: 1848.4 | M128: 22.23606
A129: 120 | B129: JUBILANT | C129: 554.3 | D129: 560.15 | E129: 545.15 | F129: 536.00 | G129: 521.00 | H129: 569.30 | I129: 584.30 | J129: 593.45 | K129: 575.15 | L129: 551 | M129: 4.33124
A130: 121 | B130: KOTAKBANK | C130: 1653.05 | D130: 1658.33 | E130: 1638.72 | F130: 1624.38 | G130: 1604.77 | H130: 1672.67 | I130: 1692.28 | J130: 1706.62 | K130: 1677.95 | L130: 1644 | M130: 94.95046
A131: 122 | B131: L&TFH | C131: 131.55 | D131: 130.57 | E131: 128.68 | F131: 125.82 | G131: 123.93 | H131: 133.43 | I131: 135.32 | J131: 138.18 | K131: 132.45 | L131: 127.7 | M131: 77.86477
A132: 123 | B132: LTTS | C132: 1687.85 | D132: 1680.28 | E132: 1665.57 | F132: 1643.28 | G132: 1628.57 | H132: 1702.57 | I132: 1717.28 | J132: 1739.57 | K132: 1695 | L132: 1658 | M132: 0.39962
A133: 124 | B133: LICHSGFIN | C133: 441.15 | D133: 440.12 | E133: 434.78 | F133: 428.42 | G133: 423.08 | H133: 446.48 | I133: 451.82 | J133: 458.18 | K133: 445.45 | L133: 433.75 | M133: 75.80796
A134: 125 | B134: LTI | C134: 1944.65 | D134: 1939.88 | E134: 1919.77 | F134: 1894.88 | G134: 1874.77 | H134: 1964.77 | I134: 1984.88 | J134: 2009.77 | K134: 1960 | L134: 1915 | M134: 0.36496
A135: 126 | B135: LT | C135: 1299 | D135: 1303.13 | E135: 1291.87 | F135: 1284.73 | G135: 1273.47 | H135: 1310.27 | I135: 1321.53 | J135: 1328.67 | K135: 1314.4 | L135: 1296 | M135: 39.39306
A136: 127 | B136: LUPIN | C136: 707.6 | D136: 705.62 | E136: 696.98 | F136: 686.37 | G136: 677.73 | H136: 716.23 | I136: 724.87 | J136: 735.48 | K136: 714.25 | L136: 695 | M136: 11.17946
A137: 128 | B137: MRF | C137: 70960.45 | D137: 71077.23 | E137: 70254.47 | F137: 69548.48 | G137: 68725.72 | H137: 71783.22 | I137: 72605.98 | J137: 73311.97 | K137: 71900 | L137: 70371.25 | M137: 0.04805
A138: 129 | B138: MGL | C138: 1198.5 | D138: 1198.65 | E138: 1182.40 | F138: 1166.30 | G138: 1150.05 | H138: 1214.75 | I138: 1231.00 | J138: 1247.10 | K138: 1214.9 | L138: 1182.55 | M138: 13.51299
A139: 130 | B139: M&MFIN | C139: 398.05 | D139: 395.33 | E139: 390.32 | F139: 382.58 | G139: 377.57 | H139: 403.07 | I139: 408.08 | J139: 415.82 | K139: 400.35 | L139: 387.6 | M139: 23.06322
A140: 131 | B140: M&M | C140: 569.1 | D140: 570.63 | E140: 559.77 | F140: 550.43 | G140: 539.57 | H140: 579.97 | I140: 590.83 | J140: 600.17 | K140: 581.5 | L140: 561.3 | M140: 23.52196
A141: 132 | B141: MANAPPURAM | C141: 166.95 | D141: 167.98 | E141: 164.77 | F141: 162.58 | G141: 159.37 | H141: 170.17 | I141: 173.38 | J141: 175.57 | K141: 171.2 | L141: 165.8 | M141: 28.02932
A142: 133 | B142: MRPL | C142: 43.05 | D142: 43.18 | E142: 42.87 | F142: 42.68 | G142: 42.37 | H142: 43.37 | I142: 43.68 | J142: 43.87 | K142: 43.5 | L142: 43 | M142: 8.09305
A143: 134 | B143: MARICO | C143: 311.7 | D143: 310.58 | E143: 305.82 | F143: 299.93 | G143: 295.17 | H143: 316.47 | I143: 321.23 | J143: 327.12 | K143: 315.35 | L143: 304.7 | M143: 69.41813
A144: 135 | B144: MARUTI | C144: 6971.75 | D144: 6985.58 | E144: 6921.17 | F144: 6870.58 | G144: 6806.17 | H144: 7036.17 | I144: 7100.58 | J144: 7151.17 | K144: 7050 | L144: 6935 | M144: 8.68935
A145: 136 | B145: MFSL | C145: 479.65 | D145: 482.13 | E145: 474.27 | F145: 468.88 | G145: 461.02 | H145: 487.52 | I145: 495.38 | J145: 500.77 | K145: 490 | L145: 476.75 | M145: 16.72907
A146: 137 | B146: MINDTREE | C146: 921.8 | D146: 913.03 | E146: 900.12 | F146: 878.43 | G146: 865.52 | H146: 934.72 | I146: 947.63 | J146: 969.32 | K146: 925.95 | L146: 891.35 | M146: 4.76824
A147: 138 | B147: MOTHERSUMI | C147: 132.3 | D147: 133.95 | E147: 130.35 | F147: 128.40 | G147: 124.80 | H147: 135.90 | I147: 139.50 | J147: 141.45 | K147: 137.55 | L147: 132 | M147: 275.35769
A148: 139 | B148: MPHASIS | C148: 937.4 | D148: 937.52 | E148: 918.08 | F148: 898.77 | G148: 879.33 | H148: 956.83 | I148: 976.27 | J148: 995.58 | K148: 956.95 | L148: 918.2 | M148: 0.51751
A149: 140 | B149: MUTHOOTFIN | C149: 760.95 | D149: 761.00 | E149: 755.20 | F149: 749.45 | G149: 743.65 | H149: 766.75 | I149: 772.55 | J149: 778.30 | K149: 766.8 | L149: 755.25 | M149: 5.3477
A150: 141 | B150: NATCOPHARM | C150: 700.85 | D150: 687.95 | E150: 656.90 | F150: 612.95 | G150: 581.90 | H150: 731.90 | I150: 762.95 | J150: 806.90 | K150: 719 | L150: 644 | M150: 0.70644
A151: 142 | B151: NBCC | C151: 32.3 | D151: 32.50 | E151: 31.90 | F151: 31.50 | G151: 30.90 | H151: 32.90 | I151: 33.50 | J151: 33.90 | K151: 33.1 | L151: 32.1 | M151: 131.59247
A152: 143 | B152: NHPC | C152: 24.55 | D152: 24.42 | E152: 24.18 | F152: 23.82 | G152: 23.58 | H152: 24.78 | I152: 25.02 | J152: 25.38 | K152: 24.65 | L152: 24.05 | M152: 169.98025
A153: 144 | B153: NMDC | C153: 113.75 | D153: 113.48 | E153: 111.27 | F153: 108.78 | G153: 106.57 | H153: 115.97 | I153: 118.18 | J153: 120.67 | K153: 115.7 | L153: 111 | M153: 115.54574
A154: 145 | B154: NTPC | C154: 115.6 | D154: 114.72 | E154: 113.18 | F154: 110.77 | G154: 109.23 | H154: 117.13 | I154: 118.67 | J154: 121.08 | K154: 116.25 | L154: 112.3 | M154: 645.18347
A155: 146 | B155: NATIONALUM | C155: 45.1 | D155: 44.72 | E155: 44.18 | F155: 43.27 | G155: 42.73 | H155: 45.63 | I155: 46.17 | J155: 47.08 | K155: 45.25 | L155: 43.8 | M155: 182.52296
A156: 147 | B156: NESTLEIND | C156: 16327.8 | D156: 16302.47 | E156: 16219.93 | F156: 16112.07 | G156: 16029.53 | H156: 16410.33 | I156: 16492.87 | J156: 16600.73 | K156: 16385 | L156: 16194.6 | M156: 0.59649
A157: 148 | B157: OBEROIRLTY | C157: 533.7 | D157: 533.17 | E157: 526.53 | F157: 519.37 | G157: 512.73 | H157: 540.33 | I157: 546.97 | J157: 554.13 | K157: 539.8 | L157: 526 | M157: 1.68229
A158: 149 | B158: ONGC | C158: 109.25 | D158: 108.52 | E158: 107.28 | F158: 105.32 | G158: 104.08 | H158: 110.48 | I158: 111.72 | J158: 113.68 | K158: 109.75 | L158: 106.55 | M158: 833.60147
A159: 150 | B159: OIL | C159: 138.5 | D159: 136.65 | E159: 134.30 | F159: 130.10 | G159: 127.75 | H159: 140.85 | I159: 143.20 | J159: 147.40 | K159: 139 | L159: 132.45 | M159: 95.97439
A160: 151 | B160: OFSS | C160: 2897.35 | D160: 2916.12 | E160: 2864.23 | F160: 2831.12 | G160: 2779.23 | H160: 2949.23 | I160: 3001.12 | J160: 3034.23 | K160: 2968 | L160: 2883 | M160: 0.2199
A161: 152 | B161: PIIND | C161: 1598.5 | D161: 1588.50 | E161: 1562.00 | F161: 1525.50 | G161: 1499.00 | H161: 1625.00 | I161: 1651.50 | J161: 1688.00 | K161: 1615 | L161: 1552 | M161: 3.09452
A162: 153 | B162: PNBHOUSING | C162: 441.2 | D162: 442.87 | E162: 436.33 | F162: 431.47 | G162: 424.93 | H162: 447.73 | I162: 454.27 | J162: 459.13 | K162: 449.4 | L162: 438 | M162: 7.15716
A163: 154 | B163: PAGEIND | C163: 23750.95 | D163: 23898.33 | E163: 23522.67 | F163: 23294.38 | G163: 22918.72 | H163: 24126.62 | I163: 24502.28 | J163: 24730.57 | K163: 24274 | L163: 23670.05 | M163: 0.22781
A164: 155 | B164: PETRONET | C164: 272.65 | D164: 272.90 | E164: 269.80 | F164: 266.95 | G164: 263.85 | H164: 275.75 | I164: 278.85 | J164: 281.70 | K164: 276 | L164: 270.05 | M164: 23.08304
A165: 156 | B165: PFIZER | C165: 4055.85 | D165: 4057.12 | E165: 4015.98 | F165: 3976.12 | G165: 3934.98 | H165: 4096.98 | I165: 4138.12 | J165: 4177.98 | K165: 4098.25 | L165: 4017.25 | M165: 0.12497
A166: 157 | B166: PIDILITIND | C166: 1558.9 | D166: 1559.93 | E166: 1539.97 | F166: 1521.03 | G166: 1501.07 | H166: 1578.87 | I166: 1598.83 | J166: 1617.77 | K166: 1579.9 | L166: 1541 | M166: 7.69665
A167: 158 | B167: PEL | C167: 1600.55 | D167: 1605.97 | E167: 1567.08 | F167: 1533.62 | G167: 1494.73 | H167: 1639.43 | I167: 1678.32 | J167: 1711.78 | K167: 1644.85 | L167: 1572.5 | M167: 29.79765
A168: 159 | B168: PFC | C168: 125.35 | D168: 124.65 | E168: 123.30 | F168: 121.25 | G168: 119.90 | H168: 126.70 | I168: 128.05 | J168: 130.10 | K168: 126 | L168: 122.6 | M168: 94.55973
A169: 160 | B169: POWERGRID | C169: 190.4 | D169: 190.58 | E169: 188.37 | F169: 186.33 | G169: 184.12 | H169: 192.62 | I169: 194.83 | J169: 196.87 | K169: 192.8 | L169: 188.55 | M169: 359.92338
A170: 161 | B170: PRESTIGE | C170: 373.45 | D170: 375.00 | E170: 368.45 | F170: 363.45 | G170: 356.90 | H170: 380.00 | I170: 386.55 | J170: 391.55 | K170: 381.55 | L170: 370 | M170: 3.99518
A171: 162 | B171: PGHH | C171: 11523.65 | D171: 11535.33 | E171: 11376.32 | F171: 11228.98 | G171: 11069.97 | H171: 11682.67 | I171: 11841.68 | J171: 11989.02 | K171: 11694.35 | L171: 11388 | M171: 0.02985
A172: 163 | B172: PNB | C172: 58.8 | D172: 58.78 | E172: 58.17 | F172: 57.53 | G172: 56.92 | H172: 59.42 | I172: 60.03 | J172: 60.67 | K172: 59.4 | L172: 58.15 | M172: 154.49355
A173: 164 | B173: QUESS | C173: 612.05 | D173: 613.55 | E173: 606.00 | F173: 599.95 | G173: 592.40 | H173: 619.60 | I173: 627.15 | J173: 633.20 | K173: 621.1 | L173: 607.5 | M173: 5.40845
A174: 165 | B174: RBLBANK | C174: 339.8 | D174: 336.80 | E174: 331.80 | F174: 323.80 | G174: 318.80 | H174: 344.80 | I174: 349.80 | J174: 357.80 | K174: 341.8 | L174: 328.8 | M174: 58.43485
A175: 166 | B175: RECLTD | C175: 155.05 | D175: 153.95 | E175: 152.40 | F175: 149.75 | G175: 148.20 | H175: 156.60 | I175: 158.15 | J175: 160.80 | K175: 155.5 | L175: 151.3 | M175: 70.38131
A176: 167 | B176: RAJESHEXPO | C176: 702.5 | D176: 704.80 | E176: 698.70 | F176: 694.90 | G176: 688.80 | H176: 708.60 | I176: 714.70 | J176: 718.50 | K176: 710.9 | L176: 701 | M176: 1.23317
A177: 168 | B177: RELIANCE | C177: 1433.65 | D177: 1438.10 | E177: 1423.85 | F177: 1414.05 | G177: 1399.80 | H177: 1447.90 | I177: 1462.15 | J177: 1471.95 | K177: 1452.35 | L177: 1428.3 | M177: 158.86673
A178: 169 | B178: SBILIFE | C178: 947.3 | D178: 939.43 | E178: 923.42 | F178: 899.53 | G178: 883.52 | H178: 963.32 | I178: 979.33 | J178: 1003.22 | K178: 955.45 | L178: 915.55 | M178: 4.4517
A179: 170 | B179: SRF | C179: 4109.9 | D179: 4072.85 | E179: 4021.70 | F179: 3933.50 | G179: 3882.35 | H179: 4161.05 | I179: 4212.20 | J179: 4300.40 | K179: 4124 | L179: 3984.65 | M179: 3.14532
A180: 171 | B180: SHREECEM | C180: 24918.15 | D180: 24991.05 | E180: 24627.10 | F180: 24336.05 | G180: 23972.10 | H180: 25282.10 | I180: 25646.05 | J180: 25937.10 | K180: 25355 | L180: 24700 | M180: 0.26041
A181: 172 | B181: SRTRANSFIN | C181: 1223.1 | D181: 1215.20 | E181: 1201.40 | F181: 1179.70 | G181: 1165.90 | H181: 1236.90 | I181: 1250.70 | J181: 1272.40 | K181: 1229 | L181: 1193.5 | M181: 19.83266
A182: 173 | B182: SIEMENS | C182: 1507.1 | D182: 1502.55 | E182: 1490.10 | F182: 1473.10 | G182: 1460.65 | H182: 1519.55 | I182: 1532.00 | J182: 1549.00 | K182: 1515 | L182: 1485.55 | M182: 3.34263
A183: 174 | B183: SBIN | C183: 320.55 | D183: 321.32 | E183: 317.63 | F183: 314.72 | G183: 311.03 | H183: 324.23 | I183: 327.92 | J183: 330.83 | K183: 325 | L183: 318.4 | M183: 926.56638
A184: 175 | B184: SAIL | C184: 48.65 | D184: 48.72 | E184: 48.13 | F184: 47.62 | G184: 47.03 | H184: 49.23 | I184: 49.82 | J184: 50.33 | K184: 49.3 | L184: 48.2 | M184: 179.54383
A185: 176 | B185: STRTECH | C185: 123.8 | D185: 123.78 | E185: 121.67 | F185: 119.53 | G185: 117.42 | H185: 125.92 | I185: 128.03 | J185: 130.17 | K185: 125.9 | L185: 121.65 | M185: 8.07575
A186: 177 | B186: SUNPHARMA | C186: 430.8 | D186: 431.92 | E186: 422.08 | F186: 413.37 | G186: 403.53 | H186: 440.63 | I186: 450.47 | J186: 459.18 | K186: 441.75 | L186: 423.2 | M186: 37.57229
A187: 178 | B187: SUNTV | C187: 484.6 | D187: 486.73 | E187: 477.32 | F187: 470.03 | G187: 460.62 | H187: 494.02 | I187: 503.43 | J187: 510.72 | K187: 496.15 | L187: 479.45 | M187: 15.5546
A188: 179 | B188: SYNGENE | C188: 314.2 | D188: 315.97 | E188: 310.73 | F188: 307.27 | G188: 302.03 | H188: 319.43 | I188: 324.67 | J188: 328.13 | K188: 321.2 | L188: 312.5 | M188: 0.78761
A189: 180 | B189: TVSMOTOR | C189: 466.2 | D189: 470.30 | E189: 460.65 | F189: 455.10 | G189: 445.45 | H189: 475.85 | I189: 485.50 | J189: 491.05 | K189: 479.95 | L189: 464.75 | M189: 8.43524
A190: 181 | B190: TCS | C190: 2136.55 | D190: 2135.52 | E190: 2120.03 | F190: 2103.52 | G190: 2088.03 | H190: 2152.03 | I190: 2167.52 | J190: 2184.03 | K190: 2151 | L190: 2119 | M190: 32.87223
A191: 182 | B191: TATAGLOBAL | C191: 396.7 | D191: 397.08 | E191: 390.17 | F191: 383.63 | G191: 376.72 | H191: 403.62 | I191: 410.53 | J191: 417.07 | K191: 404 | L191: 390.55 | M191: 26.8123
A192: 183 | B192: TATAMTRDVR | C192: 71.8 | D192: 72.27 | E192: 70.83 | F192: 69.87 | G192: 68.43 | H192: 73.23 | I192: 74.67 | J192: 75.63 | K192: 73.7 | L192: 71.3 | M192: 38.13549
A193: 184 | B193: TATAMOTORS | C193: 173.6 | D193: 174.92 | E193: 171.68 | F193: 169.77 | G193: 166.53 | H193: 176.83 | I193: 180.07 | J193: 181.98 | K193: 178.15 | L193: 173 | M193: 756.21897
A194: 185 | B194: TATAPOWER | C194: 58 | D194: 57.85 | E194: 57.50 | F194: 57.00 | G194: 56.65 | H194: 58.35 | I194: 58.70 | J194: 59.20 | K194: 58.2 | L194: 57.35 | M194: 79.77888
A195: 186 | B195: TATASTEEL | C195: 471 | D195: 473.18 | E195: 466.67 | F195: 462.33 | G195: 455.82 | H195: 477.52 | I195: 484.03 | J195: 488.37 | K195: 479.7 | L195: 468.85 | M195: 107.38727
A196: 187 | B196: TECHM | C196: 824.45 | D196: 821.38 | E196: 817.32 | F196: 810.18 | G196: 806.12 | H196: 828.52 | I196: 832.58 | J196: 839.72 | K196: 825.45 | L196: 814.25 | M196: 30.81521
A197: 188 | B197: NIACL | C197: 150.35 | D197: 151.12 | E197: 147.83 | F197: 145.32 | G197: 142.03 | H197: 153.63 | I197: 156.92 | J197: 159.43 | K197: 154.4 | L197: 148.6 | M197: 1.68669
A198: 189 | B198: RAMCOCEM | C198: 793.85 | D198: 796.00 | E198: 787.10 | F198: 780.35 | G198: 771.45 | H198: 802.75 | I198: 811.65 | J198: 818.40 | K198: 804.9 | L198: 789.25 | M198: 5.867
A199: 190 | B199: TITAN | C199: 1275 | D199: 1270.97 | E199: 1262.43 | F199: 1249.87 | G199: 1241.33 | H199: 1283.53 | I199: 1292.07 | J199: 1304.63 | K199: 1279.5 | L199: 1258.4 | M199: 18.09101
A200: 191 | B200: TORNTPHARM | C200: 2020.8 | D200: 2018.80 | E200: 1997.60 | F200: 1974.40 | G200: 1953.20 | H200: 2042.00 | I200: 2063.20 | J200: 2086.40 | K200: 2040 | L200: 1995.6 | M200: 1.67763
A201: 192 | B201: TORNTPOWER | C201: 305.75 | D201: 306.40 | E201: 302.80 | F201: 299.85 | G201: 296.25 | H201: 309.35 | I201: 312.95 | J201: 315.90 | K201: 310 | L201: 303.45 | M201: 11.09871
A202: 193 | B202: UPL | C202: 543.1 | D202: 545.62 | E202: 535.78 | F202: 528.47 | G202: 518.63 | H202: 552.93 | I202: 562.77 | J202: 570.08 | K202: 555.45 | L202: 538.3 | M202: 43.40034
A203: 194 | B203: ULTRACEMCO | C203: 4471.8 | D203: 4489.48 | E203: 4431.97 | F203: 4392.13 | G203: 4334.62 | H203: 4529.32 | I203: 4586.83 | J203: 4626.67 | K203: 4547 | L203: 4449.65 | M203: 4.5163
A204: 195 | B204: UNIONBANK | C204: 48.95 | D204: 49.00 | E204: 48.50 | F204: 48.05 | G204: 47.55 | H204: 49.45 | I204: 49.95 | J204: 50.40 | K204: 49.5 | L204: 48.55 | M204: 21.60583
A205: 196 | B205: UBL | C205: 1320.85 | D205: 1322.78 | E205: 1296.57 | F205: 1272.28 | G205: 1246.07 | H205: 1347.07 | I205: 1373.28 | J205: 1397.57 | K205: 1349 | L205: 1298.5 | M205: 3.17811
... 30 more rows

Sheet MidCap Intra
L5: Back To Main Page
A6: FOR INTRA DAY TRADING | K6: =Main!B10 -> 2020-02-10
A9: Sr.no | B9: Scrip | C9: CLOSE RATE | D9: Pivot Point | E9: Supports | H9: Resistances
C10: Point | E10: S1 | F10: S2 | G10: S3 | H10: R1 | I10: R2 | J10: R3 | K10: HIGH | L10: LOW | M10: Total Trade Quanity in Lakhs
A11: 1 | B11: 3MINDIA | C11: 24064.95 | D11: 23803.20 | E11: 23386.80 | F11: 22708.65 | G11: 22292.25 | H11: 24481.35 | I11: 24897.75 | J11: 25575.90 | K11: 24219.6 | L11: 23125.05 | M11: 0.0616
A12: 2 | B12: ACC | C12: 1502.7 | D12: 1501.43 | E12: 1489.37 | F12: 1476.03 | G12: 1463.97 | H12: 1514.77 | I12: 1526.83 | J12: 1540.17 | K12: 1513.5 | L12: 1488.1 | M12: 10.60729
A13: 3 | B13: AIAENG | C13: 1922.8 | D13: 1890.27 | E13: 1820.53 | F13: 1718.27 | G13: 1648.53 | H13: 1992.53 | I13: 2062.27 | J13: 2164.53 | K13: 1960 | L13: 1788 | M13: 0.6117
A14: 4 | B14: APLAPOLLO | C14: 2027.95 | D14: 2029.80 | E14: 2004.60 | F14: 1981.25 | G14: 1956.05 | H14: 2053.15 | I14: 2078.35 | J14: 2101.70 | K14: 2055 | L14: 2006.45 | M14: 0.30841
A15: 5 | B15: AUBANK | C15: 1128.1 | D15: 1118.75 | E15: 1089.90 | F15: 1051.70 | G15: 1022.85 | H15: 1156.95 | I15: 1185.80 | J15: 1224.00 | K15: 1147.6 | L15: 1080.55 | M15: 6.58358
A16: 6 | B16: AARTIIND | C16: 988.9 | D16: 983.70 | E16: 971.85 | F16: 954.80 | G16: 942.95 | H16: 1000.75 | I16: 1012.60 | J16: 1029.65 | K16: 995.55 | L16: 966.65 | M16: 1.73287
A17: 7 | B17: AAVAS | C17: 1843.7 | D17: 1879.95 | E17: 1788.75 | F17: 1733.80 | G17: 1642.60 | H17: 1934.90 | I17: 2026.10 | J17: 2081.05 | K17: 1971.15 | L17: 1825 | M17: 8.79428
A18: 8 | B18: ABBOTINDIA | C18: 14103.15 | D18: 13892.58 | E18: 13341.17 | F18: 12579.18 | G18: 12027.77 | H18: 14654.57 | I18: 15205.98 | J18: 15967.97 | K18: 14444 | L18: 13130.6 | M18: 1.06911
A19: 9 | B19: ADANIGAS | C19: 171.75 | D19: 172.23 | E19: 169.52 | F19: 167.28 | G19: 164.57 | H19: 174.47 | I19: 177.18 | J19: 179.42 | K19: 174.95 | L19: 170 | M19: 12.36764
A20: 10 | B20: ADANIGREEN | C20: 213 | D20: 210.75 | E20: 208.50 | F20: 204.00 | G20: 201.75 | H20: 215.25 | I20: 217.50 | J20: 222.00 | K20: 213 | L20: 206.25 | M20: 26.74856
A21: 11 | B21: ADANIPORTS | C21: 369.55 | D21: 370.15 | E21: 366.60 | F21: 363.65 | G21: 360.10 | H21: 373.10 | I21: 376.65 | J21: 379.60 | K21: 373.7 | L21: 367.2 | M21: 21.97903
A22: 12 | B22: ADANIPOWER | C22: 60.85 | D22: 60.95 | E22: 60.10 | F22: 59.35 | G22: 58.50 | H22: 61.70 | I22: 62.55 | J22: 63.30 | K22: 61.8 | L22: 60.2 | M22: 48.77776
A23: 13 | B23: ADANITRANS | C23: 329.75 | D23: 333.95 | E23: 321.00 | F23: 312.25 | G23: 299.30 | H23: 342.70 | I23: 355.65 | J23: 364.40 | K23: 346.9 | L23: 325.2 | M23: 5.26919
A24: 14 | B24: ABCAPITAL | C24: 94.8 | D24: 95.40 | E24: 93.80 | F24: 92.80 | G24: 91.20 | H24: 96.40 | I24: 98.00 | J24: 99.00 | K24: 97 | L24: 94.4 | M24: 19.74933
A25: 15 | B25: ABFRL | C25: 260.95 | D25: 258.63 | E25: 253.32 | F25: 245.68 | G25: 240.37 | H25: 266.27 | I25: 271.58 | J25: 279.22 | K25: 263.95 | L25: 251 | M25: 21.03438
A26: 16 | B26: ADVENZYMES | C26: 175.3 | D26: 176.37 | E26: 172.93 | F26: 170.57 | G26: 167.13 | H26: 178.73 | I26: 182.17 | J26: 184.53 | K26: 179.8 | L26: 174 | M26: 1.45752
A27: 17 | B27: AEGISCHEM | C27: 235.1 | D27: 233.57 | E27: 227.63 | F27: 220.17 | G27: 214.23 | H27: 241.03 | I27: 246.97 | J27: 254.43 | K27: 239.5 | L27: 226.1 | M27: 2.78887
A28: 18 | B28: AFFLE | C28: 1695.95 | D28: 1697.65 | E28: 1668.30 | F28: 1640.65 | G28: 1611.30 | H28: 1725.30 | I28: 1754.65 | J28: 1782.30 | K28: 1727 | L28: 1670 | M28: 1.45395
A29: 19 | B29: AJANTPHARM | C29: 1369.45 | D29: 1359.10 | E29: 1319.40 | F29: 1269.35 | G29: 1229.65 | H29: 1409.15 | I29: 1448.85 | J29: 1498.90 | K29: 1398.8 | L29: 1309.05 | M29: 6.07404
A30: 20 | B30: AKZOINDIA | C30: 2081.05 | D30: 2094.55 | E30: 2039.20 | F30: 1997.35 | G30: 1942.00 | H30: 2136.40 | I30: 2191.75 | J30: 2233.60 | K30: 2149.9 | L30: 2052.7 | M30: 0.70314
A31: 21 | B31: APLLTD | C31: 645.55 | D31: 647.23 | E31: 634.47 | F31: 623.38 | G31: 610.62 | H31: 658.32 | I31: 671.08 | J31: 682.17 | K31: 660 | L31: 636.15 | M31: 4.76521
A32: 22 | B32: ALKEM | C32: 2502.5 | D32: 2470.17 | E32: 2382.33 | F32: 2262.17 | G32: 2174.33 | H32: 2590.33 | I32: 2678.17 | J32: 2798.33 | K32: 2558 | L32: 2350 | M32: 5.72347
A33: 23 | B33: ALLCARGO | C33: 111.6 | D33: 111.93 | E33: 110.32 | F33: 109.03 | G33: 107.42 | H33: 113.22 | I33: 114.83 | J33: 116.12 | K33: 113.55 | L33: 110.65 | M33: 1.27127
A34: 24 | B34: AMARAJABAT | C34: 786.1 | D34: 784.43 | E34: 779.67 | F34: 773.23 | G34: 768.47 | H34: 790.87 | I34: 795.63 | J34: 802.07 | K34: 789.2 | L34: 778 | M34: 2.46798
A35: 25 | B35: AMBER | C35: 1541.4 | D35: 1550.78 | E35: 1520.62 | F35: 1499.83 | G35: 1469.67 | H35: 1571.57 | I35: 1601.73 | J35: 1622.52 | K35: 1580.95 | L35: 1530 | M35: 0.3416
A36: 26 | B36: AMBUJACEM | C36: 209.8 | D36: 209.65 | E36: 207.30 | F36: 204.80 | G36: 202.45 | H36: 212.15 | I36: 214.50 | J36: 217.00 | K36: 212 | L36: 207.15 | M36: 19.57283
A37: 27 | B37: APOLLOHOSP | C37: 1663.15 | D37: 1656.55 | E37: 1634.60 | F37: 1606.05 | G37: 1584.10 | H37: 1685.10 | I37: 1707.05 | J37: 1735.60 | K37: 1678.5 | L37: 1628 | M37: 5.54048
A38: 28 | B38: APOLLOTYRE | C38: 164 | D38: 164.73 | E38: 162.77 | F38: 161.53 | G38: 159.57 | H38: 165.97 | I38: 167.93 | J38: 169.17 | K38: 166.7 | L38: 163.5 | M38: 22.68574
A39: 29 | B39: ARVINDFASN | C39: 357.65 | D39: 355.58 | E39: 348.17 | F39: 338.68 | G39: 331.27 | H39: 365.07 | I39: 372.48 | J39: 381.97 | K39: 363 | L39: 346.1 | M39: 0.26584
A40: 30 | B40: ASAHIINDIA | C40: 255.65 | D40: 254.88 | E40: 249.77 | F40: 243.88 | G40: 238.77 | H40: 260.77 | I40: 265.88 | J40: 271.77 | K40: 260 | L40: 249 | M40: 0.33062
A41: 31 | B41: ASHOKLEY | C41: 83.75 | D41: 82.53 | E41: 81.02 | F41: 78.28 | G41: 76.77 | H41: 85.27 | I41: 86.78 | J41: 89.52 | K41: 84.05 | L41: 79.8 | M41: 297.1189
A42: 32 | B42: ASHOKA | C42: 113.85 | D42: 114.35 | E42: 113.00 | F42: 112.15 | G42: 110.80 | H42: 115.20 | I42: 116.55 | J42: 117.40 | K42: 115.7 | L42: 113.5 | M42: 5.5448
A43: 33 | B43: ASIANPAINT | C43: 1858.7 | D43: 1861.93 | E43: 1847.37 | F43: 1836.03 | G43: 1821.47 | H43: 1873.27 | I43: 1887.83 | J43: 1899.17 | K43: 1876.5 | L43: 1850.6 | M43: 6.32858
A44: 34 | B44: ASTERDM | C44: 164.1 | D44: 164.52 | E44: 162.58 | F44: 161.07 | G44: 159.13 | H44: 166.03 | I44: 167.97 | J44: 169.48 | K44: 166.45 | L44: 163 | M44: 0.35049
A45: 35 | B45: ASTRAZEN | C45: 2567.4 | D45: 2537.52 | E45: 2481.08 | F45: 2394.77 | G45: 2338.33 | H45: 2623.83 | I45: 2680.27 | J45: 2766.58 | K45: 2593.95 | L45: 2451.2 | M45: 0.27196
A46: 36 | B46: ASTRAL | C46: 1199.8 | D46: 1200.00 | E46: 1189.80 | F46: 1179.80 | G46: 1169.60 | H46: 1210.00 | I46: 1220.20 | J46: 1230.20 | K46: 1210.2 | L46: 1190 | M46: 0.82946
A47: 37 | B47: ATUL | C47: 4945.1 | D47: 4939.27 | E47: 4907.93 | F47: 4870.77 | G47: 4839.43 | H47: 4976.43 | I47: 5007.77 | J47: 5044.93 | K47: 4970.6 | L47: 4902.1 | M47: 0.07936
A48: 38 | B48: AUROPHARMA | C48: 546.55 | D48: 537.95 | E48: 522.35 | F48: 498.15 | G48: 482.55 | H48: 562.15 | I48: 577.75 | J48: 601.95 | K48: 553.55 | L48: 513.75 | M48: 187.46442
A49: 39 | B49: AVANTIFEED | C49: 651.8 | D49: 644.57 | E49: 629.23 | F49: 606.67 | G49: 591.33 | H49: 667.13 | I49: 682.47 | J49: 705.03 | K49: 659.9 | L49: 622 | M49: 14.21219
A50: 40 | B50: DMART | C50: 2287.2 | D50: 2295.73 | E50: 2261.47 | F50: 2235.73 | G50: 2201.47 | H50: 2321.47 | I50: 2355.73 | J50: 2381.47 | K50: 2330 | L50: 2270 | M50: 9.17281
A51: 41 | B51: AXISBANK | C51: 748.15 | D51: 743.78 | E51: 738.37 | F51: 728.58 | G51: 723.17 | H51: 753.57 | I51: 758.98 | J51: 768.77 | K51: 749.2 | L51: 734 | M51: 84.38354
A52: 42 | B52: BASF | C52: 980 | D52: 978.28 | E52: 971.77 | F52: 963.53 | G52: 957.02 | H52: 986.52 | I52: 993.03 | J52: 1001.27 | K52: 984.8 | L52: 970.05 | M52: 0.30646
A53: 43 | B53: BEML | C53: 974.9 | D53: 977.20 | E53: 968.50 | F53: 962.10 | G53: 953.40 | H53: 983.60 | I53: 992.30 | J53: 998.70 | K53: 985.9 | L53: 970.8 | M53: 1.43772
A54: 44 | B54: BSE | C54: 573.65 | D54: 571.22 | E54: 552.43 | F54: 531.22 | G54: 512.43 | H54: 592.43 | I54: 611.22 | J54: 632.43 | K54: 590 | L54: 550 | M54: 8.81521
A55: 45 | B55: BAJAJ-AUTO | C55: 3134.85 | D55: 3143.48 | E55: 3097.97 | F55: 3061.08 | G55: 3015.57 | H55: 3180.37 | I55: 3225.88 | J55: 3262.77 | K55: 3189 | L55: 3106.6 | M55: 4.54698
A56: 46 | B56: BAJAJCON | C56: 220.55 | D56: 220.95 | E56: 219.20 | F56: 217.85 | G56: 216.10 | H56: 222.30 | I56: 224.05 | J56: 225.40 | K56: 222.7 | L56: 219.6 | M56: 1.60162
A57: 47 | B57: BAJAJELEC | C57: 413 | D57: 412.23 | E57: 407.07 | F57: 401.13 | G57: 395.97 | H57: 418.17 | I57: 423.33 | J57: 429.27 | K57: 417.4 | L57: 406.3 | M57: 0.6373
A58: 48 | B58: BAJFINANCE | C58: 4654.3 | D58: 4655.77 | E58: 4624.63 | F58: 4594.97 | G58: 4563.83 | H58: 4685.43 | I58: 4716.57 | J58: 4746.23 | K58: 4686.9 | L58: 4626.1 | M58: 9.50326
A59: 49 | B59: BAJAJFINSV | C59: 9623.3 | D59: 9619.33 | E59: 9565.02 | F59: 9506.73 | G59: 9452.42 | H59: 9677.62 | I59: 9731.93 | J59: 9790.22 | K59: 9673.65 | L59: 9561.05 | M59: 1.42626
A60: 50 | B60: BAJAJHLDNG | C60: 3783 | D60: 3799.67 | E60: 3754.33 | F60: 3725.67 | G60: 3680.33 | H60: 3828.33 | I60: 3873.67 | J60: 3902.33 | K60: 3845 | L60: 3771 | M60: 0.19035
A61: 51 | B61: BALKRISIND | C61: 1101.05 | D61: 1103.48 | E61: 1088.57 | F61: 1076.08 | G61: 1061.17 | H61: 1115.97 | I61: 1130.88 | J61: 1143.37 | K61: 1118.4 | L61: 1091 | M61: 4.04348
A62: 52 | B62: BALMLAWRIE | C62: 117.3 | D62: 117.67 | E62: 116.53 | F62: 115.77 | G62: 114.63 | H62: 118.43 | I62: 119.57 | J62: 120.33 | K62: 118.8 | L62: 116.9 | M62: 0.58906
A63: 53 | B63: BALRAMCHIN | C63: 169.65 | D63: 168.20 | E63: 165.50 | F63: 161.35 | G63: 158.65 | H63: 172.35 | I63: 175.05 | J63: 179.20 | K63: 170.9 | L63: 164.05 | M63: 11.60718
A64: 54 | B64: BANDHANBNK | C64: 442.7 | D64: 438.67 | E64: 429.48 | F64: 416.27 | G64: 407.08 | H64: 451.88 | I64: 461.07 | J64: 474.28 | K64: 447.85 | L64: 425.45 | M64: 53.59754
A65: 55 | B65: BANKBARODA | C65: 92.05 | D65: 91.68 | E65: 90.62 | F65: 89.18 | G65: 88.12 | H65: 93.12 | I65: 94.18 | J65: 95.62 | K65: 92.75 | L65: 90.25 | M65: 197.44328
A66: 56 | B66: BANKINDIA | C66: 64.75 | D66: 64.90 | E66: 64.10 | F66: 63.45 | G66: 62.65 | H66: 65.55 | I66: 66.35 | J66: 67.00 | K66: 65.7 | L66: 64.25 | M66: 12.69896
A67: 57 | B67: MAHABANK | C67: 12.35 | D67: 12.40 | E67: 12.30 | F67: 12.25 | G67: 12.15 | H67: 12.45 | I67: 12.55 | J67: 12.60 | K67: 12.5 | L67: 12.35 | M67: 2.00112
A68: 58 | B68: BATAINDIA | C68: 1842.45 | D68: 1850.18 | E68: 1804.92 | F68: 1767.38 | G68: 1722.12 | H68: 1887.72 | I68: 1932.98 | J68: 1970.52 | K68: 1895.45 | L68: 1812.65 | M68: 20.91261
A69: 59 | B69: BAYERCROP | C69: 4498.95 | D69: 4513.15 | E69: 4447.80 | F69: 4396.65 | G69: 4331.30 | H69: 4564.30 | I69: 4629.65 | J69: 4680.80 | K69: 4578.5 | L69: 4462 | M69: 0.1557
A70: 60 | B70: BERGEPAINT | C70: 570.85 | D70: 573.28 | E70: 564.72 | F70: 558.58 | G70: 550.02 | H70: 579.42 | I70: 587.98 | J70: 594.12 | K70: 581.85 | L70: 567.15 | M70: 11.28275
A71: 61 | B71: BDL | C71: 296.45 | D71: 298.48 | E71: 293.07 | F71: 289.68 | G71: 284.27 | H71: 301.87 | I71: 307.28 | J71: 310.67 | K71: 303.9 | L71: 295.1 | M71: 0.56151
A72: 62 | B72: BEL | C72: 87.55 | D72: 87.25 | E72: 86.50 | F72: 85.45 | G72: 84.70 | H72: 88.30 | I72: 89.05 | J72: 90.10 | K72: 88 | L72: 86.2 | M72: 101.22623
A73: 63 | B73: BHARATFORG | C73: 518 | D73: 515.50 | E73: 511.15 | F73: 504.30 | G73: 499.95 | H73: 522.35 | I73: 526.70 | J73: 533.55 | K73: 519.85 | L73: 508.65 | M73: 9.39053
A74: 64 | B74: BHEL | C74: 39.8 | D74: 39.77 | E74: 39.23 | F74: 38.67 | G74: 38.13 | H74: 40.33 | I74: 40.87 | J74: 41.43 | K74: 40.3 | L74: 39.2 | M74: 166.82125
A75: 65 | B75: BPCL | C75: 491.4 | D75: 491.00 | E75: 486.40 | F75: 481.40 | G75: 476.80 | H75: 496.00 | I75: 500.60 | J75: 505.60 | K75: 495.6 | L75: 486 | M75: 45.11015
A76: 66 | B76: BHARTIARTL | C76: 539.45 | D76: 542.23 | E76: 535.47 | F76: 531.48 | G76: 524.72 | H76: 546.22 | I76: 552.98 | J76: 556.97 | K76: 549 | L76: 538.25 | M76: 88.02579
A77: 67 | B77: INFRATEL | C77: 247.8 | D77: 246.40 | E77: 243.80 | F77: 239.80 | G77: 237.20 | H77: 250.40 | I77: 253.00 | J77: 257.00 | K77: 249 | L77: 242.4 | M77: 23.61756
A78: 68 | B78: BIOCON | C78: 308.9 | D78: 304.80 | E78: 298.10 | F78: 287.30 | G78: 280.60 | H78: 315.60 | I78: 322.30 | J78: 333.10 | K78: 311.5 | L78: 294 | M78: 42.707
A79: 69 | B79: BIRLACORPN | C79: 748.3 | D79: 752.10 | E79: 741.20 | F79: 734.10 | G79: 723.20 | H79: 759.20 | I79: 770.10 | J79: 777.20 | K79: 763 | L79: 745 | M79: 0.63486
A80: 70 | B80: BSOFT | C80: 90.9 | D80: 92.03 | E80: 89.37 | F80: 87.83 | G80: 85.17 | H80: 93.57 | I80: 96.23 | J80: 97.77 | K80: 94.7 | L80: 90.5 | M80: 21.5345
A81: 71 | B81: BLISSGVS | C81: 142.4 | D81: 140.50 | E81: 138.00 | F81: 133.60 | G81: 131.10 | H81: 144.90 | I81: 147.40 | J81: 151.80 | K81: 143 | L81: 136.1 | M81: 1.60408
A82: 72 | B82: BLUEDART | C82: 2808.1 | D82: 2807.75 | E82: 2740.50 | F82: 2672.90 | G82: 2605.65 | H82: 2875.35 | I82: 2942.60 | J82: 3010.20 | K82: 2875 | L82: 2740.15 | M82: 0.05705
A83: 73 | B83: BLUESTARCO | C83: 810.65 | D83: 809.18 | E83: 803.47 | F83: 796.28 | G83: 790.57 | H83: 816.37 | I83: 822.08 | J83: 829.27 | K83: 814.9 | L83: 802 | M83: 0.34471
A84: 74 | B84: BBTC | C84: 1132.2 | D84: 1137.87 | E84: 1121.33 | F84: 1110.47 | G84: 1093.93 | H84: 1148.73 | I84: 1165.27 | J84: 1176.13 | K84: 1154.4 | L84: 1127 | M84: 0.50067
A85: 75 | B85: BOMDYEING | C85: 90.1 | D85: 89.87 | E85: 88.03 | F85: 85.97 | G85: 84.13 | H85: 91.93 | I85: 93.77 | J85: 95.83 | K85: 91.7 | L85: 87.8 | M85: 31.46648
A86: 76 | B86: BOSCHLTD | C86: 14194.05 | D86: 14118.90 | E86: 13987.80 | F86: 13781.55 | G86: 13650.45 | H86: 14325.15 | I86: 14456.25 | J86: 14662.50 | K86: 14250 | L86: 13912.65 | M86: 0.20872
A87: 77 | B87: BRIGADE | C87: 235.65 | D87: 236.88 | E87: 232.07 | F87: 228.48 | G87: 223.67 | H87: 240.47 | I87: 245.28 | J87: 248.87 | K87: 241.7 | L87: 233.3 | M87: 0.42509
A88: 78 | B88: BRITANNIA | C88: 3251.4 | D88: 3261.50 | E88: 3227.00 | F88: 3202.60 | G88: 3168.10 | H88: 3285.90 | I88: 3320.40 | J88: 3344.80 | K88: 3296 | L88: 3237.1 | M88: 4.50061
A89: 79 | B89: CARERATING | C89: 670.6 | D89: 676.27 | E89: 660.53 | F89: 650.47 | G89: 634.73 | H89: 686.33 | I89: 702.07 | J89: 712.13 | K89: 692 | L89: 666.2 | M89: 1.44816
A90: 80 | B90: CCL | C90: 241.5 | D90: 239.65 | E90: 235.50 | F90: 229.50 | G90: 225.35 | H90: 245.65 | I90: 249.80 | J90: 255.80 | K90: 243.8 | L90: 233.65 | M90: 2.83877
A91: 81 | B91: CESC | C91: 730.9 | D91: 728.63 | E91: 724.07 | F91: 717.23 | G91: 712.67 | H91: 735.47 | I91: 740.03 | J91: 746.87 | K91: 733.2 | L91: 721.8 | M91: 1.83755
A92: 82 | B92: CRISIL | C92: 1680.15 | D92: 1681.12 | E92: 1664.23 | F92: 1648.32 | G92: 1631.43 | H92: 1697.03 | I92: 1713.92 | J92: 1729.83 | K92: 1698 | L92: 1665.2 | M92: 0.09916
A93: 83 | B93: CADILAHC | C93: 275.2 | D93: 274.92 | E93: 270.83 | F93: 266.47 | G93: 262.38 | H93: 279.28 | I93: 283.37 | J93: 287.73 | K93: 279 | L93: 270.55 | M93: 20.59595
A94: 84 | B94: CANFINHOME | C94: 487.65 | D94: 487.73 | E94: 482.12 | F94: 476.58 | G94: 470.97 | H94: 493.27 | I94: 498.88 | J94: 504.42 | K94: 493.35 | L94: 482.2 | M94: 3.18981
A95: 85 | B95: CANBK | C95: 190 | D95: 190.02 | E95: 186.88 | F95: 183.77 | G95: 180.63 | H95: 193.13 | I95: 196.27 | J95: 199.38 | K95: 193.15 | L95: 186.9 | M95: 112.19507
A96: 86 | B96: CAPLIPOINT | C96: 364.1 | D96: 358.42 | E96: 346.93 | F96: 329.77 | G96: 318.28 | H96: 375.58 | I96: 387.07 | J96: 404.23 | K96: 369.9 | L96: 341.25 | M96: 7.66626
A97: 87 | B97: CGCL | C97: 211.9 | D97: 210.93 | E97: 208.87 | F97: 205.83 | G97: 203.77 | H97: 213.97 | I97: 216.03 | J97: 219.07 | K97: 213 | L97: 207.9 | M97: 3.4257
A98: 88 | B98: CARBORUNIV | C98: 333.15 | D98: 331.48 | E98: 328.17 | F98: 323.18 | G98: 319.87 | H98: 336.47 | I98: 339.78 | J98: 344.77 | K98: 334.8 | L98: 326.5 | M98: 0.20983
A99: 89 | B99: CASTROLIND | C99: 145.3 | D99: 147.08 | E99: 142.47 | F99: 139.63 | G99: 135.02 | H99: 149.92 | I99: 154.53 | J99: 157.37 | K99: 151.7 | L99: 144.25 | M99: 17.99989
A100: 90 | B100: CEATLTD | C100: 976.75 | D100: 978.25 | E100: 968.70 | F100: 960.65 | G100: 951.10 | H100: 986.30 | I100: 995.85 | J100: 1003.90 | K100: 987.8 | L100: 970.2 | M100: 0.56042
A101: 91 | B101: CENTRALBK | C101: 18.05 | D101: 18.08 | E101: 17.87 | F101: 17.68 | G101: 17.47 | H101: 18.27 | I101: 18.48 | J101: 18.67 | K101: 18.3 | L101: 17.9 | M101: 3.36095
A102: 92 | B102: CDSL | C102: 289.45 | D102: 289.17 | E102: 280.63 | F102: 271.82 | G102: 263.28 | H102: 297.98 | I102: 306.52 | J102: 315.33 | K102: 297.7 | L102: 280.35 | M102: 31.99002
A103: 93 | B103: CENTURYPLY | C103: 171.4 | D103: 171.25 | E103: 169.50 | F103: 167.60 | G103: 165.85 | H103: 173.15 | I103: 174.90 | J103: 176.80 | K103: 173 | L103: 169.35 | M103: 1.04755
A104: 94 | B104: CERA | C104: 2536.25 | D104: 2553.45 | E104: 2506.85 | F104: 2477.45 | G104: 2430.85 | H104: 2582.85 | I104: 2629.45 | J104: 2658.85 | K104: 2600.05 | L104: 2524.05 | M104: 0.03434
A105: 95 | B105: CHALET | C105: 340.55 | D105: 338.48 | E105: 332.57 | F105: 324.58 | G105: 318.67 | H105: 346.47 | I105: 352.38 | J105: 360.37 | K105: 344.4 | L105: 330.5 | M105: 0.06522
A106: 96 | B106: CHAMBLFERT | C106: 163.45 | D106: 164.40 | E106: 161.05 | F106: 158.65 | G106: 155.30 | H106: 166.80 | I106: 170.15 | J106: 172.55 | K106: 167.75 | L106: 162 | M106: 2.36261
A107: 97 | B107: CHENNPETRO | C107: 123.65 | D107: 123.63 | E107: 121.32 | F107: 118.98 | G107: 116.67 | H107: 125.97 | I107: 128.28 | J107: 130.62 | K107: 125.95 | L107: 121.3 | M107: 3.11702
A108: 98 | B108: CHOLAHLDNG | C108: 549.9 | D108: 548.18 | E108: 544.42 | F108: 538.93 | G108: 535.17 | H108: 553.67 | I108: 557.43 | J108: 562.92 | K108: 551.95 | L108: 542.7 | M108: 0.48823
A109: 99 | B109: CHOLAFIN | C109: 339.95 | D109: 338.38 | E109: 334.32 | F109: 328.68 | G109: 324.62 | H109: 344.02 | I109: 348.08 | J109: 353.72 | K109: 342.45 | L109: 332.75 | M109: 18.19012
A110: 100 | B110: CIPLA | C110: 443.2 | D110: 442.13 | E110: 438.37 | F110: 433.53 | G110: 429.77 | H110: 446.97 | I110: 450.73 | J110: 455.57 | K110: 445.9 | L110: 437.3 | M110: 63.86193
A111: 101 | B111: CUB | C111: 235.45 | D111: 235.58 | E111: 232.02 | F111: 228.58 | G111: 225.02 | H111: 239.02 | I111: 242.58 | J111: 246.02 | K111: 239.15 | L111: 232.15 | M111: 9.11255
A112: 102 | B112: COALINDIA | C112: 185.05 | D112: 183.07 | E112: 180.08 | F112: 175.12 | G112: 172.13 | H112: 188.03 | I112: 191.02 | J112: 195.98 | K112: 186.05 | L112: 178.1 | M112: 134.70302
A113: 103 | B113: COCHINSHIP | C113: 360.7 | D113: 360.32 | E113: 350.38 | F113: 340.07 | G113: 330.13 | H113: 370.63 | I113: 380.57 | J113: 390.88 | K113: 370.25 | L113: 350 | M113: 4.98418
A114: 104 | B114: COLPAL | C114: 1370.65 | D114: 1376.92 | E114: 1360.58 | F114: 1350.52 | G114: 1334.18 | H114: 1386.98 | I114: 1403.32 | J114: 1413.38 | K114: 1393.25 | L114: 1366.85 | M114: 4.81289
A115: 105 | B115: CONCOR | C115: 575.2 | D115: 578.85 | E115: 569.35 | F115: 563.50 | G115: 554.00 | H115: 584.70 | I115: 594.20 | J115: 600.05 | K115: 588.35 | L115: 573 | M115: 7.82279
A116: 106 | B116: COROMANDEL | C116: 619.6 | D116: 620.03 | E116: 612.22 | F116: 604.83 | G116: 597.02 | H116: 627.42 | I116: 635.23 | J116: 642.62 | K116: 627.85 | L116: 612.65 | M116: 1.84254
A117: 107 | B117: CREDITACC | C117: 797.3 | D117: 807.10 | E117: 779.20 | F117: 761.10 | G117: 733.20 | H117: 825.20 | I117: 853.10 | J117: 871.20 | K117: 835 | L117: 789 | M117: 1.36685
A118: 108 | B118: CROMPTON | C118: 284.65 | D118: 283.55 | E118: 278.10 | F118: 271.55 | G118: 266.10 | H118: 290.10 | I118: 295.55 | J118: 302.10 | K118: 289 | L118: 277 | M118: 6.43728
A119: 109 | B119: CUMMINSIND | C119: 558.05 | D119: 558.03 | E119: 552.17 | F119: 546.28 | G119: 540.42 | H119: 563.92 | I119: 569.78 | J119: 575.67 | K119: 563.9 | L119: 552.15 | M119: 5.9823
A120: 110 | B120: CYIENT | C120: 486.5 | D120: 487.50 | E120: 482.25 | F120: 478.00 | G120: 472.75 | H120: 491.75 | I120: 497.00 | J120: 501.25 | K120: 492.75 | L120: 483.25 | M120: 0.48151
A121: 111 | B121: DBCORP | C121: 131.4 | D121: 131.57 | E121: 130.43 | F121: 129.47 | G121: 128.33 | H121: 132.53 | I121: 133.67 | J121: 134.63 | K121: 132.7 | L121: 130.6 | M121: 0.35085
A122: 112 | B122: DCBBANK | C122: 177.7 | D122: 178.90 | E122: 175.80 | F122: 173.90 | G122: 170.80 | H122: 180.80 | I122: 183.90 | J122: 185.80 | K122: 182 | L122: 177 | M122: 4.88913
A123: 113 | B123: DCMSHRIRAM | C123: 364.85 | D123: 367.32 | E123: 361.63 | F123: 358.42 | G123: 352.73 | H123: 370.53 | I123: 376.22 | J123: 379.43 | K123: 373 | L123: 364.1 | M123: 0.398
A124: 114 | B124: DLF | C124: 235.8 | D124: 239.15 | E124: 231.40 | F124: 227.00 | G124: 219.25 | H124: 243.55 | I124: 251.30 | J124: 255.70 | K124: 246.9 | L124: 234.75 | M124: 140.50194
A125: 115 | B125: DABUR | C125: 513.65 | D125: 512.58 | E125: 507.47 | F125: 501.28 | G125: 496.17 | H125: 518.77 | I125: 523.88 | J125: 530.07 | K125: 517.7 | L125: 506.4 | M125: 14.39486
A126: 116 | B126: DALBHARAT | C126: 888.3 | D126: 891.38 | E126: 878.77 | F126: 869.23 | G126: 856.62 | H126: 900.92 | I126: 913.53 | J126: 923.07 | K126: 904 | L126: 881.85 | M126: 2.3875
A127: 117 | B127: DEEPAKNTR | C127: 404.7 | D127: 402.28 | E127: 395.62 | F127: 386.53 | G127: 379.87 | H127: 411.37 | I127: 418.03 | J127: 427.12 | K127: 408.95 | L127: 393.2 | M127: 6.60633
A128: 118 | B128: DELTACORP | C128: 168.6 | D128: 170.03 | E128: 165.67 | F128: 162.73 | G128: 158.37 | H128: 172.97 | I128: 177.33 | J128: 180.27 | K128: 174.4 | L128: 167.1 | M128: 10.61872
A129: 119 | B129: DHFL | C129: 11.7 | D129: 11.55 | E129: 11.40 | F129: 11.10 | G129: 10.95 | H129: 11.85 | I129: 12.00 | J129: 12.30 | K129: 11.7 | L129: 11.25 | M129: 51.11635
A130: 120 | B130: DBL | C130: 399.55 | D130: 400.62 | E130: 392.93 | F130: 386.32 | G130: 378.63 | H130: 407.23 | I130: 414.92 | J130: 421.53 | K130: 408.3 | L130: 394 | M130: 2.55889
A131: 121 | B131: DISHTV | C131: 12.25 | D131: 12.28 | E131: 12.17 | F131: 12.08 | G131: 11.97 | H131: 12.37 | I131: 12.48 | J131: 12.57 | K131: 12.4 | L131: 12.2 | M131: 35.96746
A132: 122 | B132: DCAL | C132: 91.25 | D132: 91.25 | E132: 91.25 | F132: 91.25 | G132: 91.25 | H132: 91.25 | I132: 91.25 | J132: 91.25 | K132: 91.25 | L132: 91.25 | M132: 2.04531
A133: 123 | B133: DIVISLAB | C133: 2085.95 | D133: 2063.98 | E133: 2032.97 | F133: 1979.98 | G133: 1948.97 | H133: 2116.97 | I133: 2147.98 | J133: 2200.97 | K133: 2095 | L133: 2011 | M133: 8.90175
A134: 124 | B134: DIXON | C134: 4597.35 | D134: 4601.40 | E134: 4511.00 | F134: 4424.65 | G134: 4334.25 | H134: 4687.75 | I134: 4778.15 | J134: 4864.50 | K134: 4691.8 | L134: 4515.05 | M134: 0.44292
A135: 125 | B135: LALPATHLAB | C135: 1616 | D135: 1626.65 | E135: 1597.35 | F135: 1578.70 | G135: 1549.40 | H135: 1645.30 | I135: 1674.60 | J135: 1693.25 | K135: 1655.95 | L135: 1608 | M135: 1.34881
A136: 126 | B136: DRREDDY | C136: 3166.7 | D136: 3162.90 | E136: 3140.80 | F136: 3114.90 | G136: 3092.80 | H136: 3188.80 | I136: 3210.90 | J136: 3236.80 | K136: 3185 | L136: 3137 | M136: 5.35233
A137: 127 | B137: EIDPARRY | C137: 234.65 | D137: 237.07 | E137: 229.13 | F137: 223.62 | G137: 215.68 | H137: 242.58 | I137: 250.52 | J137: 256.03 | K137: 245 | L137: 231.55 | M137: 8.13809
A138: 128 | B138: EIHOTEL | C138: 143 | D138: 141.50 | E138: 137.60 | F138: 132.20 | G138: 128.30 | H138: 146.90 | I138: 150.80 | J138: 156.20 | K138: 145.4 | L138: 136.1 | M138: 1.67389
A139: 129 | B139: EDELWEISS | C139: 90.95 | D139: 91.82 | E139: 89.13 | F139: 87.32 | G139: 84.63 | H139: 93.63 | I139: 96.32 | J139: 98.13 | K139: 94.5 | L139: 90 | M139: 8.18705
A140: 130 | B140: EICHERMOT | C140: 19736.3 | D140: 19973.32 | E140: 19429.68 | F140: 19123.07 | G140: 18579.43 | H140: 20279.93 | I140: 20823.57 | J140: 21130.18 | K140: 20516.95 | L140: 19666.7 | M140: 2.22415
A141: 131 | B141: ELGIEQUIP | C141: 248.7 | D141: 249.75 | E141: 246.95 | F141: 245.20 | G141: 242.40 | H141: 251.50 | I141: 254.30 | J141: 256.05 | K141: 252.55 | L141: 248 | M141: 0.03874
A142: 132 | B142: EMAMILTD | C142: 300.3 | D142: 303.08 | E142: 294.32 | F142: 288.33 | G142: 279.57 | H142: 309.07 | I142: 317.83 | J142: 323.82 | K142: 311.85 | L142: 297.1 | M142: 17.78918
A143: 133 | B143: ENDURANCE | C143: 1077.1 | D143: 1090.73 | E143: 1056.47 | F143: 1035.83 | G143: 1001.57 | H143: 1111.37 | I143: 1145.63 | J143: 1166.27 | K143: 1125 | L143: 1070.1 | M143: 0.1845
A144: 134 | B144: ENGINERSIN | C144: 91.95 | D144: 92.62 | E144: 91.13 | F144: 90.32 | G144: 88.83 | H144: 93.43 | I144: 94.92 | J144: 95.73 | K144: 94.1 | L144: 91.8 | M144: 13.61944
A145: 135 | B145: EQUITAS | C145: 115.75 | D145: 114.98 | E145: 113.77 | F145: 111.78 | G145: 110.57 | H145: 116.97 | I145: 118.18 | J145: 120.17 | K145: 116.2 | L145: 113 | M145: 37.97449
A146: 136 | B146: ERIS | C146: 513.6 | D146: 515.00 | E146: 510.65 | F146: 507.70 | G146: 503.35 | H146: 517.95 | I146: 522.30 | J146: 525.25 | K146: 519.35 | L146: 512.05 | M146: 0.1339
A147: 137 | B147: ESCORTS | C147: 867.9 | D147: 861.75 | E147: 849.25 | F147: 830.60 | G147: 818.10 | H147: 880.40 | I147: 892.90 | J147: 911.55 | K147: 874.25 | L147: 843.1 | M147: 32.26182
A148: 138 | B148: ESSELPACK | C148: 181.7 | D148: 182.80 | E148: 178.70 | F148: 175.70 | G148: 171.60 | H148: 185.80 | I148: 189.90 | J148: 192.90 | K148: 186.9 | L148: 179.8 | M148: 0.71934
A149: 139 | B149: EXIDEIND | C149: 182.05 | D149: 182.73 | E149: 180.57 | F149: 179.08 | G149: 176.92 | H149: 184.22 | I149: 186.38 | J149: 187.87 | K149: 184.9 | L149: 181.25 | M149: 18.50259
A150: 140 | B150: FDC | C150: 239.65 | D150: 239.48 | E150: 236.17 | F150: 232.68 | G150: 229.37 | H150: 242.97 | I150: 246.28 | J150: 249.77 | K150: 242.8 | L150: 236 | M150: 3.11474
A151: 141 | B151: FEDERALBNK | C151: 91.25 | D151: 91.88 | E151: 90.32 | F151: 89.38 | G151: 87.82 | H151: 92.82 | I151: 94.38 | J151: 95.32 | K151: 93.45 | L151: 90.95 | M151: 115.09016
A152: 142 | B152: FMGOETZE | C152: 575.9 | D152: 577.30 | E152: 554.60 | F152: 533.30 | G152: 510.60 | H152: 598.60 | I152: 621.30 | J152: 642.60 | K152: 600 | L152: 556 | M152: 0.04442
A153: 143 | B153: FINEORG | C153: 2381.35 | D153: 2379.75 | E153: 2366.60 | F153: 2351.85 | G153: 2338.70 | H153: 2394.50 | I153: 2407.65 | J153: 2422.40 | K153: 2392.9 | L153: 2365 | M153: 0.0899
A154: 144 | B154: FINCABLES | C154: 391.9 | D154: 391.63 | E154: 385.27 | F154: 378.63 | G154: 372.27 | H154: 398.27 | I154: 404.63 | J154: 411.27 | K154: 398 | L154: 385 | M154: 0.28342
A155: 145 | B155: FINPIPE | C155: 554.35 | D155: 556.12 | E155: 548.33 | F155: 542.32 | G155: 534.53 | H155: 562.13 | I155: 569.92 | J155: 575.93 | K155: 563.9 | L155: 550.1 | M155: 0.2206
A156: 146 | B156: FSL | C156: 42.55 | D156: 42.55 | E156: 42.20 | F156: 41.85 | G156: 41.50 | H156: 42.90 | I156: 43.25 | J156: 43.60 | K156: 42.9 | L156: 42.2 | M156: 6.65135
A157: 147 | B157: FORTIS | C157: 163.65 | D157: 162.30 | E157: 155.60 | F157: 147.55 | G157: 140.85 | H157: 170.35 | I157: 177.05 | J157: 185.10 | K157: 169 | L157: 154.25 | M157: 61.28752
A158: 148 | B158: FCONSUMER | C158: 22.35 | D158: 22.42 | E158: 22.13 | F158: 21.92 | G158: 21.63 | H158: 22.63 | I158: 22.92 | J158: 23.13 | K158: 22.7 | L158: 22.2 | M158: 7.36179
A159: 149 | B159: FLFL | C159: 399.1 | D159: 400.87 | E159: 390.78 | F159: 382.47 | G159: 372.38 | H159: 409.18 | I159: 419.27 | J159: 427.58 | K159: 410.95 | L159: 392.55 | M159: 0.80779
A160: 150 | B160: FRETAIL | C160: 339.5 | D160: 341.23 | E160: 333.57 | F160: 327.63 | G160: 319.97 | H160: 347.17 | I160: 354.83 | J160: 360.77 | K160: 348.9 | L160: 335.3 | M160: 11.30922
A161: 151 | B161: GAIL | C161: 123 | D161: 123.25 | E161: 121.90 | F161: 120.80 | G161: 119.45 | H161: 124.35 | I161: 125.70 | J161: 126.80 | K161: 124.6 | L161: 122.15 | M161: 92.12683
A162: 152 | B162: GEPIL | C162: 780.3 | D162: 758.53 | E162: 727.42 | F162: 674.53 | G162: 643.42 | H162: 811.42 | I162: 842.53 | J162: 895.42 | K162: 789.65 | L162: 705.65 | M162: 0.94159
A163: 153 | B163: GET&D | C163: 173.8 | D163: 172.30 | E163: 169.10 | F163: 164.40 | G163: 161.20 | H163: 177.00 | I163: 180.20 | J163: 184.90 | K163: 175.5 | L163: 167.6 | M163: 1.43266
A164: 154 | B164: GHCL | C164: 180.75 | D164: 181.70 | E164: 179.45 | F164: 178.15 | G164: 175.90 | H164: 183.00 | I164: 185.25 | J164: 186.55 | K164: 183.95 | L164: 180.4 | M164: 3.10261
A165: 155 | B165: GMRINFRA | C165: 23.5 | D165: 23.45 | E165: 23.25 | F165: 23.00 | G165: 22.80 | H165: 23.70 | I165: 23.90 | J165: 24.15 | K165: 23.65 | L165: 23.2 | M165: 86.67633
A166: 156 | B166: GALAXYSURF | C166: 1645.2 | D166: 1625.40 | E166: 1599.80 | F166: 1554.40 | G166: 1528.80 | H166: 1670.80 | I166: 1696.40 | J166: 1741.80 | K166: 1651 | L166: 1580 | M166: 0.33432
A167: 157 | B167: GARFIBRES | C167: 1538.05 | D167: 1547.62 | E167: 1520.43 | F167: 1502.82 | G167: 1475.63 | H167: 1565.23 | I167: 1592.42 | J167: 1610.03 | K167: 1574.8 | L167: 1530 | M167: 0.01392
A168: 158 | B168: GAYAPROJ | C168: 39.95 | D168: 39.95 | E168: 39.95 | F168: 39.95 | G168: 39.95 | H168: 39.95 | I168: 39.95 | J168: 39.95 | K168: 39.95 | L168: 39.95 | M168: 0.13581
A169: 159 | B169: GICRE | C169: 272 | D169: 266.48 | E169: 258.17 | F169: 244.33 | G169: 236.02 | H169: 280.32 | I169: 288.63 | J169: 302.47 | K169: 274.8 | L169: 252.65 | M169: 5.48001
A170: 160 | B170: GILLETTE | C170: 6351.75 | D170: 6371.20 | E170: 6305.55 | F170: 6259.35 | G170: 6193.70 | H170: 6417.40 | I170: 6483.05 | J170: 6529.25 | K170: 6436.85 | L170: 6325 | M170: 0.04149
A171: 161 | B171: GLAXO | C171: 1356.45 | D171: 1358.98 | E171: 1339.97 | F171: 1323.48 | G171: 1304.47 | H171: 1375.47 | I171: 1394.48 | J171: 1410.97 | K171: 1378 | L171: 1342.5 | M171: 1.0218
A172: 162 | B172: GLENMARK | C172: 326.45 | D172: 324.62 | E172: 319.98 | F172: 313.52 | G172: 308.88 | H172: 331.08 | I172: 335.72 | J172: 342.18 | K172: 329.25 | L172: 318.15 | M172: 16.2209
A173: 163 | B173: GODFRYPHLP | C173: 1275 | D173: 1282.37 | E173: 1254.63 | F173: 1234.27 | G173: 1206.53 | H173: 1302.73 | I173: 1330.47 | J173: 1350.83 | K173: 1310.1 | L173: 1262 | M173: 1.39288
A174: 164 | B174: GODREJAGRO | C174: 561.5 | D174: 562.33 | E174: 555.12 | F174: 548.73 | G174: 541.52 | H174: 568.72 | I174: 575.93 | J174: 582.32 | K174: 569.55 | L174: 555.95 | M174: 0.66312
A175: 165 | B175: GODREJCP | C175: 646.8 | D175: 649.75 | E175: 642.55 | F175: 638.30 | G175: 631.10 | H175: 654.00 | I175: 661.20 | J175: 665.45 | K175: 656.95 | L175: 645.5 | M175: 16.90674
A176: 166 | B176: GODREJIND | C176: 431.9 | D176: 431.05 | E176: 426.90 | F176: 421.90 | G176: 417.75 | H176: 436.05 | I176: 440.20 | J176: 445.20 | K176: 435.2 | L176: 426.05 | M176: 1.29983
A177: 167 | B177: GODREJPROP | C177: 1168.8 | D177: 1168.30 | E177: 1153.90 | F177: 1139.00 | G177: 1124.60 | H177: 1183.20 | I177: 1197.60 | J177: 1212.50 | K177: 1182.7 | L177: 1153.4 | M177: 1.37409
A178: 168 | B178: GRANULES | C178: 162.2 | D178: 163.42 | E178: 159.53 | F178: 156.87 | G178: 152.98 | H178: 166.08 | I178: 169.97 | J178: 172.63 | K178: 167.3 | L178: 160.75 | M178: 23.21948
A179: 169 | B179: GRAPHITE | C179: 318.8 | D179: 316.98 | E179: 312.22 | F179: 305.63 | G179: 300.87 | H179: 323.57 | I179: 328.33 | J179: 334.92 | K179: 321.75 | L179: 310.4 | M179: 32.51296
A180: 170 | B180: GRASIM | C180: 787.65 | D180: 792.27 | E180: 780.93 | F180: 774.22 | G180: 762.88 | H180: 798.98 | I180: 810.32 | J180: 817.03 | K180: 803.6 | L180: 785.55 | M180: 10.82529
A181: 171 | B181: GESHIP | C181: 320.3 | D181: 321.75 | E181: 316.10 | F181: 311.90 | G181: 306.25 | H181: 325.95 | I181: 331.60 | J181: 335.80 | K181: 327.4 | L181: 317.55 | M181: 1.24897
A182: 172 | B182: GREAVESCOT | C182: 142.55 | D182: 140.92 | E182: 136.83 | F182: 131.12 | G182: 127.03 | H182: 146.63 | I182: 150.72 | J182: 156.43 | K182: 145 | L182: 135.2 | M182: 2.50461
A183: 173 | B183: GRINDWELL | C183: 655.45 | D183: 659.80 | E183: 646.65 | F183: 637.85 | G183: 624.70 | H183: 668.60 | I183: 681.75 | J183: 690.55 | K183: 672.95 | L183: 651 | M183: 0.13658
A184: 174 | B184: GUJALKALI | C184: 358.6 | D184: 359.53 | E184: 351.07 | F184: 343.53 | G184: 335.07 | H184: 367.07 | I184: 375.53 | J184: 383.07 | K184: 368 | L184: 352 | M184: 4.32336
A185: 175 | B185: GUJGASLTD | C185: 304.4 | D185: 306.97 | E185: 300.13 | F185: 295.87 | G185: 289.03 | H185: 311.23 | I185: 318.07 | J185: 322.33 | K185: 313.8 | L185: 302.7 | M185: 13.12485
A186: 176 | B186: GMDCLTD | C186: 61.25 | D186: 61.53 | E186: 60.72 | F186: 60.18 | G186: 59.37 | H186: 62.07 | I186: 62.88 | J186: 63.42 | K186: 62.35 | L186: 61 | M186: 0.57421
A187: 177 | B187: GNFC | C187: 182.05 | D187: 179.70 | E187: 174.00 | F187: 165.95 | G187: 160.25 | H187: 187.75 | I187: 193.45 | J187: 201.50 | K187: 185.4 | L187: 171.65 | M187: 9.82822
A188: 178 | B188: GPPL | C188: 89.5 | D188: 89.30 | E188: 87.80 | F188: 86.10 | G188: 84.60 | H188: 91.00 | I188: 92.50 | J188: 94.20 | K188: 90.8 | L188: 87.6 | M188: 5.70051
A189: 179 | B189: GSFC | C189: 77.95 | D189: 77.43 | E189: 76.02 | F189: 74.08 | G189: 72.67 | H189: 79.37 | I189: 80.78 | J189: 82.72 | K189: 78.85 | L189: 75.5 | M189: 5.05662
A190: 180 | B190: GSPL | C190: 245.5 | D190: 245.68 | E190: 243.87 | F190: 242.23 | G190: 240.42 | H190: 247.32 | I190: 249.13 | J190: 250.77 | K190: 247.5 | L190: 244.05 | M190: 1.76526
A191: 181 | B191: GULFOILLUB | C191: 801.75 | D191: 802.22 | E191: 798.53 | F191: 795.32 | G191: 791.63 | H191: 805.43 | I191: 809.12 | J191: 812.33 | K191: 805.9 | L191: 799 | M191: 0.02382
A192: 182 | B192: HEG | C192: 1225.6 | D192: 1208.90 | E192: 1169.80 | F192: 1114.00 | G192: 1074.90 | H192: 1264.70 | I192: 1303.80 | J192: 1359.60 | K192: 1248 | L192: 1153.1 | M192: 13.03387
A193: 183 | B193: HCLTECH | C193: 607.7 | D193: 605.35 | E193: 601.50 | F193: 595.30 | G193: 591.45 | H193: 611.55 | I193: 615.40 | J193: 621.60 | K193: 609.2 | L193: 599.15 | M193: 28.65379
A194: 184 | B194: HDFCAMC | C194: 3313.9 | D194: 3328.42 | E194: 3278.63 | F194: 3243.37 | G194: 3193.58 | H194: 3363.68 | I194: 3413.47 | J194: 3448.73 | K194: 3378.2 | L194: 3293.15 | M194: 5.97375
A195: 185 | B195: HDFCBANK | C195: 1242.2 | D195: 1240.27 | E195: 1233.53 | F195: 1224.87 | G195: 1218.13 | H195: 1248.93 | I195: 1255.67 | J195: 1264.33 | K195: 1247 | L195: 1231.6 | M195: 34.07724
A196: 186 | B196: HDFCLIFE | C196: 595.7 | D196: 594.90 | E196: 589.80 | F196: 583.90 | G196: 578.80 | H196: 600.80 | I196: 605.90 | J196: 611.80 | K196: 600 | L196: 589 | M196: 11.85529
A197: 187 | B197: HFCL | C197: 16.9 | D197: 16.87 | E197: 16.73 | F197: 16.57 | G197: 16.43 | H197: 17.03 | I197: 17.17 | J197: 17.33 | K197: 17 | L197: 16.7 | M197: 19.88107
A198: 188 | B198: HATSUN | C198: 657.9 | D198: 654.17 | E198: 646.33 | F198: 634.77 | G198: 626.93 | H198: 665.73 | I198: 673.57 | J198: 685.13 | K198: 662 | L198: 642.6 | M198: 0.09537
A199: 189 | B199: HAVELLS | C199: 630 | D199: 630.30 | E199: 626.20 | F199: 622.40 | G199: 618.30 | H199: 634.10 | I199: 638.20 | J199: 642.00 | K199: 634.4 | L199: 626.5 | M199: 7.29667
A200: 190 | B200: HEIDELBERG | C200: 205.3 | D200: 203.18 | E200: 199.67 | F200: 194.03 | G200: 190.52 | H200: 208.82 | I200: 212.33 | J200: 217.97 | K200: 206.7 | L200: 197.55 | M200: 5.26959
A201: 191 | B201: HERITGFOOD | C201: 348.75 | D201: 347.70 | E201: 344.45 | F201: 340.15 | G201: 336.90 | H201: 352.00 | I201: 355.25 | J201: 359.55 | K201: 350.95 | L201: 343.4 | M201: 0.0822
A202: 192 | B202: HEROMOTOCO | C202: 2443.45 | D202: 2453.60 | E202: 2411.20 | F202: 2378.95 | G202: 2336.55 | H202: 2485.85 | I202: 2528.25 | J202: 2560.50 | K202: 2496 | L202: 2421.35 | M202: 27.09754
A203: 193 | B203: HEXAWARE | C203: 377.4 | D203: 374.88 | E203: 370.87 | F203: 364.33 | G203: 360.32 | H203: 381.42 | I203: 385.43 | J203: 391.97 | K203: 378.9 | L203: 368.35 | M203: 2.19832
A204: 194 | B204: HSCL | C204: 62 | D204: 62.33 | E204: 61.27 | F204: 60.53 | G204: 59.47 | H204: 63.07 | I204: 64.13 | J204: 64.87 | K204: 63.4 | L204: 61.6 | M204: 4.24796
A205: 195 | B205: HIMATSEIDE | C205: 124.5 | D205: 125.30 | E205: 122.70 | F205: 120.90 | G205: 118.30 | H205: 127.10 | I205: 129.70 | J205: 131.50 | K205: 127.9 | L205: 123.5 | M205: 0.8393
A206: 196 | B206: HINDALCO | C206: 197.4 | D206: 196.22 | E206: 194.03 | F206: 190.67 | G206: 188.48 | H206: 199.58 | I206: 201.77 | J206: 205.13 | K206: 198.4 | L206: 192.85 | M206: 69.7777
... 320 more rows

Sheet Bulk Deals
E6: Back To Main Page
A7: Subject : | B7: BULK DEAL | D7: =Main!B10 -> 2020-02-10
A9: Date | B9: Scrip code | C9: Scrip Name | D9: Client Name | E9: Buy / Sell | F9: Quantity Traded | G9: Trade Price / Wt.Avg.trade price | H9: Exchange
A10: 2020-02-07 | B10: 541988 | C10: AAVAS | D10: LAKE DISTRICT HOLDINGS LIMITED | E10: SELL | F10: 3,660,700 | G10: 1819.47 | H10: BSE
A11: 2020-02-07 | B11: 541988 | C11: AAVAS | D11: KOTAK FUNDSINDIA MIDCAP FUND | E11: BUY | F11: 887,082 | G11: 1818 | H11: BSE
A12: 2020-02-07 | B12: 541988 | C12: AAVAS | D12: AMERICAN FUNDS INSURANCE SERIES GLOBAL SMALL CAPITALIZATION FUND | E12: BUY | F12: 402,000 | G12: 1818 | H12: BSE
A13: 2020-02-07 | B13: 541988 | C13: AAVAS | D13: SMALLCAP WORLD FUND INC | E13: BUY | F13: 1,534,000 | G13: 1818 | H13: BSE
A14: 2020-02-07 | B14: 542678 | C14: CHCL | D14: MIKER FINANCIAL CONSULTANTS PRIVATE LIMITED . | E14: SELL | F14: 162,000 | G14: 18.6 | H14: BSE
A15: 2020-02-07 | B15: 542678 | C15: CHCL | D15: GIRIJA AMIT SHARMA | E15: BUY | F15: 162,000 | G15: 18.6 | H15: BSE
A16: 2020-02-07 | B16: 542924 | C16: JANUSCORP | D16: SATYA GUPTA | E16: BUY | F16: 87,000 | G16: 47.38 | H16: BSE
A17: 2020-02-07 | B17: 542924 | C17: JANUSCORP | D17: JAGANNATH INTERNATIONAL P LTD | E17: BUY | F17: 36,000 | G17: 47.49 | H17: BSE
A18: 2020-02-07 | B18: 538765 | C18: JSHL | D18: ANURAAG BAJPAI | E18: BUY | F18: 40,000 | G18: 20.28 | H18: BSE
A19: 2020-02-07 | B19: 538765 | C19: JSHL | D19: SANJIV KUMAR MISHRA | E19: SELL | F19: 40,000 | G19: 20.15 | H19: BSE
A20: 2020-02-07 | B20: 526263 | C20: MOLDTEK | D20: UNO METALS LIMITED | E20: SELL | F20: 340,000 | G20: 46 | H20: BSE
A21: 2020-02-07 | B21: 540709 | C21: RELHOME | D21: ALPHA LEON ENTERPRISES LLP | E21: BUY | F21: 5,182,121 | G21: 1.19 | H21: BSE
A22: 2020-02-07 | B22: 540709 | C22: RELHOME | D22: ALPHA LEON ENTERPRISES LLP | E22: SELL | F22: 2,175,746 | G22: 1.18 | H22: BSE
A23: 2020-02-07 | B23: 540709 | C23: RELHOME | D23: TEJAS TRADEFIN LLP | E23: SELL | F23: 3,500,000 | G23: 1.18 | H23: BSE
A24: 2020-02-07 | B24: 540693 | C24: SHISHIND | D24: PURE BROKING PRIVATE LIMITED | E24: BUY | F24: 24,000 | G24: 44.67 | H24: BSE
A25: 2020-02-07 | B25: 540693 | C25: SHISHIND | D25: PRABHULAL LALLUBHAI PAREKH | E25: SELL | F25: 24,000 | G25: 44.67 | H25: BSE
A26: 2020-02-07 | B26: 539026 | C26: SSPNFIN | D26: DEVJEET CHAKRABORTY | E26: BUY | F26: 20,000 | G26: 57.9 | H26: BSE
A27: 2020-02-07 | B27: 539026 | C27: SSPNFIN | D27: DEVJEET CHAKRABORTY | E27: SELL | F27: 20,000 | G27: 56.82 | H27: BSE
A28: 2020-02-07 | B28: 519367 | C28: TRANSFD | D28: UNNATI INVESTMENT | E28: SELL | F28: 1,000 | G28: 37.05 | H28: BSE
A29: 2020-02-07 | B29: 539222 | C29: VMV | D29: ESPS FINSERVE PRIVATE LIMITED | E29: BUY | F29: 30,000 | G29: 27 | H29: BSE
A30: 2020-02-07 | B30: 539222 | C30: VMV | D30: NAND KISHORE MALPANI (HUF) . | E30: SELL | F30: 30,000 | G30: 27 | H30: BSE
A31: 2020-02-07 | B31: BVCL | C31: Barak Valley Cements Limi | D31: BINA GARODIA | E31: BUY | F31: 200,000 | G31: 12.8 | H31: NSE
A32: 2020-02-07 | B32: CKFSL | C32: Cox & Kings Fin Serv Ltd | D32: ARCADIA SHARE & STOCK BROKERS PVT. LTD. | E32: BUY | F32: 400,000 | G32: 0.35 | H32: NSE
A33: 2020-02-07 | B33: HSIL | C33: HSIL Limited | D33: PACO EXPORTS LTD | E33: BUY | F33: 760,895 | G33: 50.17 | H33: NSE
A34: 2020-02-07 | B34: IBULHSGFIN | C34: Indiabulls Hsg Fin Ltd | D34: TOWER RESEARCH CAPITAL MARKETS INDIA PRIVATE LIMITED | E34: BUY | F34: 2,969,854 | G34: 321.7 | H34: NSE
A35: 2020-02-07 | B35: RHFL | C35: Reliance Home Finance Ltd | D35: TEJAS TRADEFIN LLP | E35: BUY | F35: 4,000,001 | G35: 1.2 | H35: NSE
A36: 2020-02-07 | B36: SNOWMAN | C36: Snowman Logistics Ltd. | D36: RAJASTHAN GLOBAL SECURITIES PVT LTD | E36: BUY | F36: 879,054 | G36: 43.66 | H36: NSE
A37: 2020-02-07 | B37: BVCL | C37: Barak Valley Cements Limi | D37: BIJAY KUMAR GARODIA | E37: SELL | F37: 200,000 | G37: 12.8 | H37: NSE
A38: 2020-02-07 | B38: CKFSL | C38: Cox & Kings Fin Serv Ltd | D38: ENTATHUR VEERARAGHAVA REDDIAR PERUMALSWAMI | E38: SELL | F38: 778,710 | G38: 0.35 | H38: NSE
A39: 2020-02-07 | B39: CKFSL | C39: Cox & Kings Fin Serv Ltd | D39: ARCADIA SHARE & STOCK BROKERS PVT. LTD. | E39: SELL | F39: 300,000 | G39: 0.35 | H39: NSE
A40: 2020-02-07 | B40: DQE | C40: DQ Entertainment Int Ltd | D40: KRISHNI DEVI GOENKA | E40: SELL | F40: 527,699 | G40: 0.75 | H40: NSE
A41: 2020-02-07 | B41: IBULHSGFIN | C41: Indiabulls Hsg Fin Ltd | D41: TOWER RESEARCH CAPITAL MARKETS INDIA PRIVATE LIMITED | E41: SELL | F41: 2952040 | G41: 321.92 | H41: NSE
A42: 2020-02-07 | B42: RHFL | C42: Reliance Home Finance Ltd | D42: TEJAS TRADEFIN LLP | E42: SELL | F42: 500000 | G42: 1.2 | H42: NSE
A43: 2020-02-07 | B43: SADBHAV | C43: Sadbhav Engineering Limit | D43: NORGES BANK AC GOVERNMENT PETROLEUM FUND | E43: SELL | F43: 909000 | G43: 117.92 | H43: NSE
A44: 2020-02-07 | B44: SIMPLEXINF | C44: Simplex Infrastructures L | D44: MITESH N MEHTA | E44: SELL | F44: 316000 | G44: 54.25 | H44: NSE
A45: 2020-02-07 | B45: SPTL | C45: Sintex Plastics Tech Ltd | D45: ENTATHUR VEERARAGHAVA REDDIAR PERUMALSWAMI | E45: SELL | F45: 3720888 | G45: 0.97 | H45: NSE

Sheet Call Tracker (Equity & F&O)
M5: Back To Main Page
A6: Retail Research Technical Calls & Fundamental Performance Report for the month of February-2020
M7: =Main!B10 -> 2020-02-10
B8: Positional Call
A9: Sr.no | B9: Date | D9: Company | E9: Rec | F9: Rec Price | G9: Stop Loss*** | H9: Call Closed At | I9: Target | J9: Remark | K9: Profit / Loss per Share | L9: Gain / Loss % | M9: Status | N9: Closed Date | O9: NSE Closed Price
A10: 1 | B10: 2020-01-07 | D10: ITC | E10: Buy | F10: 237 | G10: 222.2 | H10: 220 | I10: 255-260 | J10: Loss of Rs.17/- | K10: =H10-F10 -> -17 | L10: =K10/F10 -> -7.17% | M10: Unsuccessful | N10: 2020-02-01 | R10: R
A11: 2 | B11: 2020-01-20 | D11: IOC | E11: Buy | F11: 117.5 | G11: 114 | H11: 117.25 | I11: 130 | J11: Loss of Rs.0.25/- | K11: =H11-F11 -> -0.25 | L11: =K11/F11 -> -0.21% | M11: Neutral | N11: 2020-02-01 | R11: H
A12: 3 | B12: 2020-02-03 | D12: FINPIPE | E12: Buy | F12: 552.5 | G12: 518 | H12: 567.5 | I12: 600-630 | J12: Profit of Rs.15/- | K12: =H12-F12 -> 15 | L12: =K12/F12 -> 2.71% | M12: Successful | N12: 2020-02-03 | R12: H
A13: 4 | B13: 2020-02-03 | D13: POWERGRID | E13: Buy | F13: 183 | G13: 169 | H13: 190 | I13: 200-210 | J13: Profit of Rs.7/- | K13: =H13-F13 -> 7 | L13: =K13/F13 -> 3.83% | M13: Successful | N13: 2020-02-03 | R13: H
A14: 5 | B14: 2020-02-04 | D14: MARICO | E14: Buy | F14: 306-308 | G14: 287.8 | I14: 335-345 | J14: Open | R14: R
A15: 6 | B15: 2020-02-04 | D15: BAJAJFINSV | E15: Sell | F15: 9500-9550 | G15: 10100 | I15: 8500-8300 | J15: Open | R15: H
A16: 7 | B16: 2020-02-05 | D16: INDHOTEL | E16: Buy | F16: 140-141 | G16: 132 | I16: 152-158 | J16: Open | R16: H
A17: 8 | B17: 2020-02-05 | D17: FINPIPE | E17: Buy | F17: 550-554 | G17: 518 | I17: 600-630 | J17: Open | R17: H
A18: 9 | B18: 2020-02-05 | D18: IOC | E18: Buy | F18: 113-115 | G18: 107 | I18: 124-128 | J18: Open | R18: H
A19: 10 | B19: 2020-02-07 | D19: LUPIN | E19: Buy | F19: 695-705 | G19: 668 | I19: 770-800 | J19: Open | R19: H
A25: CLBS = Closing Basis ***
A26: Dividend adjusted <> | F26: Reinitiated $
A27: Part book {} | F27: Revised stoploss #
B29: Momentum Call
A30: Sr.no | B30: Date | D30: Company | E30: Rec | F30: Rec Price | G30: Stop Loss | H30: Call Closed At | I30: Target | J30: Remark | K30: Profit / Loss per Share/Lot | L30: Gain / Loss % | M30: Gain / Loss per Lot | N30: Lot | O30: Status | P30: Closed Date
A31: 1 | B31: 2020-01-31 | D31: GRASIM FEB FUT | E31: Buy | F31: 793 | G31: 777.7 | H31: 778.5 | I31: 820 | J31: Loss of Rs.14.5/- | K31: =H31-F31 -> -14.5 | M31: =N31*K31 -> -10875 | N31: 750 | O31: Unsuccessful | P31: 2020-02-01 | R31: R
A32: 2 | B32: 2020-01-31 | D32: TATASTEEL | E32: Buy | F32: 445 | G32: 431.7 | H32: 427.5 | I32: 465-470 | J32: Loss of Rs.17.5/- | K32: =H32-F32 -> -17.5 | L32: =K32/F32 -> -3.93% | O32: Unsuccessful | P32: 2020-02-01 | R32: R
A33: 3 | B33: 2020-02-01 | D33: SBIN | E33: Buy | F33: 313.5 | G33: 304 | H33: 304 | I33: 330-335 | J33: Loss of Rs.9.5/- | K33: =H33-F33 -> -9.5 | L33: =K33/F33 -> -3.03% | O33: Unsuccessful | P33: 2020-02-01 | R33: H
A34: 4 | B34: 2020-02-03 | D34: SBIN | E34: Buy | F34: 301 | G34: 292 | H34: 306 | I34: 315-320 | J34: Profit of Rs.5/- | K34: =H34-F34 -> 5 | L34: =K34/F34 -> 1.66% | O34: Successful | P34: 2020-02-03 | R34: H
A35: 5 | B35: 2020-02-03 | D35: SBIN | E35: Buy | F35: 300 | G35: 289 | H35: 306.5 | I35: 315-320 | J35: Profit of Rs.6.5/- | K35: =H35-F35 -> 6.5 | L35: =K35/F35 -> 2.17% | O35: Successful | P35: 2020-02-04 | R35: H
A36: 6 | B36: 2020-02-03 | D36: BAJAJAUTO | E36: Sell | F36: 3265 | G36: 3355 | H36: 3195 | I36: 3100-3050 | J36: Profit of Rs.70/- | K36: =F36-H36 -> 70 | L36: 2.14% | O36: Successful | P36: 2020-02-04 | R36: H
A37: 7 | B37: 2020-02-04 | D37: RELIANCE | E37: Buy | F37: 1414 | G37: 1367.7 | H37: 1442.5 | I37: 1480-1500 | J37: Profit of Rs.28.5/- | K37: =H37-F37 -> 28.5 | L37: =K37/F37 -> 2.02% | O37: Successful | P37: 2020-02-05 | R37: R
A38: 8 | B38: 2020-02-04 | D38: SUNPHARMA | E38: Buy | F38: 417 | G38: 404 | H38: 423.5 | I38: 435-445 | J38: Profit of Rs.6.5/- | K38: =H38-F38 -> 6.5 | L38: =K38/F38 -> 1.56% | O38: Successful | P38: 2020-02-04 | R38: R
A39: 9 | B39: 2020-02-05 | D39: ESCORTS | E39: Sell | F39: 842.5 | G39: 866 | H39: 866 | I39: 815-805 | J39: Loss of Rs.23.5/- | K39: =F39-H39 -> -23.5 | L39: -2.79% | O39: Unsuccessful | P39: 2020-02-07 | R39: H
A40: 10 | B40: 2020-02-05 | D40: LT FEB FUT | E40: Buy | F40: 1308-1312 | G40: 1275 | I40: 1350-1360 | J40: Open | R40: N
A41: 11 | B41: 2020-02-05 | D41: APOLLOHOSP | E41: Buy | F41: 1656-1662 | G41: 1595 | I41: 1720-1750 | J41: Open | R41: H
A42: 12 | B42: 2020-02-05 | D42: UPL | E42: Sell | F42: 538 | G42: 555.5 | H42: 554 | I42: 510-505 | J42: Loss of Rs.16/- | K42: =F42-H42 -> -16 | L42: =K42/F42 -> -2.97% | O42: Unsuccessful | P42: 2020-02-07 | R42: R
A43: 13 | B43: 2020-02-05 | D43: COLPAL FEB FUT | E43: Buy | F43: 1368 | G43: 1351 | H43: 1378 | I43: 1400 | J43: Profit of Rs.10/- | K43: =H43-F43 -> 10 | M43: =N43*K43 -> 7000 | N43: 700 | O43: Successful | P43: 2020-02-05 | R43: N
A44: 14 | B44: 2020-02-05 | D44: ITC | E44: Buy | F44: 214 | G44: 204.4 | H44: 218.5 | I44: 226-230 | J44: Profit of Rs.4.50/- | K44: 4.5 | L44: =K44/F44 -> 2.10% | O44: Successful | P44: 2020-02-06 | R44: R
A45: 15 | B45: 2020-02-05 | D45: HINDUNILVR FEB FUT | E45: Sell | F45: 2160-2165 | G45: 2205 | I45: 2100-2080 | J45: Open | R45: R
A46: 16 | B46: 2020-02-05 | D46: DABUR FEB FUT | E46: Sell | F46: 512-514 | G46: 523.4 | I46: 495 | J46: Open | R46: R
A47: 17 | B47: 2020-02-05 | D47: NIFTY FEB FUT | E47: Sell | F47: 12045 | G47: 12155 | H47: 12155 | I47: 11850 | J47: Loss of Rs.110/- | K47: =F47-H47 -> -110 | M47: =N47*K47 -> -8250 | N47: 75 | O47: Unsuccessful | P47: 2020-02-06 | R47: R
A48: 18 | B48: 2020-02-05 | D48: ACC FEB FUT | E48: Buy | F48: 1476 | G48: 1445 | H48: 1496.5 | I48: 1510-1525 | J48: Profit of Rs.20.50/- | K48: =H48-F48 -> 20.5 | M48: =N48*K48 -> 8200 | N48: 400 | O48: Successful | P48: 2020-02-06 | R48: N
A49: 19 | B49: 2020-02-06 | D49: JUBLFOOD | E49: Sell | F49: 1927.5 | G49: 1986.7 | H49: 1887.5 | I49: 1830-1810 | J49: Profit of Rs.40/- | K49: =F49-H49 -> 40 | L49: =K49/F49 -> 2.08% | O49: Successful | P49: 2020-02-06 | R49: R
A50: 20 | B50: 2020-02-06 | D50: ICICIBANK | E50: Sell | F50: 537-540 | G50: 555.55 | I50: 515-505 | J50: Open | R50: R
A51: 21 | B51: 2020-02-06 | D51: AXISBANK | E51: Sell | F51: 733-735 | G51: 755 | I51: 700-690 | J51: Open | R51: H
A52: 22 | B52: 2020-02-06 | D52: HDFCBANK FEB FUT | E52: Buy | F52: 1241-1243 | G52: 1220 | I52: 1270-1280 | J52: Open | R52: N
A62: CLBS = Closing Basis ***
A63: Dividend adjusted <> | F63: Reinitiated $
F64: Revised stoploss #
A66: Master Trade High Risk
A67: Sr.no | B67: Date | D67: Company | E67: Rec | F67: Rec Price | G67: Stop Loss | H67: Call Closed At | I67: Target | J67: Remark | K67: Profit / Loss per share | L67: Gain / Loss per Lot | M67: Lot | N67: Status | O67: Closed Date
A68: 1 | B68: 2020-02-04 | D68: ESCORTS FEB FUT | E68: Sell | F68: 836 | G68: 864 | H68: 855 | I68: 800-790 | J68: Loss of Rs.13/- | K68: =F68-H68 -> -19 | L68: =-13*M68 -> -14300 | M68: 1100 | N68: Unsuccessful | O68: 2020-02-04 | R68: H
D69: ESCORTS FEB 800 PE | E69: Sell | F69: 17 | H69: 11 | K69: =F69-H69 -> 6 | R69: H
A72: Master Trade Medium Risk
A73: Sr.no | B73: Date | D73: Company | E73: Rec | F73: Rec Price | G73: Stop Loss | H73: Call Closed At | I73: Target | J73: Remark | K73: Profit/ Loss per lot | L73: Gain / Loss per Lot | M73: Lot | N73: Status | O73: Closed Date
A74: 1 | B74: 2020-01-31 | D74: DLF 250 FEB PE | E74: Buy | F74: 8.8 | H74: 13.5 | J74: Profit of Rs.1.2/- | K74: =H74-F74 -> 4.7 | L74: =1.2*M74 -> 3960 | M74: 3300 | N74: Successful | O74: 2020-02-01 | R74: H
D75: DLF FEB 245 PE | E75: Sell | F75: 7 | H75: 10.5 | K75: =F75-H75 -> -3.5 | R75: H
A76: 2 | B76: 2020-02-01 | D76: DABUR 490 FEB PE | E76: Buy | F76: 9 | G76: 4.5 | H76: 11 | I76: 14-16 | J76: Profit of Rs.2/- | K76: =H76-F76 -> 2 | L76: =K76*M76 -> 2500 | M76: 1250 | N76: Successful | O76: 2020-02-01 | R76: H
A77: 3 | B77: 2020-02-03 | D77: MARUTI 7200 FEB CE | E77: Buy | F77: 111.5 | H77: 155.5 | J77: Prpfit of Rs.23.5 | K77: 44 | L77: =23.5*M77 -> 1762.5 | M77: 75 | N77: Successful | O77: 2020-02-04 | R77: H
D78: MARUTI 7400 FEB CE | E78: Sell | F78: 61.5 | H78: 82 | K78: -20.5 | R78: H
A79: 4 | B79: 2020-02-04 | D79: NIFTY 27 FEB 11700 PE | E79: Buy | F79: 118-122 | J79: Open | R79: H
D80: NIFTY 27 FEB 11500 PE | E80: Sell | F80: 64-68 | R80: H
A81: 5 | B81: 2020-02-05 | D81: NIFTY 11800 27-FEB PE | E81: Buy | F81: 73 | G81: 35 | H81: 84 | I81: 120-140 | J81: Profit of Rs.11/- | K81: =H81-F81 -> 11 | L81: =K81*M81 -> 825 | M81: 75 | N81: Successful | O81: 2020-02-05 | R81: H
A82: 6 | B82: 2020-02-05 | D82: DABUR 490 FEB PE | E82: Buy | F82: 4.50-5.00 | G82: 1.5 | I82: 8.00-10.00 | J82: Open | R82: H
A83: 7 | B83: 2020-02-05 | D83: NIFTY 11800 27-FEB PE | E83: Buy | F83: 65-68 | G83: 33 | I83: 110-120 | J83: Open | R83: H
A92: Techno -Funda (positional)
A93: Sr.no | B93: Date | D93: Company | E93: Rec | F93: Rec Price | G93: Stop Loss*** | H93: Call Closed At | I93: Target | J93: Remark | K93: Profit / Loss per Share | L93: Gain / Loss % | M93: Status | N93: Closed Date | O93: NSE Closed Price
A94: 1 | B94: 2020-01-07 | D94: FINPIPE | E94: Buy | F94: 543 | G94: 495 | H94: 584.5 | I94: 630-650 | J94: Profit of Rs.41.5/- | K94: =H94-F94 -> 41.5 | L94: =K94/F94 -> 7.64% | M94: Successful | N94: 2020-02-01 | R94: H
A96: CLBS = Closing Basis *** | F96: Reinitiated $
A97: Dividend adjusted <> | F97: Revised stoploss #
B102: Investment Idea
A103: Sr.no | B103: Date | D103: Company | E103: Rec | F103: Rec Price | G103: Point of Review | H103: Close Rate | I103: Target | J103: Remark | K103: Profit / Loss per Share | L103: Gain / Loss % | M103: Status | N103: Closed Date
A104: 1 | B104: 2013-11-01 | D104: L&T Finance Holding | E104: Accu | F104: 82.00 | G104: - | H104: 100 | I104: 100.00 | J104: Target Achieved | K104: =H104-F104 -> 18.00 | L104: =K104/F104 -> 21.95% | M104: Successful | N104: 2016-10-14
A105: 2 | B105: 2014-06-04 | D105: Finolex Inds | E105: Buy | F105: 257.00 | G105: - | H105: 300 | I105: 300.00 | J105: Target Achieved | K105: 43.00 | L105: 16.73% | M105: Successful | N105: 2014-07-02
A106: 3 | B106: 2014-07-08 | D106: JK Cement | E106: Buy | F106: 393.00 | G106: - | H106: 468 | I106: 468.00 | J106: Target Achieved | K106: 75.00 | L106: 19.08% | M106: Successful | N106: 2014-08-12
A107: 4 | B107: 2014-08-06 | D107: Finolex Cables | E107: Buy | F107: 205.00 | G107: - | H107: 275 | I107: 250.00 | J107: Target Achieved | K107: 70.00 | L107: 34.15% | M107: Successful | N107: 2014-11-19
A108: 5 | B108: 2014-09-04 | D108: Exide Inds | E108: Buy | F108: 162.00 | G108: - | H108: 190 | I108: 190.00 | J108: Target Achieved | K108: 28.00 | L108: 17.28% | M108: Successful | N108: 2015-01-02
A109: 6 | B109: 2014-09-04 | D109: Deepak Nitrite | E109: Buy | F109: 75.00 | G109: - | H109: 91.5 | I109: 95-100 | J109: Profit of Rs.16.50/- | K109: 16.50 | L109: 22.00% | M109: Successful | N109: 2014-11-11
A110: 7 | B110: 2014-10-01 | D110: Mercks | E110: Buy | F110: 850.00 | G110: - | H110: 982.5 | I110: 1050.00 | J110: Profit of Rs.132.50/- | K110: 132.50 | L110: 15.59% | M110: Successful | N110: 2015-02-04
A111: 8 | B111: 2014-10-01 | D111: Grindwell Norton | E111: Buy | F111: 475.00 | G111: - | H111: 515 | I111: 600.00 | J111: Profit of Rs.40/- | K111: 40.00 | L111: 8.42% | M111: Successful | N111: 2014-10-27
A112: 9 | B112: 2014-10-01 | D112: Snowman Logistics | E112: Buy | F112: 86.00 | G112: - | H112: 99 | I112: 140.00 | J112: Profit of Rs.13.00/- | K112: 13.00 | L112: 15.12% | M112: Successful | N112: 2014-10-27
A113: 10 | B113: 2014-10-14 | D113: Birla Corp | E113: Buy | F113: 496.60 | G113: - | H113: 621 | I113: 580.00 | J113: Target Achieved | K113: 124.40 | L113: 25.05% | M113: Successful | N113: 2016-08-23
A114: 11 | B114: 2014-10-14 | D114: Ultratech Cem | E114: Buy | F114: 2481.90 | G114: - | H114: 2840 | I114: 2870.00 | J114: Profit of Rs.358.10/- | K114: 358.10 | L114: 14.43% | M114: Successful | N114: 2015-01-13
A115: 12 | B115: 2014-10-16 | D115: Sintex Inds | E115: Buy | F115: 84.50 | G115: - | H115: 93 | I115: 110.00 | J115: Profit of Rs.8.50/- | K115: 8.50 | L115: 10.06% | M115: Successful | N115: 2014-10-27
A116: 13 | B116: 2014-10-16 | D116: HSIL | E116: Buy | F116: 401.00 | G116: - | H116: 428 | I116: 450.00 | J116: Profit of Rs.27.00/- | K116: 27.00 | L116: 6.73% | M116: Successful | N116: 2015-01-16
A117: 14 | B117: 2014-10-16 | D117: Eveready Inds | E117: Buy | F117: 101.00 | G117: - | H117: 112 | I117: 120.00 | J117: Profit of Rs.11.00/- | K117: 11.00 | L117: 10.89% | M117: Successful | N117: 2014-10-27
A118: 15 | B118: 2014-11-11 | D118: Pennar Inds | E118: Buy | F118: 59.00 | G118: - | H118: 76 | I118: 76.00 | J118: Target Achieved | K118: 17.00 | L118: 28.81% | M118: Successful | N118: 2017-10-24
A119: 16 | B119: 2014-11-11 | D119: Snowman Logistics | E119: Buy | F119: 99.00 | G119: - | H119: 120 | I119: 120.00 | J119: Profit of Rs.21/- | K119: 21.00 | L119: 21.21% | M119: Successful | N119: 2014-11-17
A120: 17 | B120: 2014-11-13 | D120: Dharamsi Morarji Chem | E120: Buy | F120: 22.00 | G120: - | H120: 33.55 | I120: 32.00 | J120: Profit of Rs 11.55/- | K120: 11.55 | L120: 52.50% | M120: Successful | N120: 2015-07-03
A121: 18 | B121: 2014-12-03 | D121: Tatachem | E121: Buy | F121: 440.00 | G121: - | H121: 520 | I121: 520.00 | J121: Profit of Rs 80.00/- | K121: 80.00 | L121: 18.18% | M121: Successful | N121: 2015-07-23
A122: 19 | B122: 2014-12-03 | D122: Advanta | E122: Buy | F122: 360.00 | G122: - | H122: 427 | I122: 425.00 | J122: Profit of Rs.67.00/- | K122: 67.00 | L122: 18.61% | M122: Successful | N122: 2015-02-23
A123: 20 | B123: 2015-01-08 | D123: GDL | E123: Buy | F123: 360.00 | G123: - | H123: 455 | I123: 420.00 | J123: Profit of Rs.95.00/- | K123: 95.00 | L123: 26.39% | M123: Successful | N123: 2015-01-20
A124: 21 | B124: 2015-01-08 | D124: NRB Bearing | E124: Buy | F124: 130.00 | H124: 175.5 | I124: 165.00 | J124: Profit of Rs 45.50/- | K124: 45.50 | L124: 35.00% | M124: Successful | N124: 2017-12-19
A125: 22 | B125: 2015-02-05 | D125: GSFC | E125: Accu | F125: 98.00 | H125: 120 | I125: 120.00 | J125: Target Achieved | K125: 22.00 | L125: 22.45% | M125: Successful | N125: 2017-01-18
A126: 23 | B126: 2015-02-05 | D126: Sundrmfast | E126: Accu | F126: 196.00 | H126: 262 | I126: 255.00 | J126: Target Achieved | K126: 66.00 | L126: 33.67% | M126: Successful | N126: 2016-08-17
A127: 24 | B127: 2015-03-04 | D127: GPPL | E127: Accu | F127: 235 | H127: 77.00 | I127: 280-285 | J127: Loss of Rs.158/- | K127: -158.00 | L127: -67.23% | M127: Unsuccessful | N127: 2019-02-26
A128: 25 | B128: 2015-03-04 | D128: ORIENTCEM | E128: Accu | F128: 185.00 | H128: 224 | I128: 220-225 | J128: Target Achieved | K128: 39.00 | L128: 21.08% | M128: Successful | N128: 2016-10-04
A129: 26 | B129: 2015-03-27 | D129: PFS | E129: Accu | F129: 49.5 | H129: 15.85 | I129: 67.00 | J129: Loss of Rs.33.65/- | K129: -33.65 | L129: -68% | M129: Unsuccessful | N129: 2019-06-11
A130: 27 | B130: 2015-03-30 | D130: Walchandnagar Ind Ltd | E130: Accu | F130: 183.50 | H130: 219 | I130: 218.00 | J130: Profit of Rs.35.50/- | K130: 35.50 | L130: 19.35% | M130: Successful | N130: 2015-04-09
A131: 28 | B131: 2015-04-20 | D131: Kalpataru Power Transmission Ltd | E131: Accu | F131: =(227+237)/2 -> 232.00 | H131: 298 | I131: 298.00 | J131: Target Achieved | K131: 66.00 | L131: 28.45% | M131: Successful | N131: 2017-03-29
A132: 29 | B132: 2015-05-04 | D132: Mastek Ltd | E132: Buy | F132: 385.00 | H132: =212.5+331 -> 543.5 | I132: 510.00 | J132: Profit of Rs 158.50/- | K132: 158.50 | L132: 41.17% | M132: Successful | N132: 2015-08-19
A133: 30 | B133: 2015-05-04 | D133: Suprajit Eng | E133: Buy | F133: 115.50 | H133: 146 | I133: 142.00 | J133: Profit of Rs 30.50/- | K133: 30.50 | L133: 26.41% | M133: Successful | N133: 2015-07-17
A134: 31 | B134: 2015-05-27 | D134: TCI | E134: Buy | F134: 237.50 | H134: 279.5 | I134: 278.00 | J134: Target Achieved | K134: 42.00 | L134: 17.68% | M134: Successful | N134: 2015-08-06
A135: 32 | B135: 2015-06-19 | D135: HSIL | E135: Accu | F135: 340.00 | H135: 448 | I135: 448.00 | J135: Target Achieved | K135: 108.00 | L135: 31.76% | M135: Successful | N135: 2017-10-10
A136: 33 | B136: 2015-07-06 | D136: Capital First | E136: Accu | F136: 390.00 | H136: 460 | I136: 460.00 | J136: Target Achieved | K136: =H136-F136 -> 70.00 | L136: =K136/F136 -> 17.95% | M136: Successful | N136: 2016-04-18
A137: 34 | B137: 2015-07-10 | D137: Dolphin OffShore | E137: Accu | F137: 122.5 | H137: 61.00 | I137: 172.00 | J137: Loss of Rs.61.50/- | K137: -61.50 | L137: -50.20% | M137: Unsuccessful | N137: 2018-08-21
A138: 35 | B138: 2015-08-03 | D138: Allcargo logistics | E138: Accu | F138: 297.50 | H138: 350 | I138: 360.00 | J138: Profit of Rs 52.50/- | K138: 52.50 | L138: 17.65% | M138: Successful | N138: 2015-08-16
A139: 36 | B139: 2015-08-03 | D139: Camline Fine | E139: Accu | F139: 115.50 | H139: 149 | I139: 140.00 | J139: Profit of Rs 33.50/- | K139: 33.50 | L139: 29.00% | M139: Successful | N139: 2017-01-05
A140: 37 | B140: 2015-09-04 | D140: TCI | E140: Accu | F140: 226.00 | H140: 292 | I140: 292.00 | J140: Target Achieved | K140: 66.00 | L140: 29.20% | M140: Successful | N140: 2015-10-09
A141: 38 | B141: 2015-09-07 | D141: Kalpataru Power Transmission Ltd | E141: Accu | F141: 232.50 | H141: 312.5 | I141: 310.00 | J141: Target Achieved | K141: 80.00 | L141: 34.41% | M141: Successful | N141: 2017-03-29
A142: 39 | B142: 2015-09-21 | D142: LLOYD ELECTRIC & ENG LTD | E142: Accu | F142: 196.50 | H142: 238 | I142: 238.00 | J142: Target Achieved | K142: 41.50 | L142: 21.12% | M142: Successful | N142: 2015-10-14
A143: 40 | B143: 2015-09-24 | D143: L&T Finance Holding | E143: Accu | F143: 65.00 | H143: 82 | I143: 82.00 | J143: Target Achieved | K143: 17.00 | L143: 26.15% | M143: Successful | N143: 2016-07-27
A144: 41 | B144: 2015-10-14 | D144: KEC International ltd | E144: Accu | F144: 144.00 | H144: 182.5 | I144: 181.00 | J144: Target Achieved | K144: 38.50 | L144: 26.74% | M144: Successful | N144: 2017-03-23
A145: 42 | B145: 2015-10-14 | D145: Gruh Finance | E145: Accu | F145: 264.00 | H145: 311 | I145: 311.00 | J145: Target Achieved | K145: 47.00 | L145: 17.80% | M145: Successful | N145: 2016-08-22
A146: 43 | B146: 2015-11-10 | D146: Pidilitind | E146: Buy | F146: 549.50 | H146: 630 | I146: 630.00 | J146: Target Achieved | K146: 80.50 | L146: 14.65% | M146: Successful | N146: 2016-02-19
A147: 44 | B147: 2015-12-04 | D147: Zensar Technology | E147: Accu | F147: 1027.50 | H147: 1315 | I147: 1250.00 | J147: Target Achieved | K147: 287.50 | L147: 27.98% | M147: Successful | N147: 2018-05-24
A148: 45 | B148: 2015-12-29 | D148: Vinati Organics Ltd | E148: Accu | F148: 465.00 | H148: 540 | I148: 540.00 | J148: Target Achieved | K148: 75.00 | L148: 16.13% | M148: Successful | N148: 2016-06-09
A149: 46 | B149: 2016-01-11 | D149: GSFC | E149: Buy | F149: 81.00 | H149: 110 | I149: 110.00 | J149: Target Achieved | K149: 29.00 | L149: 35.80% | M149: Successful | N149: 2017-01-10
A150: 47 | B150: 2016-01-13 | D150: SSWL | E150: Buy | F150: 417.50 | H150: 547 | I150: 535.00 | J150: Target Achieved | K150: 129.50 | L150: 31.02% | M150: Successful | N150: 2016-07-27
A151: 48 | B151: 2016-02-08 | D151: Persistent System Ltd | E151: Accu | F151: 650.00 | H151: 800 | I151: 800.00 | J151: Target Achieved | K151: 150.00 | L151: 23.08% | M151: Successful | N151: 2018-02-23
A152: 49 | B152: 2016-03-04 | D152: UPL | E152: Accu | F152: 437.50 | H152: 504.5 | I152: 522.00 | J152: Profit of Rs.67/- | K152: 67.00 | L152: 15.31% | M152: Successful | N152: 2016-04-20
A153: 50 | B153: 2016-03-09 | D153: Ashoka Buildcon Ltd | E153: Accu | F153: 189.50 | H153: 218 | I153: 218.00 | J153: Target Achieved | K153: 28.50 | L153: 15.04% | M153: Successful | N153: 2017-10-26
A154: 51 | B154: 2016-04-11 | D154: PTC INDIA FIN SERV LTD | E154: Accu | F154: 36.5 | H154: 15.85 | I154: 60.00 | J154: Loss of Rs.20.65/- | K154: -20.65 | L154: -56.58% | M154: Unsuccessful | N154: 2019-06-11
A155: 52 | B155: 2016-04-12 | D155: CAMLINFINE $ | E155: Accu | F155: 93.00 | H155: 149 | I155: 140.00 | J155: Profit of Rs 56/- | K155: 56.00 | L155: 60.22% | M155: Successful | N155: 2017-01-05
A156: 53 | B156: 2016-04-12 | D156: Greaves Cotton Ltd. | E156: Accu | F156: 130.00 | H156: 150 | I156: 150-155 | J156: Target Achieved | K156: 20.00 | L156: 15.38% | M156: Successful | N156: 2016-07-13
A157: 54 | B157: 2016-04-13 | D157: DHFL | E157: Accu | F157: 196.00 | H157: 299 | I157: 299.00 | J157: Target Achieved | K157: 103.00 | L157: 52.55% | M157: Successful | N157: 2016-09-07
A158: 55 | B158: 2016-04-13 | D158: Magma | E158: Accu | F158: 88.00 | H158: 103 | I158: 103.00 | J158: Target Achieved | K158: 15.00 | L158: 17.05% | M158: Successful | N158: 2016-06-09
A159: 56 | B159: 2016-05-02 | D159: KEC International ltd $ | E159: Accu | F159: 127.50 | H159: 148 | I159: 148-150 | J159: Target Achieved | K159: =H159-F159 -> 20.50 | L159: =K159/F159 -> 16.08% | M159: Successful | N159: 2016-07-13
A160: 57 | B160: 2016-05-03 | D160: Mindtree | E160: Accu | F160: 675.00 | H160: 815 | I160: 790-800 | J160: Target Achieved | K160: =H160-F160 -> 140.00 | L160: =K160/F160 -> 20.74% | M160: Successful | N160: 2018-02-23
A161: 58 | B161: 2016-06-01 | D161: Atulauto | E161: Accu | F161: 500 | H161: 232.50 | I161: 565-570 | J161: Loss of Rs.267.50 /- | K161: =H161-F161 -> -267.50 | L161: =K161/F161 -> -53.50% | M161: Unsuccessful | N161: 2019-09-27
A162: 59 | B162: 2016-06-06 | D162: TRITURBINE | E162: Accu | F162: 110.00 | H162: 126.5 | I162: 125.00 | J162: Profit of Rs.16.50/- | K162: =H162-F162 -> 16.50 | L162: =K162/F162 -> 15.00% | M162: Successful | N162: 2016-07-01
A163: 60 | B163: 2016-06-17 | D163: Pennar Industries Ltd | E163: Accu | F163: 44.00 | H163: 69.5 | I163: 69.50 | J163: Profit of Rs.25.50/- | K163: =H163-F163 -> 25.50 | L163: =K163/F163 -> 57.95% | M163: Successful | N163: 2017-08-30
A164: 61 | B164: 2016-06-28 | D164: EVEREADY | E164: Accu | F164: 262.50 | H164: 340 | I164: 333.00 | J164: Profit of Rs.77.50/- | K164: 77.50 | L164: 29.52% | M164: Successful | N164: 2017-10-09
A165: 62 | B165: 2016-06-28 | D165: FIEMIND | E165: Accu | F165: 840.00 | H165: 1230 | I165: 1230.00 | J165: Target Achieved | K165: 390.00 | L165: 46.43% | M165: Successful | N165: 2016-10-06
A166: 63 | B166: 2016-07-05 | D166: Bajaj Corp Ltd | E166: Accu | F166: 395 | H166: =(468.5+342.5)/2 -> 405.50 | I166: 510.00 | J166: Profit of Rs.10.50/- | K166: =H166-F166 -> 10.50 | L166: =K166/F166 -> 3% | M166: Neutral | N166: 2019-05-21
A167: 64 | B167: 2016-08-02 | D167: GPPL $ | E167: Buy | F167: =169.5-12.8 -> 156.7 | H167: 77.00 | I167: 198-200 | J167: Loss of Rs.79.7/- | K167: -79.70 | L167: -50.86% | M167: Unsuccessful | N167: 2019-02-26
A168: 65 | B168: 2016-08-04 | D168: WONDERLA HOLIDAYS LTD | E168: Accu | F168: 400 | H168: 305.00 | I168: 475.00 | J168: Loss of Rs.95/- | K168: -95.00 | L168: -23.75% | M168: Unsuccessful | N168: 2019-05-21
A169: 66 | B169: 2016-08-11 | D169: CAMLINFINE | E169: Accu | F169: 86.50 | H169: 130 | I169: 130.00 | J169: Profit of Rs.43.50/- | K169: 43.50 | L169: 50.29% | M169: Successful | N169: 2017-12-22
A170: 67 | B170: 2016-08-18 | D170: GRANULES | E170: Accu | F170: 133.5 | H170: 126.50 | I170: 178.00 | J170: Exit | K170: -7.00 | L170: -5.24% | M170: Unsuccessful | N170: 2016-09-02
A171: 68 | B171: 2016-08-31 | D171: VA TECH WABAG | E171: Accu | F171: 560.00 | H171: 725 | I171: 725.00 | J171: Target Achieved | K171: 165.00 | L171: 29.46% | M171: Successful | N171: 2016-03-27
A172: 69 | B172: 2016-09-01 | D172: SKIPPER LIMITED | E172: Accu | F172: 160.50 | H172: 210 | I172: 210.00 | J172: Target Achieved | K172: 49.50 | L172: 30.84% | M172: Successful | N172: 2017-05-16
A173: 70 | B173: 2016-10-03 | D173: IFBIND | E173: Accu | F173: 430.00 | H173: 596 | I173: 575.00 | J173: Profit of Rs.166/- | K173: 166.00 | L173: 38.60% | M173: Successful | N173: 2017-02-03
A174: 71 | B174: 2016-10-14 | D174: ASIANTILES | E174: Accu | F174: 280.00 | H174: 345 | I174: 345.00 | J174: Target Achieved | K174: =H174-F174 -> 65.00 | L174: =K174/F174 -> 23.21% | M174: Successful | N174: 2017-03-20
A175: 72 | B175: 2016-10-14 | D175: DEEPIND | E175: Accu | F175: 245.00 | H175: 325.5 | I175: 330.00 | J175: Profit of Rs.80.5/- | K175: 80.50 | L175: =K175/F175 -> 32.86% | M175: Successful | N175: 2017-02-03
A176: 73 | B176: 2016-10-17 | D176: DCBBANK | E176: Accu | F176: 125.00 | H176: 160 | I176: 160.00 | J176: Target Achieved | K176: 35.00 | L176: 28.00% | M176: Successful | N176: 2017-03-09
A177: 74 | B177: 2016-10-17 | D177: ORIENTREF | E177: Accu | F177: 114.00 | H177: 145 | I177: 145.00 | J177: Target Achieved | K177: 31.00 | L177: =K177/F177 -> 27.19% | M177: Successful | N177: 2017-05-04
A178: 75 | B178: 2016-10-17 | D178: GANECOS | E178: Accu | F178: 212.00 | H178: 280 | I178: 276.00 | J178: Profit of Rs.68/- | K178: 68.00 | L178: =K178/F178 -> 32.08% | M178: Successful | N178: 2017-05-03
A179: 76 | B179: 2016-11-04 | D179: NBCC | E179: Accu | F179: 155.00 | H179: 210 | I179: 210.00 | J179: Profit of Rs.55/- | K179: 55.00 | L179: =K179/F179 -> 35.48% | M179: Successful | N179: 2017-07-28
A180: 77 | B180: 2016-12-06 | D180: PRECAM | E180: Accu | F180: 150.5 | H180: 72.50 | I180: 174.00 | J180: Loss of Rs.78/- | K180: -78.00 | L180: -51.83% | M180: Unsuccessful | N180: 2018-08-21
A181: 78 | B181: 2016-12-08 | D181: INFRATEL | E181: Accu | F181: 380.00 | H181: 478 | I181: 468.00 | J181: Target Achieved | K181: =H181-F181 -> 98.00 | L181: =K181/F181 -> 25.79% | M181: Successful | N181: 2017-10-17
A182: 79 | B182: 2016-12-30 | D182: GODREJPROP | E182: Accu | F182: 305.00 | H182: 375 | I182: 375.00 | J182: Target Achieved | K182: =H182-F182 -> 70.00 | L182: =K182/F182 -> 22.95% | M182: Successful | N182: 2017-02-02
A183: 80 | B183: 2017-01-04 | D183: DEEPAKNTR | E183: Accu | F183: 99.50 | H183: 158 | I183: 158.00 | J183: Target Achieved | K183: =H183-F183 -> 58.50 | L183: =K183/F183 -> 58.79% | M183: Successful | N183: 2017-06-12
A184: 81 | B184: 2017-01-04 | D184: DEEPAKNTR | E184: Accu | F184: 99.50 | H184: 158 | I184: 158.00 | J184: Target Achieved | K184: 58.50 | L184: 58.79% | M184: Successful | N184: 2017-06-12
A185: 82 | B185: 2017-02-20 | D185: RECLTD | E185: Accu | F185: 140.50 | H185: 220 | I185: 220.00 | J185: Target Achieved | K185: =H185-F185 -> 79.50 | L185: =K185/F185 -> 56.58% | M185: Successful | N185: 2017-05-09
A186: 83 | B186: 2017-02-20 | D186: SUBROS | E186: Accu | F186: 202.50 | H186: 234 | I186: 234.00 | J186: Target Achieved | K186: 31.50 | L186: 15.56% | M186: Successful | N186: 2017-04-11
A187: 84 | B187: 2017-03-24 | D187: VRLLOG | E187: Accu | F187: 300.50 | H187: 417.5 | I187: 420.00 | J187: Profit of Rs.117/- | K187: =H187-F187 -> 117.00 | L187: =K187/F187 -> 38.94% | M187: Successful | N187: 2017-12-01
A188: 85 | B188: 2017-03-24 | D188: FIEMIND | E188: Accu | F188: 850.00 | H188: 1042.5 | I188: 1023.00 | J188: Profit of Rs 192.50/- | K188: 192.50 | L188: 22.65% | M188: Successful | N188: 2017-04-05
A189: 86 | B189: 2017-04-05 | D189: RATNAMANI | E189: Accu | F189: 785.00 | H189: 930 | I189: 920.00 | J189: Profit of Rs.145/- | K189: =H189-F189 -> 145.00 | L189: =K189/F189 -> 18.47% | M189: Successful | N189: 2017-08-29
A190: 87 | B190: 2017-04-06 | D190: ZEEMEDIA | E190: Accu | F190: 40 | H190: 13.10 | I190: 60.00 | J190: Loss of Rs.26.9/- | K190: -26.90 | L190: -67.25% | M190: Unsuccessful | N190: 2018-02-07
A191: 88 | B191: 2017-04-12 | D191: DABUR | E191: Accu | F191: 289.50 | H191: 354 | I191: 360.00 | J191: Profit of Rs.64.5/- | K191: =H191-F191 -> 64.50 | L191: =K191/F191 -> 22.28% | M191: Successful | N191: 2017-11-01
A192: 89 | B192: 2017-04-20 | D192: KPRMILL | E192: Accu | F192: 700.00 | H192: 840 | I192: 840.00 | J192: Profit of Rs.140/- | K192: 140.00 | L192: 20.00% | M192: Successful | N192: 2017-06-07
A193: 90 | B193: 2017-06-01 | D193: ESSELPACK | E193: Accu | F193: 130.00 | H193: 144.25 | I193: 170.00 | J193: Profit of Rs.14.25/- | K193: 14.25 | L193: 10.96% | M193: Successful | N193: 2019-07-29
A194: 91 | B194: 2017-06-15 | D194: KEI | E194: Accu | F194: 214.50 | H194: 262 | I194: 262.00 | J194: Profit of Rs.47.5/- | K194: 47.50 | L194: 22.14% | M194: Successful | N194: 2017-08-30
A195: 92 | B195: 2017-07-17 | D195: MAYURUNIQ | E195: Accu | F195: 370.00 | H195: 447.5 | I195: 450.00 | J195: Target Achieved | K195: 77.50 | L195: 20.95% | M195: Successful | N195: 2017-10-27
A196: 93 | B196: 2017-07-27 | D196: RAMCOCEM | E196: Accu | F196: 657.50 | H196: 825 | I196: 820.00 | J196: Target Achieved | K196: 167.50 | L196: 25.48% | M196: Successful | N196: 2017-12-21
A197: 94 | B197: 2017-08-17 | D197: FINPIPE | E197: Accu | F197: 605.00 | H197: 750 | I197: 750.00 | J197: Profit of Rs.145/- | K197: 145.00 | L197: 23.97% | M197: Successful | N197: 2017-10-19
A198: 95 | B198: 2017-09-01 | D198: SHK | E198: Accu | F198: 255 | H198: 217.25 | I198: 320.00 | J198: Loss of Rs.37.75/- | K198: -37.75 | L198: -15% | M198: Unsuccessful | N198: 2019-07-15
A199: 96 | B199: 2017-09-19 | D199: SKIPPER | E199: Accu | F199: 215.00 | H199: 258 | I199: 258.00 | J199: Target Achieved | K199: 43.00 | L199: 20.00% | M199: Successful | N199: 2017-11-01
A200: 97 | B200: 2017-09-19 | D200: SKIPPER | E200: Accu | F200: 215.00 | H200: 258 | I200: 258.00 | J200: Target Achieved | K200: 43.00 | L200: 20.00% | M200: Successful | N200: 2017-11-01
A201: 98 | B201: 2017-09-20 | D201: CAMLINFINE$ | E201: Accu | F201: 75.00 | H201: 90 | I201: 90.00 | J201: Profit of Rs.15.00/- | K201: =H201-F201 -> 15.00 | L201: =K201/F201 -> 20.00% | M201: Successful | N201: 2017-10-11
A202: 99 | B202: 2017-10-03 | D202: GNA | E202: Accu | F202: 315.00 | H202: 392 | I202: 384.00 | J202: Profit of Rs.77/- | K202: 77.00 | L202: 24.44% | M202: Successful | N202: 2017-10-09
A203: 100 | B203: 2017-10-05 | D203: NOCIL | E203: Accu | F203: 145.00 | H203: 179 | I203: 180.00 | J203: Profit of Rs.34/- | K203: 34.00 | L203: 23.45% | M203: Successful | N203: 2017-10-17
A204: 101 | B204: 2017-10-06 | D204: CENTURYPLY | E204: Accu | F204: 256.00 | H204: 323 | I204: 320.00 | J204: Target Achieved | K204: 67.00 | L204: 26.17% | M204: Successful | N204: 2017-11-28
A205: 102 | B205: 2017-10-09 | D205: EIHOTEL | E205: Accu | F205: 137.50 | H205: 184 | I205: 183.00 | J205: Profit of Rs.46.5/- | K205: 46.50 | L205: 33.82% | M205: Successful | N205: 2018-01-08
A206: 103 | B206: 2017-10-10 | D206: NRBBEARING | E206: Accu | F206: 125.50 | H206: 158 | I206: 155.00 | J206: Profit of Rs.32.5/- | K206: 32.50 | L206: 25.90% | M206: Successful | N206: 2017-11-28
A207: 104 | B207: 2017-10-10 | D207: BOROSIL | E207: Accu | F207: 895.00 | H207: 1122.5 | I207: 1078.00 | J207: Profit of Rs.227.5/- | K207: 227.50 | L207: 25.42% | M207: Successful | N207: 2018-01-17
A208: 105 | B208: 2017-10-12 | D208: CYIENT | E208: Accu | F208: 525.00 | H208: 629 | I208: 629.00 | J208: Target Achieved | K208: 104.00 | L208: 19.81% | M208: Successful | N208: 2018-01-19
A209: 106 | B209: 2017-11-07 | D209: HATSUN | E209: Accu | F209: 740.00 | H209: 892.5 | I209: 900.00 | J209: Profit of Rs.152.5/- | K209: =H209-F209 -> 152.50 | L209: =K209/F209 -> 20.61% | M209: Successful | N209: 2017-11-13
A210: 107 | B210: 2017-12-04 | D210: SANGHIIND | E210: Accu | F210: 118.50 | H210: 143.5 | I210: 145.00 | J210: Profit of Rs.25/- | K210: =H210-F210 -> 25.00 | L210: =K210/F210 -> 21.10% | M210: Successful | N210: 2017-12-28
A211: 108 | B211: 2017-12-21 | D211: KAJARIACER | E211: Accu | F211: 715 | H211: 500.00 | I211: 872.00 | J211: Loss of Rs.215/- | K211: =H211-F211 -> -215.00 | L211: =K211/F211 -> -30.07% | M211: Unsuccessful | N211: 2019-07-24
A212: 109 | B212: 2017-12-29 | D212: GNA | E212: Accu | F212: 435.00 | H212: 542.5 | I212: 539.00 | J212: Target Achieved | K212: 107.50 | L212: 24.71% | M212: Successful | N212: 2018-04-16
A213: 110 | B213: 2017-12-29 | D213: ZENSARTECH | E213: Accu | F213: 885.00 | H213: 1090 | I213: 1084.00 | J213: Target Achieved | K213: 205.00 | L213: 23.16% | M213: Successful | N213: 2018-04-23
A214: 111 | B214: 2018-04-02 | D214: EVERESTIND | E214: Accu | F214: 478.50 | H214: 442 | I214: 613.00 | J214: Loss of Rs.36.50 /- | K214: =H214-F214 -> -36.50 | L214: =K214/F214 -> -7.63% | M214: Unsuccessful | N214: 2019-10-24
A215: 112 | B215: 2018-04-04 | D215: GPPL$ | E215: Accu | F215: =141.5-7.3 -> 134.2 | H215: 77.00 | I215: 180.00 | J215: Loss of Rs.57.2/- | K215: =H215-F215 -> -57.20 | L215: =K215/F215 -> -42.62% | M215: Unsuccessful | N215: 2019-02-26
A216: 113 | B216: 2018-04-19 | D216: MANPASAND | E216: Accu | F216: 430 | H216: 220.00 | I216: 537.00 | J216: Loss of Rs.210/- | K216: =H216-F216 -> -210.00 | L216: =K216/F216 -> -48.84% | M216: Unsuccessful | N216: 2018-06-01
A217: 114 | B217: 2018-04-30 | D217: HEIDELBERG | E217: Accu | F217: 156 | H217: 196.00 | I217: 196.00 | J217: Profit of Rs.40/- | K217: =H217-F217 -> 40.00 | L217: =K217/F217 -> 26% | M217: Successful | N217: 2019-05-20
A218: 115 | B218: 2018-07-25 | D218: ZEEMEDIA | E218: Accu | F218: 27.5 | H218: 13.10 | I218: 60.00 | J218: Loss of Rs.14.40/- | K218: -14.40 | L218: -52.36% | M218: Unsuccessful | N218: 2018-02-07
A219: 116 | B219: 2018-08-06 | D219: GABRIEL | E219: Accu | F219: 150.00 | H219: 102 | I219: 182.00 | J219: Loss of Rs.48 /- | K219: =H219-F219 -> -48.00 | L219: =K219/F219 -> -32.00% | M219: Unsuccessful | N219: 2019-07-15
A220: 117 | B220: 2018-08-23 | D220: INDIANHUME | E220: Accu | F220: 285.00 | H220: 355 | I220: 364.00 | J220: Profit of Rs.70/- | K220: 70.00 | L220: 24.56% | M220: Successful | N220: 2018-12-21
A221: 118 | B221: 2018-08-29 | D221: GRINDWELL | E221: Accu | F221: 525.00 | H221: 585 | I221: 635.00 | J221: Profit of Rs.60- | K221: =H221-F221 -> 60.00 | L221: =K221/F221 -> 11.43% | M221: Successful | N221: 2019-07-16
A222: 119 | B222: 2018-10-22 | D222: FINPIPE | E222: Accu | F222: 475.00 | H222: 574 | I222: 570.00 | J222: Target Achieved | K222: 99.00 | L222: 20.84% | M222: Successful | N222: 2018-10-30
A223: 120 | B223: 2018-10-24 | D223: GULFOILLUB | E223: Accu | F223: 707.50 | H223: 872 | I223: 872.00 | J223: Target Achieved | K223: 164.50 | L223: 23.25% | M223: Successful | N223: 2019-01-17
A224: 121 | B224: 2018-10-25 | D224: DBCORP | E224: Accu | F224: 164.00 | H224: 204 | I224: 209.00 | J224: Profit of Rs.40/- | K224: 40.00 | L224: 24.39% | M224: Successful | N224: 2019-03-15
A225: 122 | B225: 2018-10-26 | D225: RITES | E225: Accu | F225: 240.00 | H225: 297 | I225: 297.00 | J225: Target Achieved | K225: 57.00 | L225: 23.75% | M225: Successful | N225: 2018-11-13
A226: 123 | B226: 2018-12-05 | D226: BRIGADE | E226: Accu | F226: 202.50 | H226: 255 | I226: 252.00 | J226: Target Achieved | K226: 52.50 | L226: 25.93% | M226: Successful | N226: 2019-03-18
A227: 124 | B227: 2018-12-31 | D227: JKCEMENT | E227: Accu | F227: 710.00 | H227: 866 | I227: 866.00 | J227: Target Achieved | K227: 156.00 | L227: 21.97% | M227: Successful | N227: 2019-03-29
A228: 125 | B228: 2019-02-26 | D228: MARICO | E228: Accu | F228: 340.00 | H228: 398.5 | I228: 411.00 | J228: Profit of Rs.58.50/- | K228: 58.50 | L228: 17.21% | M228: Successful | N228: 2019-10-22
A229: 126 | B229: 2019-04-04 | D229: ITDCEM | E229: Accu | F229: 130.00 | H229: 65 | I229: 158.00 | J229: Loss of Rs.65 /- | K229: -65.00 | L229: -50.00% | M229: Unsuccessful | N229: 2019-09-18
A230: 127 | B230: 2017-10-09 | D230: RECLTD | E230: Accu | F230: 152.5 | H230: 183.50 | I230: 210.00 | J230: Part Profit of Rs.31/- | K230: 31.00 | L230: 20% | M230: Successful | N230: 2017-11-03 | R230: V
A231: 128 | B231: 2017-12-05 | D231: ALLCARGO | E231: Accu | F231: 172.00 | H231: 155.25 | I231: 230.00 | J231: Loss of Rs.16.75/- | K231: =H231-F231 -> -16.75 | L231: =K231/F231 -> -9.74% | M231: Unsuccessful | N231: 2019-11-18 | R231: V
A232: 129 | B232: 2018-10-25 | D232: GODREJCP | E232: Accu | F232: 707.5 | H232: 850.00 | I232: 890.00 | J232: Part Profit of Rs.142.5/- | K232: 142.50 | L232: 20% | M232: Successful | N232: 2018-12-19 | R232: V
A233: 130 | B233: 2017-05-22 | D233: GREAVESCOT | E233: Accu | F233: 127.6 | H233: 138.00 | I233: 190.00 | J233: Profit of Rs.10.40 | K233: 10.40 | L233: 8% | M233: Successful | N233: 2019-11-05 | R233: K
A234: 131 | B234: 2018-02-27 | D234: MOLDTKPAC | E234: Accu | F234: 317.00 | I234: 398.00 | M234: Open | R234: K
A235: 132 | B235: 2018-03-05 | D235: LICHSGFIN | E235: Accu | F235: =510-14.4 -> 495.60 | I235: 672.00 | M235: Open | R235: K
... 21 more rows

Sheet Sheet2 (hidden)
A1: SYMBOL | B1: SERIES | C1: OPEN | D1: HIGH | E1: LOW | F1: CLOSE | G1: LAST | H1: PREVCLOSE | I1: TOTTRDQTY | J1: TOTTRDVAL | K1: TIMESTAMP | L1: TOTALTRADES | M1: ISIN | N1: ISIN
A2: 20MICRONS | B2: EQ | C2: 34.95 | D2: 35 | E2: 33.55 | F2: 34.15 | G2: 34.1 | H2: 34.3 | I2: 34810 | J2: 1190614.4 | K2: 2020-02-07 | L2: 245 | M2: INE144J01027
A3: 21STCENMGM | B3: EQ | C3: 13.55 | D3: 13.55 | E3: 13.55 | F3: 13.55 | G3: 13.55 | H3: 13.8 | I3: 157 | J3: 2127.35 | K3: 2020-02-07 | L3: 8 | M3: INE253B01015
A4: 3IINFOTECH | B4: EQ | C4: 2.15 | D4: 2.5 | E4: 2.15 | F4: 2.4 | G4: 2.45 | H4: 2.2 | I4: 1626658 | J4: 3786217.55 | K4: 2020-02-07 | L4: 941 | M4: INE748C01020
A5: 3MINDIA | B5: EQ | C5: 23500 | D5: 24219.6 | E5: 23125.05 | F5: 24064.95 | G5: 24000 | H5: 23427.7 | I5: 6160 | J5: 146658136.9 | K5: 2020-02-07 | L5: 2026 | M5: INE470A01017
A6: 3PLAND | B6: EQ | C6: 6.6 | D6: 6.6 | E6: 6.3 | F6: 6.3 | G6: 6.3 | H6: 6.6 | I6: 3343 | J6: 21063.9 | K6: 2020-02-07 | L6: 17 | M6: INE105C01023
A7: 5PAISA | B7: EQ | C7: 198 | D7: 198 | E7: 186.75 | F7: 187.3 | G7: 187.95 | H7: 192.95 | I7: 19635 | J7: 3719082.6 | K7: 2020-02-07 | L7: 432 | M7: INE618L01018
A8: 63MOONS | B8: EQ | C8: 105.4 | D8: 106.6 | E8: 103.9 | F8: 104.35 | G8: 104.2 | H8: 104.9 | I8: 80690 | J8: 8503938.85 | K8: 2020-02-07 | L8: 1842 | M8: INE111B01023
A9: A2ZINFRA | B9: EQ | C9: 6.5 | D9: 6.85 | E9: 6.45 | F9: 6.5 | G9: 6.5 | H9: 6.5 | I9: 196568 | J9: 1293380.35 | K9: 2020-02-07 | L9: 345 | M9: INE619I01012
A10: AARTIDRUGS | B10: EQ | C10: 644 | D10: 657.95 | E10: 624 | F10: 631.5 | G10: 631.55 | H10: 628.3 | I10: 96955 | J10: 62089398.7 | K10: 2020-02-07 | L10: 4626 | M10: INE767A01016
A11: AARTIIND | B11: EQ | C11: 966.85 | D11: 995.55 | E11: 966.65 | F11: 988.9 | G11: 981.05 | H11: 960.85 | I11: 173287 | J11: 170014658.3 | K11: 2020-02-07 | L11: 11053 | M11: INE769A01020
A12: AARVEEDEN | B12: EQ | C12: 15.1 | D12: 15.1 | E12: 13.85 | F12: 14.15 | G12: 13.9 | H12: 14.3 | I12: 9084 | J12: 130795.5 | K12: 2020-02-07 | L12: 134 | M12: INE273D01019
A13: AAVAS | B13: EQ | C13: 1971 | D13: 1971.15 | E13: 1825 | F13: 1843.7 | G13: 1840 | H13: 1954.15 | I13: 879428 | J13: 1631768572 | K13: 2020-02-07 | L13: 28674 | M13: INE216P01012
A14: ABAN | B14: EQ | C14: 25.3 | D14: 25.8 | E14: 24.3 | F14: 25.1 | G14: 25.15 | H14: 25.3 | I14: 22493 | J14: 562464.15 | K14: 2020-02-07 | L14: 354 | M14: INE421A01028
A15: ABB | B15: EQ | C15: 1333 | D15: 1340 | E15: 1316 | F15: 1328.95 | G15: 1332 | H15: 1339.45 | I15: 35789 | J15: 47463790.55 | K15: 2020-02-07 | L15: 1913 | M15: INE117A01022
A16: ABBOTINDIA | B16: EQ | C16: 13171 | D16: 14444 | E16: 13130.6 | F16: 14103.15 | G16: 14080 | H16: 13103.4 | I16: 106911 | J16: 1479622505 | K16: 2020-02-07 | L16: 20498 | M16: INE358A01014
A17: ABCAPITAL | B17: EQ | C17: 96.7 | D17: 97 | E17: 94.4 | F17: 94.8 | G17: 94.5 | H17: 96.65 | I17: 1974933 | J17: 188843764.2 | K17: 2020-02-07 | L17: 13568 | M17: INE674K01013
A18: ABFRL | B18: EQ | C18: 253.9 | D18: 263.95 | E18: 251 | F18: 260.95 | G18: 260.4 | H18: 254.35 | I18: 2103438 | J18: 546836927.2 | K18: 2020-02-07 | L18: 28364 | M18: INE647O01011
A19: ABMINTLTD | B19: BE | C19: 14.2 | D19: 14.2 | E19: 13.5 | F19: 13.5 | G19: 13.5 | H19: 14.2 | I19: 544 | J19: 7347.5 | K19: 2020-02-07 | L19: 5 | M19: INE251C01017
A20: ABSLBANETF | B20: EQ | C20: 312.25 | D20: 312.25 | E20: 312.25 | F20: 312.25 | G20: 312.25 | H20: 312.09 | I20: 1 | J20: 312.25 | K20: 2020-02-07 | L20: 1 | M20: INF209KB1O58
A21: ABSLNN50ET | B21: EQ | C21: 293 | D21: 293.24 | E21: 293 | F21: 293 | G21: 293 | H21: 291.55 | I21: 12 | J21: 3517.92 | K21: 2020-02-07 | L21: 4 | M21: INF209KB1B87
A22: ACC | B22: EQ | C22: 1491 | D22: 1513.5 | E22: 1488.1 | F22: 1502.7 | G22: 1505 | H22: 1489.7 | I22: 1060729 | J22: 1592763054 | K22: 2020-02-07 | L22: 30105 | M22: INE012A01025
A23: ACCELYA | B23: EQ | C23: 1046 | D23: 1052.5 | E23: 1030.1 | F23: 1049.25 | G23: 1052.5 | H23: 1044.05 | I23: 2052 | J23: 2145593.05 | K23: 2020-02-07 | L23: 331 | M23: INE793A01012
A24: ACE | B24: EQ | C24: 81.5 | D24: 83.85 | E24: 81.5 | F24: 83.15 | G24: 83.85 | H24: 81.35 | I24: 177544 | J24: 14688396.85 | K24: 2020-02-07 | L24: 2096 | M24: INE731H01025
A25: ADANIENT | B25: EQ | C25: 236.4 | D25: 242.15 | E25: 235.25 | F25: 239.5 | G25: 238.45 | H25: 236.5 | I25: 5052443 | J25: 1210245103 | K25: 2020-02-07 | L25: 38871 | M25: INE423A01024
A26: ADANIGAS | B26: EQ | C26: 170 | D26: 174.95 | E26: 170 | F26: 171.75 | G26: 171.75 | H26: 170.4 | I26: 1236764 | J26: 213599836.2 | K26: 2020-02-07 | L26: 10996 | M26: INE399L01023
A27: ADANIGREEN | B27: EQ | C27: 208.95 | D27: 213 | E27: 206.25 | F27: 213 | G27: 213 | H27: 202.9 | I27: 2674856 | J27: 567466972.5 | K27: 2020-02-07 | L27: 13050 | M27: INE364U01010
A28: ADANIPORTS | B28: EQ | C28: 370.2 | D28: 373.7 | E28: 367.2 | F28: 369.55 | G28: 369.55 | H28: 370.2 | I28: 2197903 | J28: 813002298.5 | K28: 2020-02-07 | L28: 21700 | M28: INE742F01042
A29: ADANIPOWER | B29: EQ | C29: 60.7 | D29: 61.8 | E29: 60.2 | F29: 60.85 | G29: 60.75 | H29: 60.8 | I29: 4877776 | J29: 297623915.5 | K29: 2020-02-07 | L29: 10460 | M29: INE814H01011
A30: ADANITRANS | B30: EQ | C30: 340 | D30: 346.9 | E30: 325.2 | F30: 329.75 | G30: 332.3 | H30: 338.65 | I30: 526919 | J30: 177694928.6 | K30: 2020-02-07 | L30: 20595 | M30: INE931S01010
A31: ADFFOODS | B31: EQ | C31: 298.95 | D31: 324 | E31: 294 | F31: 314.45 | G31: 311.9 | H31: 297.8 | I31: 264586 | J31: 82695481.1 | K31: 2020-02-07 | L31: 4545 | M31: INE982B01019
A32: ADHUNIKIND | B32: EQ | C32: 39.3 | D32: 40.5 | E32: 38 | F32: 40.35 | G32: 39.25 | H32: 38.65 | I32: 83888 | J32: 3284866.3 | K32: 2020-02-07 | L32: 149 | M32: INE452L01012
A33: ADLABS | B33: BE | C33: 3.6 | D33: 3.85 | E33: 3.6 | F33: 3.7 | G33: 3.75 | H33: 3.75 | I33: 10034 | J33: 37387.85 | K33: 2020-02-07 | L33: 52 | M33: INE172N01012
A34: ADORWELD | B34: EQ | C34: 314.85 | D34: 329.9 | E34: 314.85 | F34: 319.95 | G34: 320.8 | H34: 313.35 | I34: 7929 | J34: 2536317.25 | K34: 2020-02-07 | L34: 314 | M34: INE045A01017
A35: ADROITINFO | B35: BE | C35: 6.5 | D35: 6.5 | E35: 6.2 | F35: 6.2 | G35: 6.2 | H35: 6.5 | I35: 467 | J35: 2897.5 | K35: 2020-02-07 | L35: 7 | M35: INE737B01033
A36: ADSL | B36: BE | C36: 23.25 | D36: 23.5 | E36: 22.7 | F36: 23.4 | G36: 23.5 | H36: 22.7 | I36: 23054 | J36: 533134 | K36: 2020-02-07 | L36: 121 | M36: INE102I01027
A37: ADVANIHOTR | B37: EQ | C37: 55.5 | D37: 58.95 | E37: 55.5 | F37: 56.4 | G37: 55.65 | H37: 57.5 | I37: 2710 | J37: 153932.15 | K37: 2020-02-07 | L37: 95 | M37: INE199C01026
A38: ADVENZYMES | B38: EQ | C38: 178 | D38: 179.8 | E38: 174 | F38: 175.3 | G38: 175.05 | H38: 174.8 | I38: 145752 | J38: 25785496.55 | K38: 2020-02-07 | L38: 6499 | M38: INE837H01020
A39: AEGISCHEM | B39: EQ | C39: 230.7 | D39: 239.5 | E39: 226.1 | F39: 235.1 | G39: 236 | H39: 226.85 | I39: 278887 | J39: 64920322.2 | K39: 2020-02-07 | L39: 6779 | M39: INE208C01025
A40: AFFLE | B40: EQ | C40: 1703 | D40: 1727 | E40: 1670 | F40: 1695.95 | G40: 1685.15 | H40: 1695.35 | I40: 145395 | J40: 247816830.1 | K40: 2020-02-07 | L40: 15952 | M40: INE00WC01019
A41: AGARIND | B41: EQ | C41: 81.75 | D41: 82.05 | E41: 79 | F41: 79.45 | G41: 79.45 | H41: 80.85 | I41: 3134 | J41: 251475.35 | K41: 2020-02-07 | L41: 125 | M41: INE204E01012
A42: AGCNET | B42: EQ | C42: 258.6 | D42: 270 | E42: 256.05 | F42: 264.85 | G42: 269 | H42: 260.7 | I42: 15571 | J42: 4148026.15 | K42: 2020-02-07 | L42: 459 | M42: INE676A01019
A43: AGRITECH | B43: EQ | C43: 45.25 | D43: 46.45 | E43: 44.55 | F43: 45.05 | G43: 44.55 | H43: 45.4 | I43: 6360 | J43: 287666.1 | K43: 2020-02-07 | L43: 144 | M43: INE449G01018
A44: AGROPHOS | B44: EQ | C44: 17.5 | D44: 17.5 | E44: 17.5 | F44: 17.5 | G44: 17.5 | H44: 18.4 | I44: 6146 | J44: 107555 | K44: 2020-02-07 | L44: 73 | M44: INE740V01019
A45: AHLEAST | B45: EQ | C45: 182.1 | D45: 189 | E45: 182.1 | F45: 184.95 | G45: 183 | H45: 184.95 | I45: 313 | J45: 57753.3 | K45: 2020-02-07 | L45: 38 | M45: INE926K01017
A46: AHLUCONT | B46: EQ | C46: 330.05 | D46: 330.05 | E46: 317.05 | F46: 317.95 | G46: 317.2 | H46: 326.8 | I46: 4091 | J46: 1313200.5 | K46: 2020-02-07 | L46: 738 | M46: INE758C01029
A47: AHLWEST | B47: EQ | C47: 336.7 | D47: 342.05 | E47: 336.7 | F47: 340 | G47: 340 | H47: 336.65 | I47: 241 | J47: 82137.85 | K47: 2020-02-07 | L47: 62 | M47: INE915K01010
A48: AIAENG | B48: EQ | C48: 1826.6 | D48: 1960 | E48: 1788 | F48: 1922.8 | G48: 1955 | H48: 1817.55 | I48: 61170 | J48: 116133131.2 | K48: 2020-02-07 | L48: 4999 | M48: INE212H01026
A49: AIONJSW | B49: EQ | C49: 13.5 | D49: 14 | E49: 13.3 | F49: 13.8 | G49: 13.8 | H49: 13.5 | I49: 93207 | J49: 1292073.9 | K49: 2020-02-07 | L49: 308 | M49: INE743C01021
A50: AIRAN | B50: EQ | C50: 13.65 | D50: 14 | E50: 13.05 | F50: 13.75 | G50: 13.7 | H50: 13.25 | I50: 36446 | J50: 494244.05 | K50: 2020-02-07 | L50: 238 | M50: INE645W01026
A51: AJANTPHARM | B51: EQ | C51: 1324.55 | D51: 1398.8 | E51: 1309.05 | F51: 1369.45 | G51: 1380 | H51: 1303.85 | I51: 607404 | J51: 828342382.5 | K51: 2020-02-07 | L51: 33973 | M51: INE031B01049
A52: AJMERA | B52: EQ | C52: 126.45 | D52: 131.95 | E52: 126.15 | F52: 127.6 | G52: 127 | H52: 130.1 | I52: 53270 | J52: 6831758.7 | K52: 2020-02-07 | L52: 1255 | M52: INE298G01027
A53: AKASH | B53: BE | C53: 93.75 | D53: 99.4 | E53: 93.75 | F53: 99.4 | G53: 99.4 | H53: 98 | I53: 2 | J53: 193.15 | K53: 2020-02-07 | L53: 2 | M53: INE737W01013
A54: AKSHARCHEM | B54: EQ | C54: 245.85 | D54: 253.7 | E54: 240.3 | F54: 247.3 | G54: 245.9 | H54: 251.75 | I54: 5012 | J54: 1241033.75 | K54: 2020-02-07 | L54: 314 | M54: INE542B01011
A55: AKSHOPTFBR | B55: EQ | C55: 7.8 | D55: 7.85 | E55: 7.55 | F55: 7.6 | G55: 7.55 | H55: 7.8 | I55: 185974 | J55: 1425348.15 | K55: 2020-02-07 | L55: 259 | M55: INE523B01011
A56: AKZOINDIA | B56: EQ | C56: 2149.9 | D56: 2149.9 | E56: 2052.7 | F56: 2081.05 | G56: 2090 | H56: 2032.3 | I56: 70314 | J56: 147386097.3 | K56: 2020-02-07 | L56: 5662 | M56: INE133A01011
A57: ALANKIT | B57: EQ | C57: 13.85 | D57: 14.8 | E57: 13.85 | F57: 14.7 | G57: 14.6 | H57: 14.5 | I57: 117382 | J57: 1702377.05 | K57: 2020-02-07 | L57: 218 | M57: INE914E01040
A58: ALBERTDAVD | B58: EQ | C58: 512.8 | D58: 514.65 | E58: 500.05 | F58: 507.8 | G58: 506.15 | H58: 508.2 | I58: 8897 | J58: 4512310.1 | K58: 2020-02-07 | L58: 554 | M58: INE155C01010
A59: ALBK | B59: EQ | C59: 16.25 | D59: 16.85 | E59: 16 | F59: 16.4 | G59: 16.35 | H59: 16.15 | I59: 1673459 | J59: 27515898.6 | K59: 2020-02-07 | L59: 4279 | M59: INE428A01015
A60: ALCHEM | B60: BE | C60: 1.45 | D60: 1.45 | E60: 1.45 | F60: 1.45 | G60: 1.45 | H60: 1.5 | I60: 5079 | J60: 7364.55 | K60: 2020-02-07 | L60: 11 | M60: INE964B01033
A61: ALEMBICLTD | B61: EQ | C61: 54.7 | D61: 54.7 | E61: 53.15 | F61: 53.35 | G61: 53.15 | H61: 53.95 | I61: 131477 | J61: 7053317.1 | K61: 2020-02-07 | L61: 3041 | M61: INE426A01027
A62: ALICON | B62: EQ | C62: 385 | D62: 385 | E62: 375.25 | F62: 379.4 | G62: 379.8 | H62: 378.5 | I62: 2935 | J62: 1111494.4 | K62: 2020-02-07 | L62: 291 | M62: INE062D01024
A63: ALKALI | B63: EQ | C63: 47.05 | D63: 49.75 | E63: 46.7 | F63: 48.55 | G63: 48.3 | H63: 47.95 | I63: 7074 | J63: 342675 | K63: 2020-02-07 | L63: 199 | M63: INE773I01017
A64: ALKEM | B64: EQ | C64: 2400 | D64: 2558 | E64: 2350 | F64: 2502.5 | G64: 2511 | H64: 2398.85 | I64: 572347 | J64: 1410535966 | K64: 2020-02-07 | L64: 27312 | M64: INE540L01014
A65: ALKYLAMINE | B65: EQ | C65: 1478 | D65: 1489.95 | E65: 1440.05 | F65: 1455.7 | G65: 1450 | H65: 1443.35 | I65: 39179 | J65: 57089531.1 | K65: 2020-02-07 | L65: 2355 | M65: INE150B01021
A66: ALLCARGO | B66: EQ | C66: 112.55 | D66: 113.55 | E66: 110.65 | F66: 111.6 | G66: 111.9 | H66: 112.8 | I66: 127127 | J66: 14258951.7 | K66: 2020-02-07 | L66: 1649 | M66: INE418H01029
A67: ALLSEC | B67: EQ | C67: 281.2 | D67: 282.95 | E67: 277.6 | F67: 280.9 | G67: 280 | H67: 282.15 | I67: 2588 | J67: 726197.85 | K67: 2020-02-07 | L67: 102 | M67: INE835G01018
A68: ALMONDZ | B68: EQ | C68: 15.6 | D68: 16.3 | E68: 15.6 | F68: 16.2 | G68: 16.3 | H68: 15.6 | I68: 196 | J68: 3131.9 | K68: 2020-02-07 | L68: 8 | M68: INE326B01027
A69: ALPA | B69: EQ | C69: 20.6 | D69: 20.95 | E69: 19.85 | F69: 19.95 | G69: 19.85 | H69: 20.5 | I69: 21731 | J69: 441330 | K69: 2020-02-07 | L69: 238 | M69: INE385I01010
A70: ALPHAGEO | B70: EQ | C70: 215.8 | D70: 215.8 | E70: 209.1 | F70: 210.85 | G70: 209.2 | H70: 213.2 | I70: 8968 | J70: 1902174.6 | K70: 2020-02-07 | L70: 481 | M70: INE137C01018
A71: ALPSINDUS | B71: BE | C71: 1.1 | D71: 1.1 | E71: 1 | F71: 1.1 | G71: 1 | H71: 1.05 | I71: 19681 | J71: 21551.6 | K71: 2020-02-07 | L71: 60 | M71: INE093B01015
A72: AMARAJABAT | B72: EQ | C72: 785.2 | D72: 789.2 | E72: 778 | F72: 786.1 | G72: 787 | H72: 784.35 | I72: 246798 | J72: 193416172.3 | K72: 2020-02-07 | L72: 5940 | M72: INE885A01032
A73: AMBER | B73: EQ | C73: 1569.4 | D73: 1580.95 | E73: 1530 | F73: 1541.4 | G73: 1540 | H73: 1569.35 | I73: 34160 | J73: 52785201.4 | K73: 2020-02-07 | L73: 3010 | M73: INE371P01015
A74: AMBIKCO | B74: EQ | C74: 850 | D74: 855.95 | E74: 825 | F74: 832.05 | G74: 834.75 | H74: 841.95 | I74: 6257 | J74: 5249058.2 | K74: 2020-02-07 | L74: 456 | M74: INE540G01014
A75: AMBUJACEM | B75: EQ | C75: 207.6 | D75: 212 | E75: 207.15 | F75: 209.8 | G75: 210.35 | H75: 207.5 | I75: 1957283 | J75: 411252663.1 | K75: 2020-02-07 | L75: 20083 | M75: INE079A01024
A76: AMDIND | B76: EQ | C76: 16.9 | D76: 17.15 | E76: 16.25 | F76: 17 | G76: 17.1 | H76: 16.35 | I76: 18555 | J76: 312680.2 | K76: 2020-02-07 | L76: 62 | M76: INE005I01014
A77: AMJLAND | B77: EQ | C77: 20.9 | D77: 21 | E77: 19.75 | F77: 20.65 | G77: 20.9 | H77: 21 | I77: 25167 | J77: 510743.3 | K77: 2020-02-07 | L77: 147 | M77: INE606A01024
A78: AMRUTANJAN | B78: EQ | C78: 469 | D78: 479.9 | E78: 465.1 | F78: 469.2 | G78: 466.5 | H78: 472.5 | I78: 14956 | J78: 7078993.1 | K78: 2020-02-07 | L78: 979 | M78: INE098F01031
A79: ANANTRAJ | B79: EQ | C79: 34 | D79: 34 | E79: 33 | F79: 33.5 | G79: 33.5 | H79: 34 | I79: 395991 | J79: 13230805.7 | K79: 2020-02-07 | L79: 2022 | M79: INE242C01024
A80: ANDHRABANK | B80: EQ | C80: 16.35 | D80: 16.4 | E80: 16.1 | F80: 16.15 | G80: 16.2 | H80: 16.35 | I80: 467068 | J80: 7568240 | K80: 2020-02-07 | L80: 1991 | M80: INE434A01013
A81: ANDHRACEMT | B81: EQ | C81: 2.35 | D81: 2.45 | E81: 2.3 | F81: 2.4 | G81: 2.4 | H81: 2.3 | I81: 247548 | J81: 585878.45 | K81: 2020-02-07 | L81: 127 | M81: INE666E01012
A82: ANDHRSUGAR | B82: EQ | C82: 319.6 | D82: 323.75 | E82: 307 | F82: 310.25 | G82: 309 | H82: 317.35 | I82: 68870 | J82: 21779233.35 | K82: 2020-02-07 | L82: 2076 | M82: INE715B01013
A83: ANDPAPER | B83: EQ | C83: 291.9 | D83: 293.55 | E83: 288.85 | F83: 290.5 | G83: 290.5 | H83: 291.85 | I83: 2867 | J83: 834675.6 | K83: 2020-02-07 | L83: 107 | M83: INE435A01028
A84: ANIKINDS | B84: BE | C84: 8.75 | D84: 9.5 | E84: 8.75 | F84: 9.1 | G84: 9.1 | H84: 9.15 | I84: 8567 | J84: 78345.75 | K84: 2020-02-07 | L84: 35 | M84: INE087B01017
A85: ANKITMETAL | B85: BE | C85: 0.45 | D85: 0.45 | E85: 0.45 | F85: 0.45 | G85: 0.45 | H85: 0.45 | I85: 2101 | J85: 945.45 | K85: 2020-02-07 | L85: 5 | M85: INE106I01010
A86: ANSALAPI | B86: EQ | C86: 5.4 | D86: 5.65 | E86: 5.15 | F86: 5.25 | G86: 5.2 | H86: 5.15 | I86: 67587 | J86: 362945.15 | K86: 2020-02-07 | L86: 120 | M86: INE436A01026
A87: ANSALHSG | B87: BE | C87: 4.9 | D87: 5.4 | E87: 4.9 | F87: 5 | G87: 5 | H87: 5.15 | I87: 29088 | J87: 147134 | K87: 2020-02-07 | L87: 71 | M87: INE880B01015
A88: ANTGRAPHIC | B88: BE | C88: 0.6 | D88: 0.65 | E88: 0.6 | F88: 0.65 | G88: 0.65 | H88: 0.65 | I88: 23333 | J88: 14923 | K88: 2020-02-07 | L88: 17 | M88: INE414B01021
A89: ANUP | B89: EQ | C89: 656 | D89: 678.65 | E89: 572.3 | F89: 591.4 | G89: 586.15 | H89: 663.2 | I89: 98605 | J89: 59852189.9 | K89: 2020-02-07 | L89: 6032 | M89: INE294Z01018
A90: APARINDS | B90: EQ | C90: 402.8 | D90: 404 | E90: 395.25 | F90: 397.9 | G90: 398.95 | H90: 400 | I90: 40486 | J90: 16152351 | K90: 2020-02-07 | L90: 997 | M90: INE372A01015
A91: APCL | B91: EQ | C91: 161.15 | D91: 164.25 | E91: 157.55 | F91: 161.45 | G91: 159 | H91: 160.4 | I91: 2339 | J91: 375228.1 | K91: 2020-02-07 | L91: 109 | M91: INE071F01012
A92: APCOTEXIND | B92: EQ | C92: 149 | D92: 156.9 | E92: 149 | F92: 154 | G92: 154.5 | H92: 148.9 | I92: 47402 | J92: 7238903.65 | K92: 2020-02-07 | L92: 1384 | M92: INE116A01032
A93: APEX | B93: EQ | C93: 373.35 | D93: 380.4 | E93: 331.5 | F93: 371.55 | G93: 369.5 | H93: 371.05 | I93: 397391 | J93: 148303897.6 | K93: 2020-02-07 | L93: 9892 | M93: INE346W01013
A94: APLAPOLLO | B94: EQ | C94: 2010 | D94: 2055 | E94: 2006.45 | F94: 2027.95 | G94: 2040 | H94: 2005.9 | I94: 30841 | J94: 62606307.05 | K94: 2020-02-07 | L94: 4431 | M94: INE702C01019
A95: APLLTD | B95: EQ | C95: 644.4 | D95: 660 | E95: 636.15 | F95: 645.55 | G95: 640.05 | H95: 640 | I95: 476521 | J95: 309585650.8 | K95: 2020-02-07 | L95: 26752 | M95: INE901L01018
A96: APOLLO | B96: EQ | C96: 75.7 | D96: 84.75 | E96: 75 | F96: 81.9 | G96: 82.7 | H96: 76.5 | I96: 156502 | J96: 12742176.75 | K96: 2020-02-07 | L96: 2794 | M96: INE713T01010
A97: APOLLOHOSP | B97: EQ | C97: 1649.8 | D97: 1678.5 | E97: 1628 | F97: 1663.15 | G97: 1659 | H97: 1645.05 | I97: 554048 | J97: 919089773.5 | K97: 2020-02-07 | L97: 22197 | M97: INE437A01024
A98: APOLLOPIPE | B98: EQ | C98: 421 | D98: 433.1 | E98: 411 | F98: 430.3 | G98: 426.5 | H98: 417.65 | I98: 13902 | J98: 5913808.2 | K98: 2020-02-07 | L98: 2862 | M98: INE126J01016
A99: APOLLOTYRE | B99: EQ | C99: 165.1 | D99: 166.7 | E99: 163.5 | F99: 164 | G99: 164.05 | H99: 165.1 | I99: 2268574 | J99: 373297701.6 | K99: 2020-02-07 | L99: 16234 | M99: INE438A01022
A100: APOLSINHOT | B100: EQ | C100: 732.45 | D100: 735 | E100: 717 | F100: 717.45 | G100: 717 | H100: 724.4 | I100: 890 | J100: 643577.65 | K100: 2020-02-07 | L100: 296 | M100: INE451F01024
A101: APTECHT | B101: EQ | C101: 158.5 | D101: 160 | E101: 155 | F101: 155.4 | G101: 155.35 | H101: 157.75 | I101: 130314 | J101: 20459794.65 | K101: 2020-02-07 | L101: 2363 | M101: INE266F01018
A102: ARCHIDPLY | B102: EQ | C102: 30 | D102: 32 | E102: 29.25 | F102: 30.7 | G102: 30.6 | H102: 29.2 | I102: 41246 | J102: 1263159.9 | K102: 2020-02-07 | L102: 555 | M102: INE877I01016
A103: ARCHIES | B103: EQ | C103: 18.6 | D103: 18.7 | E103: 17.95 | F103: 18.25 | G103: 18.4 | H103: 18.7 | I103: 49997 | J103: 914781.85 | K103: 2020-02-07 | L103: 200 | M103: INE731A01020
A104: ARCOTECH | B104: BE | C104: 1.75 | D104: 1.75 | E104: 1.7 | F104: 1.7 | G104: 1.75 | H104: 1.75 | I104: 14856 | J104: 25310.3 | K104: 2020-02-07 | L104: 48 | M104: INE574I01035
A105: ARIES | B105: EQ | C105: 70.05 | D105: 70.75 | E105: 69.2 | F105: 69.95 | G105: 70.3 | H105: 70.75 | I105: 18717 | J105: 1308980.35 | K105: 2020-02-07 | L105: 281 | M105: INE298I01015
A106: ARIHANT | B106: EQ | C106: 24.4 | D106: 24.4 | E106: 21.2 | F106: 21.55 | G106: 21.55 | H106: 22.25 | I106: 627 | J106: 13876.2 | K106: 2020-02-07 | L106: 24 | M106: INE413D01011
A107: ARIHANTSUP | B107: EQ | C107: 26.7 | D107: 28 | E107: 26.5 | F107: 26.8 | G107: 27.15 | H107: 27.65 | I107: 1107 | J107: 29754.95 | K107: 2020-02-07 | L107: 23 | M107: INE643K01018
A108: ARMANFIN | B108: EQ | C108: 832 | D108: 859.95 | E108: 826.4 | F108: 845.65 | G108: 849 | H108: 835.55 | I108: 8751 | J108: 7454718.4 | K108: 2020-02-07 | L108: 967 | M108: INE109C01017
A109: AROGRANITE | B109: EQ | C109: 36 | D109: 36.75 | E109: 35.5 | F109: 35.85 | G109: 35.85 | H109: 35.6 | I109: 7021 | J109: 251820.3 | K109: 2020-02-07 | L109: 66 | M109: INE210C01013
A110: ARROWGREEN | B110: EQ | C110: 64 | D110: 71.9 | E110: 63 | F110: 64.4 | G110: 64 | H110: 62.6 | I110: 210744 | J110: 14399230.55 | K110: 2020-02-07 | L110: 4817 | M110: INE570D01018
A111: ARSHIYA | B111: EQ | C111: 17.05 | D111: 17.25 | E111: 16.75 | F111: 17 | G111: 16.95 | H111: 16.85 | I111: 9926 | J111: 167745.75 | K111: 2020-02-07 | L111: 55 | M111: INE968D01022
A112: ARSSINFRA | B112: EQ | C112: 20.5 | D112: 21.6 | E112: 20.05 | F112: 20.4 | G112: 20.35 | H112: 20.5 | I112: 12981 | J112: 265334.45 | K112: 2020-02-07 | L112: 61 | M112: INE267I01010
A113: ARTEMISMED | B113: EQ | C113: 263 | D113: 267 | E113: 244.6 | F113: 251 | G113: 251 | H113: 263 | I113: 1677 | J113: 423532.15 | K113: 2020-02-07 | L113: 54 | M113: INE025R01013
A114: ARVIND | B114: EQ | C114: 41.4 | D114: 41.5 | E114: 40.1 | F114: 40.2 | G114: 40.15 | H114: 41.15 | I114: 1142753 | J114: 46299659.95 | K114: 2020-02-07 | L114: 4172 | M114: INE034A01011
A115: ARVINDFASN | B115: EQ | C115: 346.1 | D115: 363 | E115: 346.1 | F115: 357.65 | G115: 355.75 | H115: 350.2 | I115: 26584 | J115: 9383763.5 | K115: 2020-02-07 | L115: 2077 | M115: INE955V01021
A116: ARVSMART | B116: EQ | C116: 89.55 | D116: 92 | E116: 88 | F116: 88.5 | G116: 88.2 | H116: 90.2 | I116: 20094 | J116: 1801017.5 | K116: 2020-02-07 | L116: 481 | M116: INE034S01021
A117: ASAHIINDIA | B117: EQ | C117: 255.25 | D117: 260 | E117: 249 | F117: 255.65 | G117: 256 | H117: 255.3 | I117: 33062 | J117: 8395614.55 | K117: 2020-02-07 | L117: 1086 | M117: INE439A01020
A118: ASAHISONG | B118: EQ | C118: 130.05 | D118: 135.8 | E118: 130 | F118: 131.1 | G118: 135.75 | H118: 130.65 | I118: 8726 | J118: 1152129.6 | K118: 2020-02-07 | L118: 281 | M118: INE228I01012
A119: ASAL | B119: EQ | C119: 31 | D119: 31.65 | E119: 30 | F119: 30.15 | G119: 30.15 | H119: 31.1 | I119: 25565 | J119: 771925.35 | K119: 2020-02-07 | L119: 98 | M119: INE900C01027
A120: ASHAPURMIN | B120: EQ | C120: 35.5 | D120: 35.5 | E120: 34 | F120: 34.05 | G120: 34.2 | H120: 34.05 | I120: 12746 | J120: 434119.5 | K120: 2020-02-07 | L120: 65 | M120: INE348A01023
A121: ASHIANA | B121: EQ | C121: 106.9 | D121: 106.9 | E121: 102.9 | F121: 105.05 | G121: 105.5 | H121: 105.2 | I121: 16901 | J121: 1764041.75 | K121: 2020-02-07 | L121: 221 | M121: INE365D01021
A122: ASHIMASYN | B122: EQ | C122: 8.15 | D122: 8.15 | E122: 7.2 | F122: 7.35 | G122: 7.2 | H122: 7.45 | I122: 29711 | J122: 219612.15 | K122: 2020-02-07 | L122: 147 | M122: INE440A01010
A123: ASHOKA | B123: EQ | C123: 114 | D123: 115.7 | E123: 113.5 | F123: 113.85 | G123: 113.6 | H123: 113.8 | I123: 554480 | J123: 63293893.6 | K123: 2020-02-07 | L123: 2769 | M123: INE442H01029
A124: ASHOKLEY | B124: EQ | C124: 81.2 | D124: 84.05 | E124: 79.8 | F124: 83.75 | G124: 83.55 | H124: 80.95 | I124: 29711890 | J124: 2448919198 | K124: 2020-02-07 | L124: 80111 | M124: INE208A01029
A125: ASIANHOTNR | B125: EQ | C125: 91.85 | D125: 91.85 | E125: 88.25 | F125: 89.75 | G125: 89.8 | H125: 90.35 | I125: 925 | J125: 83167.65 | K125: 2020-02-07 | L125: 179 | M125: INE363A01022
A126: ASIANPAINT | B126: EQ | C126: 1856.8 | D126: 1876.5 | E126: 1850.6 | F126: 1858.7 | G126: 1858.5 | H126: 1856.8 | I126: 632858 | J126: 1178874028 | K126: 2020-02-07 | L126: 46788 | M126: INE021A01026
A127: ASIANTILES | B127: EQ | C127: 230 | D127: 230.15 | E127: 226.05 | F127: 228.8 | G127: 229.45 | H127: 229 | I127: 92476 | J127: 21141397.15 | K127: 2020-02-07 | L127: 1689 | M127: INE022I01019
A128: ASPINWALL | B128: EQ | C128: 145 | D128: 145 | E128: 140 | F128: 141.95 | G128: 140 | H128: 142 | I128: 735 | J128: 104500.75 | K128: 2020-02-07 | L128: 25 | M128: INE991I01015
A129: ASTEC | B129: EQ | C129: 485.2 | D129: 485.2 | E129: 468 | F129: 478.2 | G129: 478 | H129: 485.25 | I129: 8754 | J129: 4153290.5 | K129: 2020-02-07 | L129: 403 | M129: INE563J01010
A130: ASTERDM | B130: EQ | C130: 164.3 | D130: 166.45 | E130: 163 | F130: 164.1 | G130: 163.8 | H130: 164.65 | I130: 35049 | J130: 5752032.25 | K130: 2020-02-07 | L130: 1771 | M130: INE914M01019
A131: ASTRAL | B131: EQ | C131: 1200 | D131: 1210.2 | E131: 1190 | F131: 1199.8 | G131: 1198 | H131: 1197.5 | I131: 82946 | J131: 99520468.95 | K131: 2020-02-07 | L131: 9503 | M131: INE006I01046
A132: ASTRAMICRO | B132: EQ | C132: 94 | D132: 97.65 | E132: 92.65 | F132: 95.05 | G132: 94.8 | H132: 94.4 | I132: 440938 | J132: 42043111.75 | K132: 2020-02-07 | L132: 3330 | M132: INE386C01029
A133: ASTRAZEN | B133: EQ | C133: 2474.4 | D133: 2593.95 | E133: 2451.2 | F133: 2567.4 | G133: 2585 | H133: 2459.55 | I133: 27196 | J133: 68829594 | K133: 2020-02-07 | L133: 3449 | M133: INE203A01020
A134: ASTRON | B134: EQ | C134: 39.8 | D134: 39.8 | E134: 39 | F134: 39.2 | G134: 39 | H134: 39.7 | I134: 18497 | J134: 725259.7 | K134: 2020-02-07 | L134: 176 | M134: INE646X01014
A135: ATFL | B135: EQ | C135: 700 | D135: 708.65 | E135: 692.05 | F135: 701.85 | G135: 700.5 | H135: 703.75 | I135: 4348 | J135: 3047957.6 | K135: 2020-02-07 | L135: 422 | M135: INE209A01019
A136: ATLANTA | B136: EQ | C136: 6.2 | D136: 6.2 | E136: 5.8 | F136: 5.85 | G136: 6 | H136: 5.95 | I136: 13453 | J136: 79265.75 | K136: 2020-02-07 | L136: 61 | M136: INE285H01022
A137: ATLASCYCLE | B137: BE | C137: 47 | D137: 48.8 | E137: 45.8 | F137: 47.35 | G137: 48.35 | H137: 47.8 | I137: 2390 | J137: 115022 | K137: 2020-02-07 | L137: 30 | M137: INE446A01025
A138: ATUL | B138: EQ | C138: 4970.6 | D138: 4970.6 | E138: 4902.1 | F138: 4945.1 | G138: 4970 | H138: 4945.8 | I138: 7936 | J138: 39266709.05 | K138: 2020-02-07 | L138: 2451 | M138: INE100A01010
A139: ATULAUTO | B139: EQ | C139: 249.1 | D139: 250.75 | E139: 243.5 | F139: 245.4 | G139: 245.85 | H139: 249.1 | I139: 9908 | J139: 2438786.5 | K139: 2020-02-07 | L139: 915 | M139: INE951D01028
A140: AUBANK | B140: EQ | C140: 1086.9 | D140: 1147.6 | E140: 1080.55 | F140: 1128.1 | G140: 1130 | H140: 1093.55 | I140: 658358 | J140: 742108603.7 | K140: 2020-02-07 | L140: 49139 | M140: INE949L01017
A141: AURIONPRO | B141: EQ | C141: 59.95 | D141: 62.8 | E141: 56.1 | F141: 57.05 | G141: 56.9 | H141: 58 | I141: 56466 | J141: 3349164.75 | K141: 2020-02-07 | L141: 1053 | M141: INE132H01018
A142: AUROPHARMA | B142: EQ | C142: 525 | D142: 553.55 | E142: 513.75 | F142: 546.55 | G142: 542.8 | H142: 510.5 | I142: 18746442 | J142: 1.01493707e+10 | K142: 2020-02-07 | L142: 201316 | M142: INE406A01037
A143: AUSOMENT | B143: BE | C143: 43.3 | D143: 43.3 | E143: 43.3 | F143: 43.3 | G143: 43.3 | H143: 41.25 | I143: 6614 | J143: 286386.2 | K143: 2020-02-07 | L143: 27 | M143: INE218C01016
A144: AUTOAXLES | B144: EQ | C144: 835.5 | D144: 859.75 | E144: 825 | F144: 835.6 | G144: 830.7 | H144: 849.85 | I144: 3770 | J144: 3159173.5 | K144: 2020-02-07 | L144: 442 | M144: INE449A01011
A145: AUTOIND | B145: BE | C145: 23.9 | D145: 24 | E145: 23 | F145: 23.1 | G145: 23.7 | H145: 23.9 | I145: 8883 | J145: 205985.3 | K145: 2020-02-07 | L145: 57 | M145: INE718H01014
A146: AUTOLITIND | B146: EQ | C146: 23.95 | D146: 24.5 | E146: 23.1 | F146: 23.6 | G146: 23.2 | H146: 23.45 | I146: 9869 | J146: 231718.7 | K146: 2020-02-07 | L146: 113 | M146: INE448A01013
A147: AVADHSUGAR | B147: EQ | C147: 280.4 | D147: 281.4 | E147: 267.05 | F147: 270.45 | G147: 269 | H147: 278.45 | I147: 185703 | J147: 50628380.1 | K147: 2020-02-07 | L147: 4431 | M147: INE349W01017
A148: AVANTIFEED | B148: EQ | C148: 627 | D148: 659.9 | E148: 622 | F148: 651.8 | G148: 646.05 | H148: 623.35 | I148: 1421219 | J148: 916807130.4 | K148: 2020-02-07 | L148: 64461 | M148: INE871C01038
A149: AVTNPL | B149: EQ | C149: 35.35 | D149: 35.8 | E149: 34.1 | F149: 34.7 | G149: 34.75 | H149: 35.35 | I149: 67036 | J149: 2339028.9 | K149: 2020-02-07 | L149: 919 | M149: INE488D01021
A150: AXISBANK | B150: EQ | C150: 736.7 | D150: 749.2 | E150: 734 | F150: 748.15 | G150: 746.3 | H150: 736.95 | I150: 8438354 | J150: 6267697595 | K150: 2020-02-07 | L150: 93643 | M150: INE238A01034
A151: AXISCADES | B151: BE | C151: 57.05 | D151: 60.7 | E151: 55 | F151: 60.7 | G151: 60.7 | H151: 57.85 | I151: 59752 | J151: 3563186.6 | K151: 2020-02-07 | L151: 246 | M151: INE555B01013
A152: AXISGOLD | B152: EQ | C152: 3577 | D152: 3577 | E152: 3545 | F152: 3555.2 | G152: 3562 | H152: 3529.3 | I152: 486 | J152: 1728349.65 | K152: 2020-02-07 | L152: 80 | M152: INF846K01347
A153: AXISNIFTY | B153: EQ | C153: 1248.71 | D153: 1248.71 | E153: 1242.76 | F153: 1242.76 | G153: 1242.76 | H153: 1254 | I153: 50 | J153: 62221.37 | K153: 2020-02-07 | L153: 11 | M153: INF846K01ZL0
A154: AYMSYNTEX | B154: EQ | C154: 33.3 | D154: 34.45 | E154: 33.2 | F154: 33.5 | G154: 33.25 | H154: 32.9 | I154: 9920 | J154: 334211.65 | K154: 2020-02-07 | L154: 180 | M154: INE193B01039
A155: BAGFILMS | B155: BE | C155: 1.75 | D155: 1.85 | E155: 1.75 | F155: 1.8 | G155: 1.75 | H155: 1.8 | I155: 108301 | J155: 193906.35 | K155: 2020-02-07 | L155: 89 | M155: INE116D01028
A156: BAJAJ-AUTO | B156: EQ | C156: 3164.8 | D156: 3189 | E156: 3106.6 | F156: 3134.85 | G156: 3135 | H156: 3149.8 | I156: 454698 | J156: 1431209173 | K156: 2020-02-07 | L156: 25566 | M156: INE917I01010
A157: BAJAJCON | B157: EQ | C157: 221.8 | D157: 222.7 | E157: 219.6 | F157: 220.55 | G157: 220 | H157: 219.4 | I157: 160162 | J157: 35498564.45 | K157: 2020-02-07 | L157: 6459 | M157: INE933K01021
A158: BAJAJELEC | B158: EQ | C158: 417.4 | D158: 417.4 | E158: 406.3 | F158: 413 | G158: 413 | H158: 415.75 | I158: 63730 | J158: 26238404.25 | K158: 2020-02-07 | L158: 2951 | M158: INE193E01025
A159: BAJAJFINSV | B159: EQ | C159: 9610 | D159: 9673.65 | E159: 9561.05 | F159: 9623.3 | G159: 9605 | H159: 9619.7 | I159: 142626 | J159: 1372895750 | K159: 2020-02-07 | L159: 24400 | M159: INE918I01018
A160: BAJAJHIND | B160: EQ | C160: 6.55 | D160: 6.55 | E160: 6.25 | F160: 6.3 | G160: 6.3 | H160: 6.45 | I160: 883875 | J160: 5604752.65 | K160: 2020-02-07 | L160: 1280 | M160: INE306A01021
A161: BAJAJHLDNG | B161: EQ | C161: 3786 | D161: 3845 | E161: 3771 | F161: 3783 | G161: 3784.4 | H161: 3783.95 | I161: 19035 | J161: 72322914.9 | K161: 2020-02-07 | L161: 6276 | M161: INE118A01012
A162: BAJFINANCE | B162: EQ | C162: 4663.95 | D162: 4686.9 | E162: 4626.1 | F162: 4654.3 | G162: 4650.75 | H162: 4666.35 | I162: 950326 | J162: 4421828744 | K162: 2020-02-07 | L162: 59173 | M162: INE296A01024
A163: BALAJITELE | B163: EQ | C163: 52.35 | D163: 54.5 | E163: 50.75 | F163: 51.3 | G163: 51 | H163: 52.7 | I163: 63428 | J163: 3288612.8 | K163: 2020-02-07 | L163: 621 | M163: INE794B01026
A164: BALAMINES | B164: EQ | C164: 421 | D164: 424.95 | E164: 410.05 | F164: 411.75 | G164: 414.6 | H164: 421 | I164: 19417 | J164: 8115325.45 | K164: 2020-02-07 | L164: 1066 | M164: INE050E01027
A165: BALAXI | B165: EQ | C165: 115 | D165: 118 | E165: 105.05 | F165: 110.75 | G165: 110 | H165: 102.8 | I165: 13177 | J165: 1492894.4 | K165: 2020-02-07 | L165: 503 | M165: INE618N01014
A166: BALKRISHNA | B166: BE | C166: 16.35 | D166: 17.15 | E166: 16.35 | F166: 17.1 | G166: 17.1 | H166: 17.15 | I166: 377 | J166: 6357.05 | K166: 2020-02-07 | L166: 9 | M166: INE875R01011
A167: BALKRISIND | B167: EQ | C167: 1101.5 | D167: 1118.4 | E167: 1091 | F167: 1101.05 | G167: 1103.45 | H167: 1101.5 | I167: 404348 | J167: 446543734.1 | K167: 2020-02-07 | L167: 11856 | M167: INE787D01026
A168: BALLARPUR | B168: BE | C168: 0.6 | D168: 0.6 | E168: 0.5 | F168: 0.55 | G168: 0.6 | H168: 0.55 | I168: 352636 | J168: 193779.9 | K168: 2020-02-07 | L168: 108 | M168: INE294A01037
A169: BALMLAWRIE | B169: EQ | C169: 118.45 | D169: 118.8 | E169: 116.9 | F169: 117.3 | G169: 117.35 | H169: 118.45 | I169: 58906 | J169: 6939890.45 | K169: 2020-02-07 | L169: 1426 | M169: INE164A01016
A170: BALPHARMA | B170: EQ | C170: 45.2 | D170: 45.5 | E170: 44.65 | F170: 44.95 | G170: 45.2 | H170: 45 | I170: 4585 | J170: 206441.15 | K170: 2020-02-07 | L170: 82 | M170: INE083D01012
A171: BALRAMCHIN | B171: EQ | C171: 169 | D171: 170.9 | E171: 164.05 | F171: 169.65 | G171: 169.3 | H171: 168.4 | I171: 1160718 | J171: 195240871.8 | K171: 2020-02-07 | L171: 16713 | M171: INE119A01028
A172: BANARBEADS | B172: EQ | C172: 35.65 | D172: 36 | E172: 35.1 | F172: 35.1 | G172: 35.55 | H172: 35.65 | I172: 565 | J172: 20016.25 | K172: 2020-02-07 | L172: 32 | M172: INE655B01011
A173: BANARISUG | B173: EQ | C173: 1401 | D173: 1410 | E173: 1384 | F173: 1386.6 | G173: 1384 | H173: 1420 | I173: 157 | J173: 219033.95 | K173: 2020-02-07 | L173: 29 | M173: INE459A01010
A174: BANCOINDIA | B174: EQ | C174: 101 | D174: 104.6 | E174: 100.05 | F174: 102.9 | G174: 102.95 | H174: 101.75 | I174: 26096 | J174: 2657746.1 | K174: 2020-02-07 | L174: 1592 | M174: INE213C01025
A175: BANDHANBNK | B175: EQ | C175: 428.1 | D175: 447.85 | E175: 425.45 | F175: 442.7 | G175: 442.7 | H175: 425.45 | I175: 5359754 | J175: 2357442505 | K175: 2020-02-07 | L175: 144344 | M175: INE545U01014
A176: BANG | B176: EQ | C176: 17.1 | D176: 17.1 | E176: 16.5 | F176: 17.1 | G176: 17.1 | H176: 17 | I176: 2221 | J176: 37601.85 | K176: 2020-02-07 | L176: 26 | M176: INE863I01016
A177: BANKBARODA | B177: EQ | C177: 91.55 | D177: 92.75 | E177: 90.25 | F177: 92.05 | G177: 91.95 | H177: 91.65 | I177: 19744328 | J177: 1812590013 | K177: 2020-02-07 | L177: 40116 | M177: INE028A01039
A178: BANKBEES | B178: EQ | C178: 319.83 | D178: 320.8 | E178: 317.17 | F178: 318.34 | G178: 318.9 | H178: 319.83 | I178: 71435 | J178: 22723992.48 | K178: 2020-02-07 | L178: 818 | M178: INF204KB15I9
A179: BANKINDIA | B179: EQ | C179: 65.05 | D179: 65.7 | E179: 64.25 | F179: 64.75 | G179: 64.55 | H179: 65 | I179: 1269896 | J179: 82687201.65 | K179: 2020-02-07 | L179: 5399 | M179: INE084A01016
A180: BANSWRAS | B180: BE | C180: 118.1 | D180: 127.85 | E180: 118.1 | F180: 124.3 | G180: 124.7 | H180: 122.95 | I180: 3027 | J180: 373532.05 | K180: 2020-02-07 | L180: 31 | M180: INE629D01012
A181: BARTRONICS | B181: BE | C181: 1.2 | D181: 1.2 | E181: 1.1 | F181: 1.2 | G181: 1.2 | H181: 1.15 | I181: 10978 | J181: 13033.5 | K181: 2020-02-07 | L181: 24 | M181: INE855F01034
A182: BASF | B182: EQ | C182: 983.7 | D182: 984.8 | E182: 970.05 | F182: 980 | G182: 980 | H182: 978.9 | I182: 30646 | J182: 30002458.45 | K182: 2020-02-07 | L182: 3263 | M182: INE373A01013
A183: BASML | B183: EQ | C183: 124.6 | D183: 128 | E183: 124 | F183: 127.65 | G183: 127 | H183: 128.95 | I183: 1764 | J183: 222684.5 | K183: 2020-02-07 | L183: 40 | M183: INE186H01014
A184: BATAINDIA | B184: EQ | C184: 1879.7 | D184: 1895.45 | E184: 1812.65 | F184: 1842.45 | G184: 1834 | H184: 1853.95 | I184: 2091261 | J184: 3867727469 | K184: 2020-02-07 | L184: 80724 | M184: INE176A01028
A185: BAYERCROP | B185: EQ | C185: 4520 | D185: 4578.5 | E185: 4462 | F185: 4498.95 | G185: 4519.95 | H185: 4499.85 | I185: 15570 | J185: 70218679.15 | K185: 2020-02-07 | L185: 5087 | M185: INE462A01022
A186: BBL | B186: EQ | C186: 862.5 | D186: 879.8 | E186: 848 | F186: 857.7 | G186: 863.5 | H186: 865.45 | I186: 4841 | J186: 4166379.8 | K186: 2020-02-07 | L186: 535 | M186: INE464A01028
A187: BBTC | B187: EQ | C187: 1148 | D187: 1154.4 | E187: 1127 | F187: 1132.2 | G187: 1133.9 | H187: 1146.9 | I187: 50067 | J187: 57164172.6 | K187: 2020-02-07 | L187: 2938 | M187: INE050A01025
A188: BCG | B188: BE | C188: 5.25 | D188: 5.25 | E188: 5 | F188: 5.05 | G188: 5.2 | H188: 5 | I188: 759803 | J188: 3899820.7 | K188: 2020-02-07 | L188: 322 | M188: INE425B01027
A189: BCP | B189: BE | C189: 21 | D189: 21 | E189: 19.95 | F189: 20.3 | G189: 21 | H189: 21 | I189: 369483 | J189: 7512981.15 | K189: 2020-02-07 | L189: 113 | M189: INE905P01028
A190: BDL | B190: EQ | C190: 303 | D190: 303.9 | E190: 295.1 | F190: 296.45 | G190: 296.1 | H190: 301.95 | I190: 56151 | J190: 16784189.95 | K190: 2020-02-07 | L190: 2623 | M190: INE171Z01018
A191: BEARDSELL | B191: BE | C191: 8.9 | D191: 9.25 | E191: 8.8 | F191: 9.25 | G191: 9.25 | H191: 9.25 | I191: 3342 | J191: 29416.85 | K191: 2020-02-07 | L191: 26 | M191: INE520H01022
A192: BEDMUTHA | B192: BE | C192: 15.85 | D192: 15.85 | E192: 14.6 | F192: 15.8 | G192: 15.8 | H192: 15.15 | I192: 391 | J192: 5936.85 | K192: 2020-02-07 | L192: 5 | M192: INE844K01012
A193: BEL | B193: EQ | C193: 87.1 | D193: 88 | E193: 86.2 | F193: 87.55 | G193: 87.75 | H193: 87 | I193: 10122623 | J193: 882706653.5 | K193: 2020-02-07 | L193: 34667 | M193: INE263A01024
A194: BEML | B194: EQ | C194: 982.95 | D194: 985.9 | E194: 970.8 | F194: 974.9 | G194: 972 | H194: 980.15 | I194: 143772 | J194: 140412811.9 | K194: 2020-02-07 | L194: 5553 | M194: INE258A01016
A195: BEPL | B195: EQ | C195: 49 | D195: 49.4 | E195: 47.35 | F195: 47.75 | G195: 47.7 | H195: 49 | I195: 201922 | J195: 9747736.7 | K195: 2020-02-07 | L195: 1976 | M195: INE922A01025
A196: BERGEPAINT | B196: EQ | C196: 577 | D196: 581.85 | E196: 567.15 | F196: 570.85 | G196: 570.5 | H196: 574.6 | I196: 1128275 | J196: 646733260.5 | K196: 2020-02-07 | L196: 16498 | M196: INE463A01038
A197: BFINVEST | B197: EQ | C197: 329.65 | D197: 332.05 | E197: 322 | F197: 323.15 | G197: 322.5 | H197: 329.4 | I197: 24630 | J197: 8069205.25 | K197: 2020-02-07 | L197: 718 | M197: INE878K01010
A198: BFUTILITIE | B198: EQ | C198: 333.9 | D198: 342.45 | E198: 318.5 | F198: 321.4 | G198: 320 | H198: 329.15 | I198: 389609 | J198: 128723474.8 | K198: 2020-02-07 | L198: 11176 | M198: INE243D01012
A199: BGLOBAL | B199: BE | C199: 1.35 | D199: 1.45 | E199: 1.35 | F199: 1.4 | G199: 1.4 | H199: 1.4 | I199: 6416 | J199: 8970.15 | K199: 2020-02-07 | L199: 22 | M199: INE224M01013
A200: BGRENERGY | B200: EQ | C200: 36.65 | D200: 36.85 | E200: 35.85 | F200: 35.9 | G200: 35.85 | H200: 36.55 | I200: 69221 | J200: 2507493.15 | K200: 2020-02-07 | L200: 627 | M200: INE661I01014
... 1483 more rows

Sheet Sheet1 (hidden)

Sheet Sheet3 (hidden)

Sheet Sheet4 (hidden)

Sheet Sheet5 (hidden)
